Body_Code,Body_Name,Service,Posting Date,GL Code,GL Code Desc,Doc Number,Doc Net Amount,Supplier Name
http://statistics.data.gov.uk/id/local-authority/38,Oxfordshire County Council,ELECTRICAL ENERGY,05/01/2023,3951,Non System - Electricity,2201065779,"-257,962.09",EDF Energy Customers Ltd
http://statistics.data.gov.uk/id/local-authority/38,Oxfordshire County Council,ELECTRICAL ENERGY,05/01/2023,3951,Non System - Electricity,2201065829,"-256,867.18",EDF Energy Customers Ltd
http://statistics.data.gov.uk/id/local-authority/38,Oxfordshire County Council,ELECTRICAL ENERGY,05/01/2023,3951,Non System - Electricity,2201065826,"-242,446.68",EDF Energy Customers Ltd
http://statistics.data.gov.uk/id/local-authority/38,Oxfordshire County Council,ELECTRICAL ENERGY,05/01/2023,3951,Non System - Electricity,2201065827,"-201,508.63",EDF Energy Customers Ltd
http://statistics.data.gov.uk/id/local-authority/38,Oxfordshire County Council,COMM DRAWDOWN FUNDNG,17/01/2023,8102,Payments to main contractor,2201069965,"-68,357.83",Milestone Infrastructure Limited
http://statistics.data.gov.uk/id/local-authority/38,Oxfordshire County Council,COMM DRAWDOWN FUNDNG,17/01/2023,8102,Payments to main contractor,2201069987,"-56,569.56",Milestone Infrastructure Limited
http://statistics.data.gov.uk/id/local-authority/38,Oxfordshire County Council,COMM DRAWDOWN FUNDNG,17/01/2023,8102,Payments to main contractor,2201069945,"-53,743.59",Milestone Infrastructure Limited
http://statistics.data.gov.uk/id/local-authority/38,Oxfordshire County Council,Covid 19 CHC,11/01/2023,5687,,3111333526,"-51,548.15",Orders of St John
http://statistics.data.gov.uk/id/local-authority/38,Oxfordshire County Council,COMM DRAWDOWN FUNDNG,04/01/2023,8102,Payments to main contractor,2201065255,"-27,825.65",SSE Power Distribution PLC
http://statistics.data.gov.uk/id/local-authority/38,Oxfordshire County Council,COMM DRAWDOWN FUNDNG,04/01/2023,8102,Payments to main contractor,2201065283,"-27,775.65",SSE Power Distribution PLC
http://statistics.data.gov.uk/id/local-authority/38,Oxfordshire County Council,Funded Nursing Care  - Over 65,11/01/2023,5692,,3111331418,"-23,964.42",GCH (St Katherines) Ltd
http://statistics.data.gov.uk/id/local-authority/38,Oxfordshire County Council,COMM DRAWDOWN FUNDNG,17/01/2023,8102,Payments to main contractor,2201069939,"-23,742.89",Milestone Infrastructure Limited
http://statistics.data.gov.uk/id/local-authority/38,Oxfordshire County Council,Care Homes - Under 65 Leaning Disability,11/01/2023,5686,,3111333073,"-21,749.42",VOYAGE CARE LIMITED
http://statistics.data.gov.uk/id/local-authority/38,Oxfordshire County Council,Funded Nursing Care  - Over 65,11/01/2023,5692,,3111331361,"-19,366.43",Godswell Park
http://statistics.data.gov.uk/id/local-authority/38,Oxfordshire County Council,DRAINAGE REPAIRS,17/01/2023,5526,Payments to Private Contractors,2201069976,"-18,849.32",Milestone Infrastructure Limited
http://statistics.data.gov.uk/id/local-authority/38,Oxfordshire County Council,Continuing Care - Care Homes - 65+,11/01/2023,5687,,3111329729,"-17,884.50",Elysium Neurological Services (Badb
http://statistics.data.gov.uk/id/local-authority/38,Oxfordshire County Council,CHC Fast Track - Care Homes - Over 65,11/01/2023,5687,,3111333339,"-15,834.28",Orders of St John
http://statistics.data.gov.uk/id/local-authority/38,Oxfordshire County Council,NATURAL ENVIRONMENT,10/01/2023,5675,Payments to Partnerships,2201066817,"-15,702.00",THE CHILTERNS CONSERVATION BOARD
http://statistics.data.gov.uk/id/local-authority/38,Oxfordshire County Council,CHC Fast Track - Care Homes - Over 65,11/01/2023,5687,,3111331423,"-15,600.00",GCH (St Katherines) Ltd
http://statistics.data.gov.uk/id/local-authority/38,Oxfordshire County Council,Support at Home 65+ Physical Support,11/01/2023,5686,,3111333603,"-14,745.73",Orders of St John
http://statistics.data.gov.uk/id/local-authority/38,Oxfordshire County Council,Care Homes - Over 65 Mental Health,11/01/2023,5687,,3111329715,"-14,114.28",B & M INVESTMENTS LTD
http://statistics.data.gov.uk/id/local-authority/38,Oxfordshire County Council,CHC Fast Track - Care Homes - Over 65,11/01/2023,5687,,3111331428,"-12,800.00",GCH (St Katherines) Ltd
http://statistics.data.gov.uk/id/local-authority/38,Oxfordshire County Council,CHC Fast Track - Care Homes - Over 65,11/01/2023,5687,,3111332474,"-12,200.00",SANCTUARY CARE PROPERTY (2) LTD
http://statistics.data.gov.uk/id/local-authority/38,Oxfordshire County Council,Care Homes - Over 65 Memory & Cognition,11/01/2023,5685,B*Cycle tracks,3111329561,"-11,583.91",Acacia Lodge Care Home
http://statistics.data.gov.uk/id/local-authority/38,Oxfordshire County Council,CHC Fast Track - Care Homes - Over 65,11/01/2023,5687,,3111331877,"-10,842.86",Lincroft Meadow
http://statistics.data.gov.uk/id/local-authority/38,Oxfordshire County Council,Commercial Team Growth,11/01/2023,2040,Agency Staff,2201067724,"-10,439.41",Faithful & Gould
http://statistics.data.gov.uk/id/local-authority/38,Oxfordshire County Council,Interim Funding  - Care Homes - Over 65,11/01/2023,5687,,3111330539,"-9,064.28",Chacombe Park Care Home
http://statistics.data.gov.uk/id/local-authority/38,Oxfordshire County Council,Support at Home 65+ Physical Support,03/01/2023,5699,,3111325861,"-8,820.00",CaringPlus Healthcare Services Ltd
http://statistics.data.gov.uk/id/local-authority/38,Oxfordshire County Council,Continuing Care - Support at Home - 65+,23/01/2023,5691,,3111338818,"-8,551.00",XPERIENCE RECRUITMENT LIMITED
http://statistics.data.gov.uk/id/local-authority/38,Oxfordshire County Council,Funded Nursing Care  - Over 65,11/01/2023,5692,,3111332432,"-8,244.97",Richmond Letcombe Regis
http://statistics.data.gov.uk/id/local-authority/38,Oxfordshire County Council,Support at Home U65 Mental Health,11/01/2023,5686,,3111333537,"-7,826.58",Orders of St John
http://statistics.data.gov.uk/id/local-authority/38,Oxfordshire County Council,Continuing Care - Care Homes - 65+,11/01/2023,5687,,3111331234,"-7,673.14",Freeland House
http://statistics.data.gov.uk/id/local-authority/38,Oxfordshire County Council,COMM DRAWDOWN FUNDNG,17/01/2023,8004,Design Consultant,2201069952,"-7,609.86",Milestone Infrastructure Limited
http://statistics.data.gov.uk/id/local-authority/38,Oxfordshire County Council,Support at Home 65+ Physical Support,03/01/2023,5699,,3111325569,"-7,509.60",All Care GB Ltd
http://statistics.data.gov.uk/id/local-authority/38,Oxfordshire County Council,Care Homes - Over 65 Physical Sypport,11/01/2023,5687,,3111331703,"-7,247.44",Huntercombe Hall Ltd
http://statistics.data.gov.uk/id/local-authority/38,Oxfordshire County Council,Support at Home 65+ Memory & Cognition,11/01/2023,5687,,3111330698,"-7,142.86",Cherwood House Care Centre
http://statistics.data.gov.uk/id/local-authority/38,Oxfordshire County Council,Unregistered Placements,10/01/2023,3942,Hire of Accommodation and Facilities,2201066826,"-6,250.00",Oxfordshire Accommodation Ltd
http://statistics.data.gov.uk/id/local-authority/38,Oxfordshire County Council,Support at Home 65+ Other /Soc Isolation,11/01/2023,5686,,3111333421,"-6,238.58",Orders of St John
http://statistics.data.gov.uk/id/local-authority/38,Oxfordshire County Council,Health Acquired Brain Injury C Homes U65,11/01/2023,5687,,3111329731,"-6,234.36",Elysium Neurological Services (Badb
http://statistics.data.gov.uk/id/local-authority/38,Oxfordshire County Council,LD Continuing Care - Sup at Home - U65,11/01/2023,5688,,3111329485,"-6,213.75",H F TRUST LTD
http://statistics.data.gov.uk/id/local-authority/38,Oxfordshire County Council,COVID 19 Infection Control 2,11/01/2023,3035,Ill Health Charges,3111333934,"-6,188.00",Beech Court Nursing Home
http://statistics.data.gov.uk/id/local-authority/38,Oxfordshire County Council,COMM DRAWDOWN FUNDNG,18/01/2023,8103,Payments to sub contractor,2201070536,"-6,134.17",AECOM Infrastructure & Environment
http://statistics.data.gov.uk/id/local-authority/38,Oxfordshire County Council,CHC Fast Track - Care Homes - Over 65,11/01/2023,5687,,3111333403,"-6,075.00",Orders of St John
http://statistics.data.gov.uk/id/local-authority/38,Oxfordshire County Council,LANDLORD & TENANT,18/01/2023,8510,Other expenses,3111338014,"-5,940.00",OCC One Time Vendor
http://statistics.data.gov.uk/id/local-authority/38,Oxfordshire County Council,Care Homes - Over 65 Mental Health,11/01/2023,5686,,3111330342,"-5,828.57",CARE UK COMMUNITY PARTNERSHIPS LIMI
http://statistics.data.gov.uk/id/local-authority/38,Oxfordshire County Council,Support at Home U65 MH OBC Contract,31/01/2023,5689,,3111342786,"-5,677.51",Response Organisation
http://statistics.data.gov.uk/id/local-authority/38,Oxfordshire County Council,SHORT BREAK ACTIVITIES,04/01/2023,4861,Hired and Contracted Services,3500091787,"-5,350.00",Flexicare
http://statistics.data.gov.uk/id/local-authority/38,Oxfordshire County Council,Local Authority Designated Officer,16/01/2023,4940,Other Services,2201069211,"-5,215.00",Phew Internet
http://statistics.data.gov.uk/id/local-authority/38,Oxfordshire County Council,FOSTERING MAIN,17/01/2023,5549,B*Fostering Allowance - Regulation 38,3111336173,"-5,017.90",Personal Redacted Data
http://statistics.data.gov.uk/id/local-authority/38,Oxfordshire County Council,COVID 19 Infection Control 2,11/01/2023,3035,Ill Health Charges,3111333935,"-4,836.00",Beech Court Nursing Home
http://statistics.data.gov.uk/id/local-authority/38,Oxfordshire County Council,CHC Fast Track - Care Homes - Over 65,11/01/2023,5687,,3111333237,"-4,642.86",MARIA MALLABAND CARE GROUP
http://statistics.data.gov.uk/id/local-authority/38,Oxfordshire County Council,Continuing Care - Care Homes - 65+,11/01/2023,5687,,3111331329,"-4,628.57",LAWTON GROUP LTD
http://statistics.data.gov.uk/id/local-authority/38,Oxfordshire County Council,CHC Fast Track - Care Homes - Over 65,11/01/2023,5687,,3111331525,"-4,539.00",HAMBERLEY CARE 2 LIMITED
http://statistics.data.gov.uk/id/local-authority/38,Oxfordshire County Council,Street Pastors,10/01/2023,5195,Grant Aid and Donations,2201066862,"-4,500.00",Wantage and Grove Street Pastors
http://statistics.data.gov.uk/id/local-authority/38,Oxfordshire County Council,Care Homes - Over 65 Memory & Cognition,11/01/2023,5686,,3111333715,"-4,310.29",OSJ  - Old Station House
http://statistics.data.gov.uk/id/local-authority/38,Oxfordshire County Council,Care Homes - Over 65 Memory & Cognition,11/01/2023,5686,,3111332813,"-4,212.75",The Close Residential Home
http://statistics.data.gov.uk/id/local-authority/38,Oxfordshire County Council,Care Homes - Over 65 Physical Sypport,11/01/2023,5687,,3111333895,"-4,085.99",Orders of St John
http://statistics.data.gov.uk/id/local-authority/38,Oxfordshire County Council,Care Homes - Over 65 Physical Sypport,11/01/2023,5687,,3111331250,"-4,085.71",Freeland House
http://statistics.data.gov.uk/id/local-authority/38,Oxfordshire County Council,Support at Home 65+ Physical Support,03/01/2023,5699,,3111325955,"-3,819.48",HEALTHCARE ACCESS LTD
http://statistics.data.gov.uk/id/local-authority/38,Oxfordshire County Council,CHC Fast Track - Care Homes - Over 65,11/01/2023,5687,,3111332079,"-3,771.43",Mill House Nursing Home
http://statistics.data.gov.uk/id/local-authority/38,Oxfordshire County Council,High Cost INMSS Placements,24/01/2023,5500,Payments to Other Local Authorities,3111338873,"-3,692.30",Nyland Primary School
http://statistics.data.gov.uk/id/local-authority/38,Oxfordshire County Council,Support at Home 65+ Mental Health,11/01/2023,5686,,3111331341,"-3,521.43",LAWTON GROUP LTD
http://statistics.data.gov.uk/id/local-authority/38,Oxfordshire County Council,Commercial Team Growth,13/01/2023,2040,Agency Staff,2201068772,"-3,413.05",Faithful & Gould
http://statistics.data.gov.uk/id/local-authority/38,Oxfordshire County Council,Funded Nursing Care  - Over 65,11/01/2023,5692,,3111330716,"-3,200.69",Cherwood House Care Centre
http://statistics.data.gov.uk/id/local-authority/38,Oxfordshire County Council,Vegetation Mgmt,17/01/2023,5526,Payments to Private Contractors,2201069951,"-3,044.95",Milestone Infrastructure Limited
http://statistics.data.gov.uk/id/local-authority/38,Oxfordshire County Council,Support at Home 65+ Physical Support,11/01/2023,5687,,3111333508,"-3,026.66",Orders of St John
http://statistics.data.gov.uk/id/local-authority/38,Oxfordshire County Council,Care Homes - Over 65 Physical Sypport,11/01/2023,5686,,3111333347,"-2,985.71",Orders of St John
http://statistics.data.gov.uk/id/local-authority/38,Oxfordshire County Council,Funded Nursing Care  - Over 65,11/01/2023,5692,,3111332058,"-2,958.54",Mill House Nursing Home
http://statistics.data.gov.uk/id/local-authority/38,Oxfordshire County Council,SEN TRANSPORT,03/01/2023,4330,Transport to School Activities,3111324075,"-2,926.00",A2B Castle Cars Ltd
http://statistics.data.gov.uk/id/local-authority/38,Oxfordshire County Council,Planned Maintenance,03/01/2023,3787,Premises Repairs,2201065061,"-2,915.20",HSS Hire Ltd
http://statistics.data.gov.uk/id/local-authority/38,Oxfordshire County Council,CHC Fast Track - Care Homes - Under 65,11/01/2023,5687,,3111332069,"-2,914.29",Mill House Nursing Home
http://statistics.data.gov.uk/id/local-authority/38,Oxfordshire County Council,Care Homes - Over 65 Physical Sypport,11/01/2023,5687,,3111331244,"-2,857.14",Freeland House
http://statistics.data.gov.uk/id/local-authority/38,Oxfordshire County Council,Care Homes - Over 65 Physical Sypport,11/01/2023,5687,,3111332056,"-2,805.41",Mill House Nursing Home
http://statistics.data.gov.uk/id/local-authority/38,Oxfordshire County Council,Support at Home 65+ Memory & Cognition,11/01/2023,5686,,3111331099,"-2,796.43",Enstone House
http://statistics.data.gov.uk/id/local-authority/38,Oxfordshire County Council,Care Homes - Over 65 Memory & Cognition,11/01/2023,5687,,3111332737,"-2,785.71",Tall Trees
http://statistics.data.gov.uk/id/local-authority/38,Oxfordshire County Council,Care Homes - Over 65 Physical Sypport,11/01/2023,5687,,3111330276,"-2,762.74",Grace Care Service Ltd T/A Burford
http://statistics.data.gov.uk/id/local-authority/38,Oxfordshire County Council,CHC Fast Track - Care Homes - Over 65,11/01/2023,5687,,3111332040,"-2,742.86",Mill House Nursing Home
http://statistics.data.gov.uk/id/local-authority/38,Oxfordshire County Council,Infection Prevention Crt Oct 21 � Mar 21,11/01/2023,5686,,3111333936,"-2,697.00",Beech Court Nursing Home
http://statistics.data.gov.uk/id/local-authority/38,Oxfordshire County Council,Support at Home 65+ Physical Support,11/01/2023,5686,,3111333470,"-2,608.86",Orders of St John
http://statistics.data.gov.uk/id/local-authority/38,Oxfordshire County Council,Support at Home 65+ Physical Support,31/01/2023,5699,,3111343910,"-2,608.20",All Care GB Ltd
http://statistics.data.gov.uk/id/local-authority/38,Oxfordshire County Council,Support at Home 65+ Physical Support,31/01/2023,5699,,3111343916,"-2,608.20",All Care GB Ltd
http://statistics.data.gov.uk/id/local-authority/38,Oxfordshire County Council,Support at Home 65+ Memory & Cognition,11/01/2023,5686,,3111331268,"-2,600.00",Freeland House
http://statistics.data.gov.uk/id/local-authority/38,Oxfordshire County Council,Care Homes - Under 65 Memory & Cognition,11/01/2023,5686,,3111333250,"-2,578.64",MARIA MALLABAND CARE GROUP
http://statistics.data.gov.uk/id/local-authority/38,Oxfordshire County Council,LANDLORD & TENANT,10/01/2023,8102,Payments to main contractor,2201066792,"-2,576.28",Combined Office Interiors Ltd
http://statistics.data.gov.uk/id/local-authority/38,Oxfordshire County Council,Care Homes - Over 65 Mental Health,11/01/2023,5686,,3111331415,"-2,502.21",GCH (St Katherines) Ltd
http://statistics.data.gov.uk/id/local-authority/38,Oxfordshire County Council,Continuing Care - Care Homes - 65+,11/01/2023,5687,,3111330922,"-2,434.29",Coxwell Hall & Mews Nursing Home
http://statistics.data.gov.uk/id/local-authority/38,Oxfordshire County Council,Support at Home 65+ Memory & Cognition,03/01/2023,5699,,3111326250,"-2,419.20",YOD Ltd
http://statistics.data.gov.uk/id/local-authority/38,Oxfordshire County Council,Support at Home 65+ Memory & Cognition,11/01/2023,5686,,3111331803,"-2,400.00",Kirlena House
http://statistics.data.gov.uk/id/local-authority/38,Oxfordshire County Council,Care Homes - Over 65 Physical Sypport,11/01/2023,5687,,3111330296,"-2,323.05",Grace Care Service Ltd T/A Burford
http://statistics.data.gov.uk/id/local-authority/38,Oxfordshire County Council,Support at Home U65 Physical Support,31/01/2023,5699,,3111343347,"-2,268.00",Adult Transition Services Ltd (ATrS
http://statistics.data.gov.uk/id/local-authority/38,Oxfordshire County Council,Funded Nursing Care  - Over 65,11/01/2023,5692,,3111332286,"-2,241.32",Oxford Beaumont
http://statistics.data.gov.uk/id/local-authority/38,Oxfordshire County Council,Continuing Care - Care Homes - Under 65,11/01/2023,5687,,3111332716,"-2,200.00",St Lukes Nursing Home (Oxford)
http://statistics.data.gov.uk/id/local-authority/38,Oxfordshire County Council,Support at Home 65+ Physical Support,11/01/2023,5686,,3111333516,"-2,155.14",Orders of St John
http://statistics.data.gov.uk/id/local-authority/38,Oxfordshire County Council,CHC Fast Track - Care Homes - Over 65,11/01/2023,5687,,3111331680,"-2,142.86",Huntercombe Hall Ltd
http://statistics.data.gov.uk/id/local-authority/38,Oxfordshire County Council,Support at Home 65+ Mental Health,11/01/2023,5686,,3111331789,"-2,135.71",Kirlena House
http://statistics.data.gov.uk/id/local-authority/38,Oxfordshire County Council,SEN Alternative Provision,27/01/2023,4861,Hired and Contracted Services,3111341932,"-2,126.67",Animal Antiks
http://statistics.data.gov.uk/id/local-authority/38,Oxfordshire County Council,POST 16 SEN,26/01/2023,4330,Transport to School Activities,3111340956,"-2,112.96",The Oxfordshire Taxi Company Ltd T/
http://statistics.data.gov.uk/id/local-authority/38,Oxfordshire County Council,CHC Fast Track - Care Homes - Over 65,11/01/2023,5687,,3111332490,"-2,089.29",SANCTUARY CARE PROPERTY (2) LTD
http://statistics.data.gov.uk/id/local-authority/38,Oxfordshire County Council,Support at Home 65+ Memory & Cognition,31/01/2023,5699,,3111343920,"-2,066.40",All Care GB Ltd
http://statistics.data.gov.uk/id/local-authority/38,Oxfordshire County Council,Care Homes - Over 65 Physical Sypport,11/01/2023,5687,,3111329795,"-2,042.86",Banbury Heights Nursing Home
http://statistics.data.gov.uk/id/local-authority/38,Oxfordshire County Council,Care Homes - Over 65 Mental Health,11/01/2023,5687,,3111332312,"-2,003.63",Oxford Beaumont
http://statistics.data.gov.uk/id/local-authority/38,Oxfordshire County Council,Continuing Care - Care Homes - Under 65,11/01/2023,5687,,3111330946,"-1,971.43",Coxwell Hall & Mews Nursing Home
http://statistics.data.gov.uk/id/local-authority/38,Oxfordshire County Council,COMM DRAWDOWN FUNDNG,17/01/2023,8102,Payments to main contractor,2201069958,"-1,960.13",Milestone Infrastructure Limited
http://statistics.data.gov.uk/id/local-authority/38,Oxfordshire County Council,Care Homes - Over 65 Physical Sypport,11/01/2023,5686,,3111333564,"-1,928.29",Orders of St John
http://statistics.data.gov.uk/id/local-authority/38,Oxfordshire County Council,Support at Home 65+ Physical Support,11/01/2023,5686,,3111333651,"-1,928.29",Orders of St John
http://statistics.data.gov.uk/id/local-authority/38,Oxfordshire County Council,Funded Nursing Care  - Over 65,11/01/2023,5692,,3111332437,"-1,912.59",Richmond Letcombe Regis
http://statistics.data.gov.uk/id/local-authority/38,Oxfordshire County Council,Care Homes - Over 65 Physical Sypport,11/01/2023,5687,,3111331277,"-1,857.14",Freeland House
http://statistics.data.gov.uk/id/local-authority/38,Oxfordshire County Council,Unregistered Placements,10/01/2023,3942,Hire of Accommodation and Facilities,2201066929,"-1,855.00",Oxfordshire Accommodation Ltd
http://statistics.data.gov.uk/id/local-authority/38,Oxfordshire County Council,Support at Home U65 HFA,11/01/2023,5690,,3111329928,"-1,843.84",Real Life Options
http://statistics.data.gov.uk/id/local-authority/38,Oxfordshire County Council,CHC Fast Track - Care Homes - Over 65,11/01/2023,5687,,3111332494,"-1,828.57",SANCTUARY CARE PROPERTY (2) LTD
http://statistics.data.gov.uk/id/local-authority/38,Oxfordshire County Council,Support at Home U65 Physical Support,31/01/2023,5699,,3111343558,"-1,814.40",Care Hearted Ltd
http://statistics.data.gov.uk/id/local-authority/38,Oxfordshire County Council,Care Homes - Under 65 Mental Health,11/01/2023,5687,,3111332973,"-1,784.51",The Langston
http://statistics.data.gov.uk/id/local-authority/38,Oxfordshire County Council,Support at Home U65 Other /Soc Isolation,31/01/2023,5699,,3111343918,"-1,738.80",All Care GB Ltd
http://statistics.data.gov.uk/id/local-authority/38,Oxfordshire County Council,Care Homes - Over 65 Physical Sypport,11/01/2023,5687,,3111330816,"-1,707.87",CHURCHFIELDS CARE HOME
http://statistics.data.gov.uk/id/local-authority/38,Oxfordshire County Council,Support at Home 65+ Physical Support,03/01/2023,5699,,3111325616,"-1,675.80",Adult Transition Services Ltd (ATrS
http://statistics.data.gov.uk/id/local-authority/38,Oxfordshire County Council,Funded Nursing Care  - Over 65,11/01/2023,5692,,3111330491,"-1,613.75",Chacombe Park Care Home
http://statistics.data.gov.uk/id/local-authority/38,Oxfordshire County Council,CHC Fast Track - Care Homes - Over 65,11/01/2023,5687,,3111332748,"-1,600.00",Tall Trees
http://statistics.data.gov.uk/id/local-authority/38,Oxfordshire County Council,Care Homes - Over 65 Physical Sypport,11/01/2023,5686,,3111333555,"-1,588.00",Orders of St John
http://statistics.data.gov.uk/id/local-authority/38,Oxfordshire County Council,Support at Home 65+ Physical Support,11/01/2023,5686,,3111333747,"-1,588.00",OSJ Contract - Stirlings
http://statistics.data.gov.uk/id/local-authority/38,Oxfordshire County Council,ADOPTION ALLOWANCES,24/01/2023,5664,B*Holiday Allowance,3111339432,"-1,572.64",Personal Redacted Data
http://statistics.data.gov.uk/id/local-authority/38,Oxfordshire County Council,Care Homes - Over 65 Physical Sypport,11/01/2023,5686,,3111332572,"-1,571.43",Barchester Healthcare Homes Ltd
http://statistics.data.gov.uk/id/local-authority/38,Oxfordshire County Council,Support at Home 65+ Physical Support,26/01/2023,5899,Social Care - Direct Payments,3111340599,"-1,557.72",Personal Redacted Data
http://statistics.data.gov.uk/id/local-authority/38,Oxfordshire County Council,Support at Home U65 Learning Disability,11/01/2023,5690,,3111330049,"-1,523.34",The Camden Society
http://statistics.data.gov.uk/id/local-authority/38,Oxfordshire County Council,Care Homes - Over 65 Memory & Cognition,11/01/2023,5686,,3111331144,"-1,514.29",Ferendune Court (Anchor Trust)
http://statistics.data.gov.uk/id/local-authority/38,Oxfordshire County Council,Continuing Care - Care Homes - 65+,11/01/2023,5687,,3111333006,"-1,500.00",MARIPOSA CARE GROUP LIMITED
http://statistics.data.gov.uk/id/local-authority/38,Oxfordshire County Council,Support at Home U65 Memory & Cognition,31/01/2023,5699,,3111344174,"-1,499.40",PLL Care Services
http://statistics.data.gov.uk/id/local-authority/38,Oxfordshire County Council,Care Homes - Over 65 Memory & Cognition,11/01/2023,5686,,3111333366,"-1,474.57",Orders of St John
http://statistics.data.gov.uk/id/local-authority/38,Oxfordshire County Council,Care Homes - Over 65 Physical Sypport,11/01/2023,5687,,3111329446,"-1,453.25",ACER HEALTHCARE LTD
http://statistics.data.gov.uk/id/local-authority/38,Oxfordshire County Council,Support at Home 65+ Physical Support,31/01/2023,5699,,3111343930,"-1,449.00",All Care GB Ltd
http://statistics.data.gov.uk/id/local-authority/38,Oxfordshire County Council,Continuing Care - Care Homes - 65+,11/01/2023,5687,,3111329997,"-1,412.23",Bridge House
http://statistics.data.gov.uk/id/local-authority/38,Oxfordshire County Council,Support at Home 65+ Memory & Cognition,11/01/2023,5686,,3111333799,"-1,391.00",Orders of St John
http://statistics.data.gov.uk/id/local-authority/38,Oxfordshire County Council,COMM DRAWDOWN FUNDNG,17/01/2023,8102,Payments to main contractor,2201069947,"-1,368.71",Milestone Infrastructure Limited
http://statistics.data.gov.uk/id/local-authority/38,Oxfordshire County Council,Care Homes - Over 65 Physical Sypport,11/01/2023,5687,,3111333669,"-1,362.00",Orders of St John
http://statistics.data.gov.uk/id/local-authority/38,Oxfordshire County Council,Care Homes - Over 65 Physical Sypport,11/01/2023,5686,,3111333876,"-1,361.14",Orders of St John
http://statistics.data.gov.uk/id/local-authority/38,Oxfordshire County Council,Continuing Care - Care Homes - 65+,11/01/2023,5687,,3111332787,"-1,339.71",The Close Nursing Home
http://statistics.data.gov.uk/id/local-authority/38,Oxfordshire County Council,Support at Home 65+ Memory & Cognition,11/01/2023,5686,,3111333650,"-1,247.72",Orders of St John
http://statistics.data.gov.uk/id/local-authority/38,Oxfordshire County Council,Care Homes - Over 65 Physical Sypport,11/01/2023,5686,,3111333324,"-1,247.71",Orders of St John
http://statistics.data.gov.uk/id/local-authority/38,Oxfordshire County Council,Care Homes - Over 65 Physical Sypport,11/01/2023,5686,,3111333441,"-1,247.71",Orders of St John
http://statistics.data.gov.uk/id/local-authority/38,Oxfordshire County Council,Support at Home U65 Learning Disability,11/01/2023,5688,,3111331217,"-1,234.65",UNITED RESPONSE
http://statistics.data.gov.uk/id/local-authority/38,Oxfordshire County Council,Support at Home 65+ Memory & Cognition,11/01/2023,5685,B*Cycle tracks,3111330290,"-1,200.00",Grace Care Service Ltd T/A Burford
http://statistics.data.gov.uk/id/local-authority/38,Oxfordshire County Council,PLACEMENTS- RELEVANT,25/01/2023,5558,,3111340327,"-1,179.24",Tendercare Management Ltd
http://statistics.data.gov.uk/id/local-authority/38,Oxfordshire County Council,CHC Fast Track - Care Homes - Under 65,11/01/2023,5687,,3111332794,"-1,164.23",The Close Nursing Home
http://statistics.data.gov.uk/id/local-authority/38,Oxfordshire County Council,Support at Home 65+ Physical Support,31/01/2023,5699,,3111343932,"-1,159.20",All Care GB Ltd
http://statistics.data.gov.uk/id/local-authority/38,Oxfordshire County Council,Support at Home 65+ Physical Support,31/01/2023,5699,,3111343940,"-1,159.20",All Care GB Ltd
http://statistics.data.gov.uk/id/local-authority/38,Oxfordshire County Council,Support at Home 65+ Physical Support,31/01/2023,5699,,3111343952,"-1,159.20",All Care GB Ltd
http://statistics.data.gov.uk/id/local-authority/38,Oxfordshire County Council,Continuing Care - Care Homes - 65+,11/01/2023,5687,,3111331685,"-1,157.14",Huntercombe Hall Ltd
http://statistics.data.gov.uk/id/local-authority/38,Oxfordshire County Council,Care Homes - Over 65 Physical Sypport,11/01/2023,5687,,3111329407,"-1,151.14",Abbey Crest Nursing Home
http://statistics.data.gov.uk/id/local-authority/38,Oxfordshire County Council,Support at Home U65 Learning Disability,13/01/2023,5227,Other Transport Arrangements,3111335150,"-1,140.00",24/7 LTD
http://statistics.data.gov.uk/id/local-authority/38,Oxfordshire County Council,Care Homes - Over 65 Physical Sypport,11/01/2023,5685,B*Cycle tracks,3111331635,"-1,134.83",Heathfield House Nursing Home
http://statistics.data.gov.uk/id/local-authority/38,Oxfordshire County Council,LD Continuing Care - Sup at Home - U65,13/01/2023,5691,,3111335304,"-1,133.18",THORNBURY NURSING SERVICES
http://statistics.data.gov.uk/id/local-authority/38,Oxfordshire County Council,Support at Home 65+ Physical Support,03/01/2023,5699,,3111325555,"-1,123.20",Care Outlook Ltd
http://statistics.data.gov.uk/id/local-authority/38,Oxfordshire County Council,Support at Home 65+ Physical Support,31/01/2023,5699,,3111343885,"-1,102.50",CaringPlus Healthcare Services Ltd
http://statistics.data.gov.uk/id/local-authority/38,Oxfordshire County Council,Early Years Pupil Premium,12/01/2023,5537,Payments to Other Establishments,3111334886,"-1,075.20",Jack & Jill Playgroup
http://statistics.data.gov.uk/id/local-authority/38,Oxfordshire County Council,CHC Fast Track - Care Homes - Over 65,11/01/2023,5687,,3111333770,"-1,075.00",Orders of St John
http://statistics.data.gov.uk/id/local-authority/38,Oxfordshire County Council,Support at Home 65+ Physical Support,31/01/2023,5699,,3111343869,"-1,058.40",CaringPlus Healthcare Services Ltd
http://statistics.data.gov.uk/id/local-authority/38,Oxfordshire County Council,Support at Home 65+ Physical Support,03/01/2023,5699,,3111325926,"-1,058.40",Direct Link Care Ltd
http://statistics.data.gov.uk/id/local-authority/38,Oxfordshire County Council,Continuing Care - Support at Home - U65,23/01/2023,5691,,3111338823,"-1,052.63",Home Helpers Care Ltd
http://statistics.data.gov.uk/id/local-authority/38,Oxfordshire County Council,Continuing Care - Support at Home - U65,23/01/2023,5691,,3111338831,"-1,052.63",Home Helpers Care Ltd
http://statistics.data.gov.uk/id/local-authority/38,Oxfordshire County Council,Continuing Care - Support at Home - U65,23/01/2023,5691,,3111338832,"-1,052.63",Home Helpers Care Ltd
http://statistics.data.gov.uk/id/local-authority/38,Oxfordshire County Council,Continuing Care - Support at Home - U65,23/01/2023,5691,,3111338833,"-1,052.63",Home Helpers Care Ltd
http://statistics.data.gov.uk/id/local-authority/38,Oxfordshire County Council,Continuing Care - Support at Home - U65,23/01/2023,5691,,3111338834,"-1,052.63",Home Helpers Care Ltd
http://statistics.data.gov.uk/id/local-authority/38,Oxfordshire County Council,Continuing Care - Support at Home - U65,23/01/2023,5691,,3111338835,"-1,052.63",Home Helpers Care Ltd
http://statistics.data.gov.uk/id/local-authority/38,Oxfordshire County Council,TRANSPORT COSTS,11/01/2023,5227,Other Transport Arrangements,3111329340,"-1,050.00",Oxford Premier Cars Services Limite
http://statistics.data.gov.uk/id/local-authority/38,Oxfordshire County Council,Funded Nursing Care  - Over 65,11/01/2023,5692,,3111332828,"-1,045.95",The Cotswold Home
http://statistics.data.gov.uk/id/local-authority/38,Oxfordshire County Council,Care Homes - Over 65 Memory & Cognition,11/01/2023,5686,,3111333334,"-1,020.86",Orders of St John
http://statistics.data.gov.uk/id/local-authority/38,Oxfordshire County Council,Hospital Discharge and Reablement,03/01/2023,5699,,3111326117,"-1,017.60",PLL Care Services
http://statistics.data.gov.uk/id/local-authority/38,Oxfordshire County Council,HIF2 Team,27/01/2023,2040,Agency Staff,2201073681,"-1,010.40",Faithful & Gould
http://statistics.data.gov.uk/id/local-authority/38,Oxfordshire County Council,Funded Nursing Care  - Over 65,11/01/2023,5692,,3111332480,-986.18,SANCTUARY CARE PROPERTY (2) LTD
http://statistics.data.gov.uk/id/local-authority/38,Oxfordshire County Council,MAINSTREAM-SECONDARY,30/01/2023,4322,"Season Tickets - Bus, Rail & Ferry",3111341831,-971.50,Oxford Bus Company Ltd
http://statistics.data.gov.uk/id/local-authority/38,Oxfordshire County Council,Support at Home 65+ Physical Support,12/01/2023,5899,Social Care - Direct Payments,3111334078,-970.64,Personal Redacted Data
http://statistics.data.gov.uk/id/local-authority/38,Oxfordshire County Council,Support at Home 65+ Physical Support,12/01/2023,5899,Social Care - Direct Payments,3111334105,-970.64,Personal Redacted Data
http://statistics.data.gov.uk/id/local-authority/38,Oxfordshire County Council,Support at Home 65+ Physical Support,12/01/2023,5899,Social Care - Direct Payments,3111334586,-970.64,Personal Redacted Data
http://statistics.data.gov.uk/id/local-authority/38,Oxfordshire County Council,Support at Home 65+ Physical Support,12/01/2023,5899,Social Care - Direct Payments,3111334587,-970.64,Personal Redacted Data
http://statistics.data.gov.uk/id/local-authority/38,Oxfordshire County Council,Support at Home 65+ Physical Support,12/01/2023,5899,Social Care - Direct Payments,3111334588,-970.64,Personal Redacted Data
http://statistics.data.gov.uk/id/local-authority/38,Oxfordshire County Council,Support at Home 65+ Physical Support,12/01/2023,5899,Social Care - Direct Payments,3111334589,-970.64,Personal Redacted Data
http://statistics.data.gov.uk/id/local-authority/38,Oxfordshire County Council,Independent Foster,25/01/2023,5559,,3111340392,-961.74,Integrated Services Programme
http://statistics.data.gov.uk/id/local-authority/38,Oxfordshire County Council,Support at Home 65+ Physical Support,03/01/2023,5699,,3111325564,-957.60,Eleanor Nursing & Social Care Ltd
http://statistics.data.gov.uk/id/local-authority/38,Oxfordshire County Council,SM DISABILITIES,03/01/2023,5554,Childrens' Social Care - Direct Payments,3111323337,-919.32,Personal Redacted Data
http://statistics.data.gov.uk/id/local-authority/38,Oxfordshire County Council,NURSERY ED FUND,12/01/2023,5537,Payments to Other Establishments,3111334889,-913.50,Magpies Preschool
http://statistics.data.gov.uk/id/local-authority/38,Oxfordshire County Council,Support at Home 65+ Physical Support,31/01/2023,5699,,3111343946,-907.20,All Care GB Ltd
http://statistics.data.gov.uk/id/local-authority/38,Oxfordshire County Council,Funded Nursing Care  - Over 65,11/01/2023,5692,,3111330501,-896.53,Chacombe Park Care Home
http://statistics.data.gov.uk/id/local-authority/38,Oxfordshire County Council,Funded Nursing Care  - Over 65,11/01/2023,5692,,3111331409,-896.53,GCH (St Katherines) Ltd
http://statistics.data.gov.uk/id/local-authority/38,Oxfordshire County Council,Support at Home 65+ Physical Support,31/01/2023,5699,,3111344052,-879.48,KCARE NURSING AGENCY
http://statistics.data.gov.uk/id/local-authority/38,Oxfordshire County Council,Independent Foster,25/01/2023,5559,,3111340368,-877.70,FAMILY PLACEMENT.COM
http://statistics.data.gov.uk/id/local-authority/38,Oxfordshire County Council,Independent Foster,25/01/2023,5559,,3111340369,-877.70,FAMILY PLACEMENT.COM
http://statistics.data.gov.uk/id/local-authority/38,Oxfordshire County Council,Support at Home 65+ Physical Support,03/01/2023,5699,,3111326087,-831.60,PLL Care Services
http://statistics.data.gov.uk/id/local-authority/38,Oxfordshire County Council,Support at Home 65+ Physical Support,31/01/2023,5699,,3111344078,-806.40,Mega Resources Ltd
http://statistics.data.gov.uk/id/local-authority/38,Oxfordshire County Council,Care Homes - Over 65 Physical Sypport,11/01/2023,5687,,3111331232,-802.38,Freeland House
http://statistics.data.gov.uk/id/local-authority/38,Oxfordshire County Council,Care Homes - Over 65 Physical Sypport,11/01/2023,5687,,3111331648,-799.29,HENLEY MANOR CARE HOME
http://statistics.data.gov.uk/id/local-authority/38,Oxfordshire County Council,Support at Home 65+ Other /Soc Isolation,11/01/2023,5686,,3111333519,-794.00,Orders of St John
http://statistics.data.gov.uk/id/local-authority/38,Oxfordshire County Council,Support at Home 65+ Physical Support,31/01/2023,5699,,3111343948,-793.80,All Care GB Ltd
http://statistics.data.gov.uk/id/local-authority/38,Oxfordshire County Council,Funded Nursing Care  - Over 65,11/01/2023,5692,,3111331363,-776.99,Godswell Park
http://statistics.data.gov.uk/id/local-authority/38,Oxfordshire County Council,Support at Home U65 Physical Support,31/01/2023,5699,,3111343516,-755.20,Calvary Care Ltd
http://statistics.data.gov.uk/id/local-authority/38,Oxfordshire County Council,CHC Fast Track - Care Homes - Over 65,11/01/2023,5687,,3111331208,-742.86,Fewcott Healthcare Ltd
http://statistics.data.gov.uk/id/local-authority/38,Oxfordshire County Council,CHC Fast Track - Care Homes - Over 65,11/01/2023,5687,,3111330474,-728.57,Chacombe Park Care Home
http://statistics.data.gov.uk/id/local-authority/38,Oxfordshire County Council,CHC Fast Track - Sup at Homes - Over 65,27/01/2023,5691,,3111341267,-728.00,XPERIENCE RECRUITMENT LIMITED
http://statistics.data.gov.uk/id/local-authority/38,Oxfordshire County Council,Funded Nursing Care  - Over 65,11/01/2023,5692,,3111332979,-700.61,The Langston
http://statistics.data.gov.uk/id/local-authority/38,Oxfordshire County Council,Funded Nursing Care  - Over 65,11/01/2023,5692,,3111330515,-687.34,Chacombe Park Care Home
http://statistics.data.gov.uk/id/local-authority/38,Oxfordshire County Council,Support at Home 65+ Memory & Cognition,11/01/2023,5686,,3111333577,-680.57,Orders of St John
http://statistics.data.gov.uk/id/local-authority/38,Oxfordshire County Council,Support at Home 65+ Memory & Cognition,31/01/2023,5699,,3111344029,-655.20,Home Helpers Care Ltd
http://statistics.data.gov.uk/id/local-authority/38,Oxfordshire County Council,Support at Home U65 Physical Support,03/01/2023,5699,,3111325761,-630.00,Care Hearted Ltd
http://statistics.data.gov.uk/id/local-authority/38,Oxfordshire County Council,Support at Home 65+ Physical Support,31/01/2023,5699,,3111343556,-630.00,Care Hearted Ltd
http://statistics.data.gov.uk/id/local-authority/38,Oxfordshire County Council,Funded Nursing Care  - Over 65,11/01/2023,5692,,3111330984,-627.57,CUMNOR HILL HOUSE
http://statistics.data.gov.uk/id/local-authority/38,Oxfordshire County Council,Support at Home 65+ Physical Support,03/01/2023,5699,,3111325746,-623.70,Care Hearted Ltd
http://statistics.data.gov.uk/id/local-authority/38,Oxfordshire County Council,Support at Home U65 Learning Disability,11/01/2023,5690,,3111332198,-600.63,Turnstyle
http://statistics.data.gov.uk/id/local-authority/38,Oxfordshire County Council,Funded Nursing Care  - Over 65,11/01/2023,5692,,3111333278,-597.69,Caring Homes Healthcare Group Ltd
http://statistics.data.gov.uk/id/local-authority/38,Oxfordshire County Council,Funded Nursing Care  - Over 65,11/01/2023,5692,,3111332018,-597.69,Middletown Grange Care Home
http://statistics.data.gov.uk/id/local-authority/38,Oxfordshire County Council,Support at Home 65+ Physical Support,31/01/2023,5699,,3111343922,-585.90,All Care GB Ltd
http://statistics.data.gov.uk/id/local-authority/38,Oxfordshire County Council,FOSTERING MAIN,31/01/2023,5549,B*Fostering Allowance - Regulation 38,3111342582,-583.00,Personal Redacted Data
http://statistics.data.gov.uk/id/local-authority/38,Oxfordshire County Council,Support at Home 65+ Physical Support,31/01/2023,5699,,3111343914,-579.60,All Care GB Ltd
http://statistics.data.gov.uk/id/local-authority/38,Oxfordshire County Council,Support at Home U65 Physical Support,31/01/2023,5699,,3111343944,-579.60,All Care GB Ltd
http://statistics.data.gov.uk/id/local-authority/38,Oxfordshire County Council,AIDS & ADPT TEAM,20/01/2023,4450,Disability Aids and Equipment,2201071355,-577.50,Oxford University Hospitals NHS Tru
http://statistics.data.gov.uk/id/local-authority/38,Oxfordshire County Council,FOSTERING MAIN,17/01/2023,5549,B*Fostering Allowance - Regulation 38,3111335796,-568.28,Personal Redacted Data
http://statistics.data.gov.uk/id/local-authority/38,Oxfordshire County Council,Care Homes - Over 65 Memory & Cognition,11/01/2023,5687,,3111331875,-566.40,Lincroft Meadow
http://statistics.data.gov.uk/id/local-authority/38,Oxfordshire County Council,REAL COST ALLOWANCES,17/01/2023,5662,B*Christmas Allowance,3111336295,-565.31,Personal Redacted Data
http://statistics.data.gov.uk/id/local-authority/38,Oxfordshire County Council,Care Homes - Over 65 Leaning Disability,11/01/2023,5686,,3111333893,-564.76,Orders of St John
http://statistics.data.gov.uk/id/local-authority/38,Oxfordshire County Council,Continuing Care - Support at Home - 65+,25/01/2023,5691,,3111340098,-525.50,Golden Services
http://statistics.data.gov.uk/id/local-authority/38,Oxfordshire County Council,UASC 16&17,30/01/2023,5785,Client Lodgings and Accommodation,3111341729,-520.94,Response Organisation
http://statistics.data.gov.uk/id/local-authority/38,Oxfordshire County Council,Support at Home U65 Learning Disability,13/01/2023,5227,Other Transport Arrangements,3111335151,-520.00,24/7 LTD
http://statistics.data.gov.uk/id/local-authority/38,Oxfordshire County Council,Support at Home 65+ Physical Support,31/01/2023,5699,,3111343908,-514.80,All Care GB Ltd
http://statistics.data.gov.uk/id/local-authority/38,Oxfordshire County Council,Support at Home 65+ Mental Health,11/01/2023,5686,,3111331134,-514.29,Ferendune Court (Anchor Trust)
http://statistics.data.gov.uk/id/local-authority/38,Oxfordshire County Council,Support at Home 65+ Physical Support,03/01/2023,5699,,3111325589,-504.00,All Care GB Ltd
http://statistics.data.gov.uk/id/local-authority/38,Oxfordshire County Council,Housing & Growth Deal Capacity Funding,18/01/2023,4940,Other Services,2201070212,-500.00,Lee Hecht Harrison Penna Limited
http://statistics.data.gov.uk/id/local-authority/38,Oxfordshire County Council,Family Solutions Plus Non-staff - North,24/01/2023,5394,Other Expenses,3111338945,-500.00,OCC One Time Vendor
http://statistics.data.gov.uk/id/local-authority/38,Oxfordshire County Council,SEN Alternative Provision,18/01/2023,4861,Hired and Contracted Services,3111338533,-500.00,THE DARE2DREAM FOUNDATION
http://statistics.data.gov.uk/id/local-authority/38,Oxfordshire County Council,Councillors Priorities Fund,11/01/2023,4940,Other Services,3111328498,500.00,Chinnor Village Centre
http://statistics.data.gov.uk/id/local-authority/38,Oxfordshire County Council,Councillors Priorities Fund,11/01/2023,4940,Other Services,3111328500,500.00,Got2B Community Interest Company
http://statistics.data.gov.uk/id/local-authority/38,Oxfordshire County Council,Oxfordshire Adoption Support Fund,11/01/2023,4861,Hired and Contracted Services,2201067485,500.00,Graham Kennedy
http://statistics.data.gov.uk/id/local-authority/38,Oxfordshire County Council,Fostering Panel,20/01/2023,4861,Hired and Contracted Services,2201071179,500.00,Green Light People Solutions
http://statistics.data.gov.uk/id/local-authority/38,Oxfordshire County Council,Fostering Panel,20/01/2023,4861,Hired and Contracted Services,2201071184,500.00,Green Light People Solutions
http://statistics.data.gov.uk/id/local-authority/38,Oxfordshire County Council,Fostering Panel,20/01/2023,4861,Hired and Contracted Services,2201071185,500.00,Green Light People Solutions
http://statistics.data.gov.uk/id/local-authority/38,Oxfordshire County Council,Support at Home U65 Learning Disability,31/01/2023,5227,Other Transport Arrangements,3111341882,500.00,Her Ride Limited
http://statistics.data.gov.uk/id/local-authority/38,Oxfordshire County Council,Resources and Waste Partnership,20/01/2023,4861,Hired and Contracted Services,2201071356,500.00,INCPEN
http://statistics.data.gov.uk/id/local-authority/38,Oxfordshire County Council,Housing & Growth Deal Capacity Funding,13/01/2023,4940,Other Services,2201068682,500.00,Lee Hecht Harrison Penna Limited
http://statistics.data.gov.uk/id/local-authority/38,Oxfordshire County Council,LEGAL SERVICES,12/01/2023,5251,Legal Costs,2201068427,500.00,Maria Gallagher
http://statistics.data.gov.uk/id/local-authority/38,Oxfordshire County Council,LEGAL SERVICES,05/01/2023,5251,Legal Costs,2201065873,500.00,Mr J Turner
http://statistics.data.gov.uk/id/local-authority/38,Oxfordshire County Council,LAC PUPIL PREMIUM,11/01/2023,5380,"Author, Speaker and Lecturer Fees",2201067785,500.00,Nat Assoc of Virtual School Heads
http://statistics.data.gov.uk/id/local-authority/38,Oxfordshire County Council,L&D CORE PROGRAMME,13/01/2023,3105,Training related expenditure,3111335176,500.00,OCC One Time Vendor
http://statistics.data.gov.uk/id/local-authority/38,Oxfordshire County Council,Family Solutions Plus Non-staff - North,19/01/2023,5394,Other Expenses,3111338048,500.00,OCC One Time Vendor
http://statistics.data.gov.uk/id/local-authority/38,Oxfordshire County Council,Family Solutions Plus Non-staff - North,24/01/2023,5394,Other Expenses,3111338988,500.00,OCC One Time Vendor
http://statistics.data.gov.uk/id/local-authority/38,Oxfordshire County Council,,25/01/2023,1531,Cash Allocation Control Account,3111340578,500.00,OCC One Time Vendor
http://statistics.data.gov.uk/id/local-authority/38,Oxfordshire County Council,LANDLORD & TENANT,01/01/2023,3945,Rent,3500091586,500.00,Oxford City Council
http://statistics.data.gov.uk/id/local-authority/38,Oxfordshire County Council,Planned Maintenance,12/01/2023,4498,Health and Safety Equipment,2201068107,500.00,Oxford Security Services Ltd
http://statistics.data.gov.uk/id/local-authority/38,Oxfordshire County Council,Councillors Priorities Fund,11/01/2023,4940,Other Services,3111328501,500.00,Oxfordshire Play Association
http://statistics.data.gov.uk/id/local-authority/38,Oxfordshire County Council,Councillors Priorities Fund,17/01/2023,4940,Other Services,3111335567,500.00,Oxfordshire Play Association
http://statistics.data.gov.uk/id/local-authority/38,Oxfordshire County Council,Councillors Priorities Fund,17/01/2023,4940,Other Services,3111335569,500.00,Oxfordshire Play Association
http://statistics.data.gov.uk/id/local-authority/38,Oxfordshire County Council,LEAVING CARE NORTH,19/01/2023,3942,Hire of Accommodation and Facilities,3111338165,500.00,Personal Redacted Data
http://statistics.data.gov.uk/id/local-authority/38,Oxfordshire County Council,Virtual School Post 16 PPP,19/01/2023,5537,Payments to Other Establishments,3111338097,500.00,The Gallery Trust
http://statistics.data.gov.uk/id/local-authority/38,Oxfordshire County Council,LAC PUPIL PREMIUM,16/01/2023,5537,Payments to Other Establishments,3111335469,500.00,The Propeller Academy Trust
http://statistics.data.gov.uk/id/local-authority/38,Oxfordshire County Council,Family Solutions Plus Non-staff - North,03/01/2023,5394,Other Expenses,3500091720,500.00,Personal Redacted Data
http://statistics.data.gov.uk/id/local-authority/38,Oxfordshire County Council,Independent Foster,18/01/2023,5559,,3111338010,500.00,Young People at Heart
http://statistics.data.gov.uk/id/local-authority/38,Oxfordshire County Council,Support at Home 65+ Physical Support,03/01/2023,5689,,3111324995,500.01,Oxfordshire Crossroads
http://statistics.data.gov.uk/id/local-authority/38,Oxfordshire County Council,Support at Home U65 Learning Disability,31/01/2023,5689,,3111343391,500.16,Greigcare Home Service
http://statistics.data.gov.uk/id/local-authority/38,Oxfordshire County Council,VOIDS/VACANCY COSTS,11/01/2023,3945,Rent,3111330234,500.25,Oxford Citizens Housing Association
http://statistics.data.gov.uk/id/local-authority/38,Oxfordshire County Council,Support at Home U65 Physical Support,03/01/2023,5698,,3111324734,500.90,Acquire Care Ltd
http://statistics.data.gov.uk/id/local-authority/38,Oxfordshire County Council,NURSERY ED FUND,12/01/2023,5537,Payments to Other Establishments,3111334111,501.12,Katie Rebecca Hoare Childminder
http://statistics.data.gov.uk/id/local-authority/38,Oxfordshire County Council,FOSTERING MAIN,10/01/2023,5227,Other Transport Arrangements,3111328213,501.12,Personal Redacted Data
http://statistics.data.gov.uk/id/local-authority/38,Oxfordshire County Council,Support at Home U65 Learning Disability,11/01/2023,5690,,3111332285,501.14,Style Acre
http://statistics.data.gov.uk/id/local-authority/38,Oxfordshire County Council,SEN TRANSPORT,04/01/2023,4320,Pupil / Client Travel Reimbursement,3111326740,501.16,Personal Redacted Data
http://statistics.data.gov.uk/id/local-authority/38,Oxfordshire County Council,Swindon Adoption Support Fund,17/01/2023,4861,Hired and Contracted Services,2201069656,501.50,Hands Up Occupational Therapy
http://statistics.data.gov.uk/id/local-authority/38,Oxfordshire County Council,Support at Home U65 Physical Support,31/01/2023,5689,,3111343246,501.90,Bicester PA and Care LLP
http://statistics.data.gov.uk/id/local-authority/38,Oxfordshire County Council,FOSTERING MAIN,03/01/2023,5548,B*Fostering - Special Rates & Plus Amou,3111324539,501.98,Personal Redacted Data
http://statistics.data.gov.uk/id/local-authority/38,Oxfordshire County Council,FOSTERING MAIN,17/01/2023,5548,B*Fostering - Special Rates & Plus Amou,3111336227,501.98,Personal Redacted Data
http://statistics.data.gov.uk/id/local-authority/38,Oxfordshire County Council,Support at Home 65+ Physical Support,18/01/2023,5699,,3111337877,502.32,Alina Homecare Ltd
http://statistics.data.gov.uk/id/local-authority/38,Oxfordshire County Council,FAMILY TIME TEAM,18/01/2023,3942,Hire of Accommodation and Facilities,2201070331,502.50,Salvation Army Trustee Company
http://statistics.data.gov.uk/id/local-authority/38,Oxfordshire County Council,Support at Home 65+ Physical Support,19/01/2023,5696,,3111338360,502.74,Orders of St John Care Trust
http://statistics.data.gov.uk/id/local-authority/38,Oxfordshire County Council,POST 16 SEN,23/01/2023,4330,Transport to School Activities,3111339785,503.26,Autism Specialist Transport Ltd
http://statistics.data.gov.uk/id/local-authority/38,Oxfordshire County Council,Support at Home 65+ Mental Health,31/01/2023,5696,,3111342984,503.50,All Care GB Ltd
http://statistics.data.gov.uk/id/local-authority/38,Oxfordshire County Council,Support at Home 65+ Learning Disability,31/01/2023,5696,,3111343082,503.51,Radis Community Care
http://statistics.data.gov.uk/id/local-authority/38,Oxfordshire County Council,MAINSTREAM-PRIMARY,27/01/2023,4330,Transport to School Activities,3111341902,504.00,001 Alpha Cars Ltd
http://statistics.data.gov.uk/id/local-authority/38,Oxfordshire County Council,Support at Home 65+ Physical Support,03/01/2023,5693,,3111326351,504.00,A CARING HAND LTD
http://statistics.data.gov.uk/id/local-authority/38,Oxfordshire County Council,Support at Home U65 Other /Soc Isolation,17/01/2023,5899,Social Care - Direct Payments,3111336570,504.00,Personal Redacted Data
http://statistics.data.gov.uk/id/local-authority/38,Oxfordshire County Council,Support at Home 65+ Physical Support,31/01/2023,5699,,3111343782,504.00,CaringPlus Healthcare Services Ltd
http://statistics.data.gov.uk/id/local-authority/38,Oxfordshire County Council,Support at Home 65+ Physical Support,04/01/2023,5693,,3111326650,504.00,FLEXI DIRECT LTD
http://statistics.data.gov.uk/id/local-authority/38,Oxfordshire County Council,Support at Home U65 Physical Support,31/01/2023,5689,,3111343318,504.00,Golden Services Care Ltd
http://statistics.data.gov.uk/id/local-authority/38,Oxfordshire County Council,Support at Home U65 Physical Support,03/01/2023,5693,,3111326439,504.00,HEALTHCARE ACCESS LTD
http://statistics.data.gov.uk/id/local-authority/38,Oxfordshire County Council,SEN TRANSPORT,13/01/2023,4330,Transport to School Activities,3111335403,504.00,Her Ride Limited
http://statistics.data.gov.uk/id/local-authority/38,Oxfordshire County Council,Support at Home 65+ Physical Support,03/01/2023,5699,,3111325993,504.00,Mega Resources Ltd
http://statistics.data.gov.uk/id/local-authority/38,Oxfordshire County Council,Support at Home 65+ Physical Support,03/01/2023,5699,,3111325994,504.00,Mega Resources Ltd
http://statistics.data.gov.uk/id/local-authority/38,Oxfordshire County Council,Support at Home 65+ Physical Support,03/01/2023,5699,,3111325997,504.00,Mega Resources Ltd
http://statistics.data.gov.uk/id/local-authority/38,Oxfordshire County Council,Support at Home 65+ Physical Support,31/01/2023,5699,,3111344054,504.00,Mega Resources Ltd
http://statistics.data.gov.uk/id/local-authority/38,Oxfordshire County Council,Family Solutions Plus Non-staff - North,19/01/2023,5227,Other Transport Arrangements,3111338399,504.00,Phoenixx Cars Ltd
http://statistics.data.gov.uk/id/local-authority/38,Oxfordshire County Council,Support at Home 65+ Physical Support,03/01/2023,5699,,3111326069,504.00,PLL Care Services
http://statistics.data.gov.uk/id/local-authority/38,Oxfordshire County Council,Support at Home 65+ Physical Support,31/01/2023,5699,,3111344132,504.00,PLL Care Services
http://statistics.data.gov.uk/id/local-authority/38,Oxfordshire County Council,Support at Home 65+ Physical Support,18/01/2023,5693,,3111337771,504.00,SureCare Oxfordshire
http://statistics.data.gov.uk/id/local-authority/38,Oxfordshire County Council,Support at Home 65+ Memory & Cognition,03/01/2023,5699,,3111326293,504.00,YOD Ltd
http://statistics.data.gov.uk/id/local-authority/38,Oxfordshire County Council,Support at Home 65+ Memory & Cognition,31/01/2023,5699,,3111344366,504.00,YOD Ltd
http://statistics.data.gov.uk/id/local-authority/38,Oxfordshire County Council,ECH Central Costs,23/01/2023,5696,,3111338827,504.06,BPHA Limited
http://statistics.data.gov.uk/id/local-authority/38,Oxfordshire County Council,AGENCY RESID - DISAB,03/01/2023,5549,B*Fostering Allowance - Regulation 38,3111324402,504.28,Personal Redacted Data
http://statistics.data.gov.uk/id/local-authority/38,Oxfordshire County Council,SPECIAL GUARDIANSHIP,31/01/2023,5661,B*Carriageway pre surf. dressing patchin,3111343104,504.29,Personal Redacted Data
http://statistics.data.gov.uk/id/local-authority/38,Oxfordshire County Council,Support at Home U65 HFA,17/01/2023,5899,Social Care - Direct Payments,3111335917,504.32,Connection Support (Oxford)
http://statistics.data.gov.uk/id/local-authority/38,Oxfordshire County Council,Delegated Health Tasks  - Over 65,13/01/2023,5691,,3111335288,504.60,SureCare Oxfordshire
http://statistics.data.gov.uk/id/local-authority/38,Oxfordshire County Council,Support at Home 65+ Physical Support,03/01/2023,5689,,3111325138,504.84,Golden Services Care Ltd
http://statistics.data.gov.uk/id/local-authority/38,Oxfordshire County Council,Support at Home U65 Physical Support,06/01/2023,5696,,3111327305,504.97,Housing&care21
http://statistics.data.gov.uk/id/local-authority/38,Oxfordshire County Council,TRANSLATION,06/01/2023,5668,Technical and Professional Consultant F,2201066207,505.26,K International PLC
http://statistics.data.gov.uk/id/local-authority/38,Oxfordshire County Council,LEAVING CARE CITY 1,06/01/2023,5555,Payments to Carers,3500091863,505.79,Personal Redacted Data
http://statistics.data.gov.uk/id/local-authority/38,Oxfordshire County Council,LEAVING CARE CITY 1,13/01/2023,5555,Payments to Carers,3500092086,505.79,Personal Redacted Data
http://statistics.data.gov.uk/id/local-authority/38,Oxfordshire County Council,LEAVING CARE CITY 1,20/01/2023,5555,Payments to Carers,3500092258,505.79,Personal Redacted Data
http://statistics.data.gov.uk/id/local-authority/38,Oxfordshire County Council,LEAVING CARE CITY 1,27/01/2023,5555,Payments to Carers,3500092445,505.79,Personal Redacted Data
http://statistics.data.gov.uk/id/local-authority/38,Oxfordshire County Council,Support at Home U65 Learning Disability,17/01/2023,5899,Social Care - Direct Payments,3111337258,507.84,Purple Conversation Com In Co (DP)
http://statistics.data.gov.uk/id/local-authority/38,Oxfordshire County Council,SM DISABILITIES,26/01/2023,5554,Childrens' Social Care - Direct Payments,3111340717,508.00,Personal Redacted Data
http://statistics.data.gov.uk/id/local-authority/38,Oxfordshire County Council,SEN TRANSPORT,04/01/2023,4320,Pupil / Client Travel Reimbursement,3111326819,508.82,Personal Redacted Data
http://statistics.data.gov.uk/id/local-authority/38,Oxfordshire County Council,Support at Home U65 Physical Support,11/01/2023,5690,,3111329992,508.84,The Camden Society
http://statistics.data.gov.uk/id/local-authority/38,Oxfordshire County Council,Support at Home U65 Learning Disability,11/01/2023,5690,,3111330012,508.84,The Camden Society
http://statistics.data.gov.uk/id/local-authority/38,Oxfordshire County Council,Support at Home U65 Learning Disability,11/01/2023,5690,,3111330052,508.84,The Camden Society
http://statistics.data.gov.uk/id/local-authority/38,Oxfordshire County Council,2 YEAR OLD FUNDING,12/01/2023,5537,Payments to Other Establishments,3111334441,508.90,Kimberley Johns
http://statistics.data.gov.uk/id/local-authority/38,Oxfordshire County Council,Support at Home 65+ Physical Support,03/01/2023,5689,,3111325170,508.95,Greigcare Home Service
http://statistics.data.gov.uk/id/local-authority/38,Oxfordshire County Council,Family Solutions Plus Non-staff - Centra,27/01/2023,5227,Other Transport Arrangements,9300058728,509.08,OCC SS Oxford City Div 1 Cash
http://statistics.data.gov.uk/id/local-authority/38,Oxfordshire County Council,Support at Home U65 Learning Disability,24/01/2023,5227,Other Transport Arrangements,3111339760,510.00,BC CARS
http://statistics.data.gov.uk/id/local-authority/38,Oxfordshire County Council,TRANSPORT COSTS,03/01/2023,4330,Transport to School Activities,3111326308,510.00,Bicester Cars UK Ltd
http://statistics.data.gov.uk/id/local-authority/38,Oxfordshire County Council,ON ST PARK OXFD P&D,25/01/2023,4861,Hired and Contracted Services,2201072423,510.00,Flowbird Smart City
http://statistics.data.gov.uk/id/local-authority/38,Oxfordshire County Council,Youth Justice & Exploitation,25/01/2023,4330,Transport to School Activities,3111339896,510.00,The Oxfordshire Taxi Company Ltd T/
http://statistics.data.gov.uk/id/local-authority/38,Oxfordshire County Council,Support at Home 65+ Physical Support,13/01/2023,5693,,3111335087,510.30,Angel Care Group
http://statistics.data.gov.uk/id/local-authority/38,Oxfordshire County Council,Support at Home 65+ Physical Support,31/01/2023,5699,,3111343532,510.30,Calvary Care Ltd
http://statistics.data.gov.uk/id/local-authority/38,Oxfordshire County Council,Support at Home 65+ Physical Support,31/01/2023,5699,,3111343897,510.30,CaringPlus Healthcare Services Ltd
http://statistics.data.gov.uk/id/local-authority/38,Oxfordshire County Council,Support at Home 65+ Physical Support,04/01/2023,5693,,3111326697,510.30,Procare Healthcare Ltd
http://statistics.data.gov.uk/id/local-authority/38,Oxfordshire County Council,SEN TRANSPORT,23/01/2023,4314,"Other Trans Contract Costs (CRB, Car Sea",3111338803,510.72,BORJAN LTD
http://statistics.data.gov.uk/id/local-authority/38,Oxfordshire County Council,Support at Home U65 Learning Disability,03/01/2023,5689,,3111325162,510.72,Greigcare Home Service
http://statistics.data.gov.uk/id/local-authority/38,Oxfordshire County Council,LEGAL BUDGET,27/01/2023,5251,Legal Costs,2201073894,511.00,DNA WORLDWIDE GROUP
http://statistics.data.gov.uk/id/local-authority/38,Oxfordshire County Council,Support at Home 65+ Other /Soc Isolation,20/01/2023,5693,,3111338687,512.00,Personal Redacted Data
http://statistics.data.gov.uk/id/local-authority/38,Oxfordshire County Council,LAC PUPIL PREMIUM,16/01/2023,5537,Payments to Other Establishments,3111335518,512.00,Nightingale Primary School
http://statistics.data.gov.uk/id/local-authority/38,Oxfordshire County Council,LAC PUPIL PREMIUM,16/01/2023,5537,Payments to Other Establishments,3111335519,512.00,Nightingale Primary School
http://statistics.data.gov.uk/id/local-authority/38,Oxfordshire County Council,Support at Home U65 Learning Disability,17/01/2023,5899,Social Care - Direct Payments,3111337038,512.16,Purple Conversation Com In Co (DP)
http://statistics.data.gov.uk/id/local-authority/38,Oxfordshire County Council,Support at Home 65+ Physical Support,31/01/2023,5689,,3111342805,512.28,Care Outlook Ltd
http://statistics.data.gov.uk/id/local-authority/38,Oxfordshire County Council,Community Support Service Oxford,06/01/2023,2040,Agency Staff,2201065975,512.40,Completely Care Ltd
http://statistics.data.gov.uk/id/local-authority/38,Oxfordshire County Council,Community Support Service - Witney,19/01/2023,2040,Agency Staff,2201070746,512.40,Completely Care Ltd
http://statistics.data.gov.uk/id/local-authority/38,Oxfordshire County Council,Support at Home U65 Physical Support,27/01/2023,5693,,3111341166,512.50,HEALTHCARE ACCESS LTD
http://statistics.data.gov.uk/id/local-authority/38,Oxfordshire County Council,Support at Home U65 Learning Disability,17/01/2023,5899,Social Care - Direct Payments,3111336617,514.12,Personal Redacted Data
http://statistics.data.gov.uk/id/local-authority/38,Oxfordshire County Council,CHC Fast Track - Care Homes - Over 65,11/01/2023,5687,,3111330980,514.29,CUMNOR HILL HOUSE
http://statistics.data.gov.uk/id/local-authority/38,Oxfordshire County Council,Care Homes - Over 65 Memory & Cognition,11/01/2023,5687,,3111330157,514.29,METHODIST HOMES
http://statistics.data.gov.uk/id/local-authority/38,Oxfordshire County Council,VOIDS/VACANCY COSTS,11/01/2023,3945,Rent,3111330228,515.22,Oxford Citizens Housing Association
http://statistics.data.gov.uk/id/local-authority/38,Oxfordshire County Council,VOIDS/VACANCY COSTS,11/01/2023,3945,Rent,3111330231,515.22,Oxford Citizens Housing Association
http://statistics.data.gov.uk/id/local-authority/38,Oxfordshire County Council,SERVICE DELIVERY,23/01/2023,4685,Clothing and Uniforms,2201071630,515.40,Oxford Safety Supplies
http://statistics.data.gov.uk/id/local-authority/38,Oxfordshire County Council,Support at Home U65 Mental Health,17/01/2023,5899,Social Care - Direct Payments,3111337394,515.68,Purple Conversation Com In Co (DP)
http://statistics.data.gov.uk/id/local-authority/38,Oxfordshire County Council,FAM GRP CONFERENCES,20/01/2023,4940,Other Services,2201071375,515.70,Shellie Keen
http://statistics.data.gov.uk/id/local-authority/38,Oxfordshire County Council,Support at Home U65 Learning Disability,12/01/2023,5227,Other Transport Arrangements,3111334895,516.00,Ali's Cabs
http://statistics.data.gov.uk/id/local-authority/38,Oxfordshire County Council,Oxfordshire Adoption Support Fund,27/01/2023,4861,Hired and Contracted Services,2201073297,516.00,SWAAY
http://statistics.data.gov.uk/id/local-authority/38,Oxfordshire County Council,Support at Home U65 Mental Health,03/01/2023,5689,,3111325432,516.18,Response Organisation
http://statistics.data.gov.uk/id/local-authority/38,Oxfordshire County Council,Support at Home 65+ Physical Support,27/01/2023,5693,,3111341128,516.21,The Caring Company (Oxon)
http://statistics.data.gov.uk/id/local-authority/38,Oxfordshire County Council,Support at Home U65 Other /Soc Isolation,17/01/2023,5899,Social Care - Direct Payments,3111337331,516.24,Purple Conversation Com In Co (DP)
http://statistics.data.gov.uk/id/local-authority/38,Oxfordshire County Council,Support at Home 65+ Memory & Cognition,11/01/2023,5690,,3111331997,516.37,Daybreak Oxford
http://statistics.data.gov.uk/id/local-authority/38,Oxfordshire County Council,Support at Home 65+ Memory & Cognition,11/01/2023,5690,,3111331999,516.37,Daybreak Oxford
http://statistics.data.gov.uk/id/local-authority/38,Oxfordshire County Council,Support at Home U65 Mental Health,03/01/2023,5699,,3111325679,516.60,Bridges Home Care Ltd
http://statistics.data.gov.uk/id/local-authority/38,Oxfordshire County Council,Support at Home 65+ Physical Support,31/01/2023,5699,,3111343758,516.60,CaringPlus Healthcare Services Ltd
http://statistics.data.gov.uk/id/local-authority/38,Oxfordshire County Council,Support at Home 65+ Physical Support,31/01/2023,5699,,3111343999,516.60,Greigcare Home Service
http://statistics.data.gov.uk/id/local-authority/38,Oxfordshire County Council,Support at Home 65+ Physical Support,03/01/2023,5693,,3111326440,516.60,HEALTHCARE ACCESS LTD
http://statistics.data.gov.uk/id/local-authority/38,Oxfordshire County Council,Support at Home 65+ Memory & Cognition,31/01/2023,5699,,3111344066,516.60,Mega Resources Ltd
http://statistics.data.gov.uk/id/local-authority/38,Oxfordshire County Council,DEVELOPMENT MANAGEME,13/01/2023,4790,"Publicity, Promotions and Advertisement",2201068489,516.71,PEOPLESCOUT LIMITED
http://statistics.data.gov.uk/id/local-authority/38,Oxfordshire County Council,Support at Home 65+ Physical Support,31/01/2023,5698,,3111343019,516.78,Day & Night Care Assistance
http://statistics.data.gov.uk/id/local-authority/38,Oxfordshire County Council,Support at Home U65 Learning Disability,11/01/2023,5690,,3111329914,517.35,MacIntyre Care (Womaston)
http://statistics.data.gov.uk/id/local-authority/38,Oxfordshire County Council,Support at Home U65 Learning Disability,03/01/2023,5689,,3111325134,517.44,Golden Services Care Ltd
http://statistics.data.gov.uk/id/local-authority/38,Oxfordshire County Council,Support at Home 65+ Mental Health,31/01/2023,5698,,3111343791,517.79,Oxford Private Care
http://statistics.data.gov.uk/id/local-authority/38,Oxfordshire County Council,PROCUREMENT,10/01/2023,4232,Vehicle Fuel,2201066978,519.08,Certas Energy UK Ltd
http://statistics.data.gov.uk/id/local-authority/38,Oxfordshire County Council,PROCUREMENT,10/01/2023,4232,Vehicle Fuel,2201066979,519.08,Certas Energy UK Ltd
http://statistics.data.gov.uk/id/local-authority/38,Oxfordshire County Council,Support at Home 65+ Physical Support,03/01/2023,5698,,3111325291,519.16,Oxford Private Care
http://statistics.data.gov.uk/id/local-authority/38,Oxfordshire County Council,Support at Home 65+ Learning Disability,19/01/2023,5696,,3111338300,519.24,Orders of St John Care Trust
http://statistics.data.gov.uk/id/local-authority/38,Oxfordshire County Council,Support at Home U65 Physical Support,19/01/2023,5696,,3111338335,519.24,Orders of St John Care Trust
http://statistics.data.gov.uk/id/local-authority/38,Oxfordshire County Council,Support at Home U65 Physical Support,19/01/2023,5696,,3111338337,519.24,Orders of St John Care Trust
http://statistics.data.gov.uk/id/local-authority/38,Oxfordshire County Council,Support at Home 65+ Learning Disability,19/01/2023,5696,,3111338344,519.24,Orders of St John Care Trust
http://statistics.data.gov.uk/id/local-authority/38,Oxfordshire County Council,Support at Home 65+ Physical Support,03/01/2023,5689,,3111325434,519.28,Response Organisation
http://statistics.data.gov.uk/id/local-authority/38,Oxfordshire County Council,Support at Home 65+ Physical Support,31/01/2023,5689,,3111342895,519.30,Caremark (West Oxfordshire & Cherwe
http://statistics.data.gov.uk/id/local-authority/38,Oxfordshire County Council,ON ST PARK OXFD P&D,26/01/2023,4861,Hired and Contracted Services,2201072826,519.37,Flowbird Smart City
http://statistics.data.gov.uk/id/local-authority/38,Oxfordshire County Council,Support at Home 65+ Mental Health,17/01/2023,5899,Social Care - Direct Payments,3111335957,519.84,Personal Redacted Data
http://statistics.data.gov.uk/id/local-authority/38,Oxfordshire County Council,Support at Home U65 Learning Disability,17/01/2023,5899,Social Care - Direct Payments,3111337009,519.88,Purple Conversation Com In Co (DP)
http://statistics.data.gov.uk/id/local-authority/38,Oxfordshire County Council,Support at Home U65 MH OBC Contract,17/01/2023,5899,Social Care - Direct Payments,3111337599,519.92,Purple Conversation Com In Co (DP)
http://statistics.data.gov.uk/id/local-authority/38,Oxfordshire County Council,Support at Home 65+ Physical Support,03/01/2023,5689,,3111325240,519.96,My Carer Ltd
http://statistics.data.gov.uk/id/local-authority/38,Oxfordshire County Council,Support at Home U65 Learning Disability,13/01/2023,5227,Other Transport Arrangements,3111335153,520.00,24 Seven Cars (Oxford) Ltd
http://statistics.data.gov.uk/id/local-authority/38,Oxfordshire County Council,Support at Home U65 Learning Disability,11/01/2023,5227,Other Transport Arrangements,3111329348,520.00,24/7 LTD
http://statistics.data.gov.uk/id/local-authority/38,Oxfordshire County Council,Support at Home 65+ Physical Support,06/01/2023,5693,,3111327317,520.38,AVR (Oxon) Ltd
http://statistics.data.gov.uk/id/local-authority/38,Oxfordshire County Council,Support at Home 65+ Physical Support,31/01/2023,5698,,3111343787,520.52,Oxford Private Care
http://statistics.data.gov.uk/id/local-authority/38,Oxfordshire County Council,Support at Home U65 HFA,17/01/2023,5899,Social Care - Direct Payments,3111337352,520.56,Purple Conversation Com In Co (DP)
http://statistics.data.gov.uk/id/local-authority/38,Oxfordshire County Council,Support at Home U65 MH OBC Contract,17/01/2023,5899,Social Care - Direct Payments,3111337430,520.56,Purple Conversation Com In Co (DP)
http://statistics.data.gov.uk/id/local-authority/38,Oxfordshire County Council,Support at Home 65+ Learning Disability,17/01/2023,5899,Social Care - Direct Payments,3111337515,520.56,Purple Conversation Com In Co (DP)
http://statistics.data.gov.uk/id/local-authority/38,Oxfordshire County Council,Support at Home U65 Physical Support,17/01/2023,5899,Social Care - Direct Payments,3111337559,520.56,Purple Conversation Com In Co (DP)
http://statistics.data.gov.uk/id/local-authority/38,Oxfordshire County Council,Support at Home 65+ Learning Disability,11/01/2023,5690,,3111329871,521.07,HF TRUST Ltd
http://statistics.data.gov.uk/id/local-authority/38,Oxfordshire County Council,Support at Home U65 Physical Support,19/01/2023,5696,,3111338394,521.37,Orders of St John Care Trust
http://statistics.data.gov.uk/id/local-authority/38,Oxfordshire County Council,SEN TRANSPORT,04/01/2023,4320,Pupil / Client Travel Reimbursement,3111326802,521.84,Personal Redacted Data
http://statistics.data.gov.uk/id/local-authority/38,Oxfordshire County Council,FLEET MAINTENANCE,03/01/2023,4495,IT Software,2201065016,522.00,C Track UK
http://statistics.data.gov.uk/id/local-authority/38,Oxfordshire County Council,TRANSPORT COSTS,27/01/2023,5227,Other Transport Arrangements,3111341407,522.00,Her Ride Limited
http://statistics.data.gov.uk/id/local-authority/38,Oxfordshire County Council,SEN TRANSPORT,04/01/2023,4320,Pupil / Client Travel Reimbursement,3111326814,522.09,Personal Redacted Data
http://statistics.data.gov.uk/id/local-authority/38,Oxfordshire County Council,Support at Home U65 Learning Disability,18/01/2023,5227,Other Transport Arrangements,3111337859,522.20,Unitaxi Ltd
http://statistics.data.gov.uk/id/local-authority/38,Oxfordshire County Council,Support at Home U65 Mental Health,19/01/2023,5696,,3111338372,522.22,Orders of St John Care Trust
http://statistics.data.gov.uk/id/local-authority/38,Oxfordshire County Council,Support at Home 65+ Physical Support,19/01/2023,5696,,3111338294,522.33,Orders of St John Care Trust
http://statistics.data.gov.uk/id/local-authority/38,Oxfordshire County Council,POST 16 SEN,25/01/2023,4330,Transport to School Activities,3111341500,522.50,The Oxfordshire Taxi Company Ltd T/
http://statistics.data.gov.uk/id/local-authority/38,Oxfordshire County Council,Community Support Service - Witney,19/01/2023,2040,Agency Staff,2201070747,523.08,Completely Care Ltd
http://statistics.data.gov.uk/id/local-authority/38,Oxfordshire County Council,STI TESTING+TREATMEN,26/01/2023,4940,Other Services,3111340828,523.13,George Eliot Hospital NHS Trust
http://statistics.data.gov.uk/id/local-authority/38,Oxfordshire County Council,COMM DRAWDOWN FUNDNG,17/01/2023,8004,Design Consultant,2201070069,523.40,Milestone Infrastructure Limited
http://statistics.data.gov.uk/id/local-authority/38,Oxfordshire County Council,Support at Home U65 Learning Disability,17/01/2023,5899,Social Care - Direct Payments,3111337184,523.48,Purple Conversation Com In Co (DP)
http://statistics.data.gov.uk/id/local-authority/38,Oxfordshire County Council,Support at Home 65+ Physical Support,31/01/2023,5689,,3111343575,523.63,PLL Care Services
http://statistics.data.gov.uk/id/local-authority/38,Oxfordshire County Council,FOSTERING MAIN,24/01/2023,5549,B*Fostering Allowance - Regulation 38,3111339578,523.90,Personal Redacted Data
http://statistics.data.gov.uk/id/local-authority/38,Oxfordshire County Council,STI TESTING+TREATMEN,12/01/2023,4940,Other Services,3111335033,524.00,Berkshire Healthcare NHS Trust
http://statistics.data.gov.uk/id/local-authority/38,Oxfordshire County Council,SEN TRANSPORT,04/01/2023,4320,Pupil / Client Travel Reimbursement,3111326818,524.48,Personal Redacted Data
http://statistics.data.gov.uk/id/local-authority/38,Oxfordshire County Council,SM DISABILITIES,26/01/2023,5554,Childrens' Social Care - Direct Payments,3111340771,524.60,Purple Conversation Com In Co (DP)
http://statistics.data.gov.uk/id/local-authority/38,Oxfordshire County Council,Support at Home 65+ Physical Support,03/01/2023,5698,,3111325035,524.62,Day & Night Care Assistance
http://statistics.data.gov.uk/id/local-authority/38,Oxfordshire County Council,Support at Home 65+ Physical Support,03/01/2023,5689,,3111324968,524.66,Caremark (West Oxfordshire & Cherwe
http://statistics.data.gov.uk/id/local-authority/38,Oxfordshire County Council,East Oxfordshire Team,25/01/2023,5227,Other Transport Arrangements,3111339848,524.99,The Oxfordshire Taxi Company Ltd T/
http://statistics.data.gov.uk/id/local-authority/38,Oxfordshire County Council,Support at Home U65 Memory & Cognition,04/01/2023,5697,,3111326653,525.00,Headway Oxford
http://statistics.data.gov.uk/id/local-authority/38,Oxfordshire County Council,Support at Home U65 Physical Support,04/01/2023,5697,,3111326655,525.00,Headway Oxford
http://statistics.data.gov.uk/id/local-authority/38,Oxfordshire County Council,Support at Home U65 Physical Support,04/01/2023,5697,,3111326656,525.00,Headway Oxford
http://statistics.data.gov.uk/id/local-authority/38,Oxfordshire County Council,Support at Home U65 Physical Support,04/01/2023,5697,,3111326658,525.00,Headway Oxford
http://statistics.data.gov.uk/id/local-authority/38,Oxfordshire County Council,Support at Home U65 Memory & Cognition,04/01/2023,5697,,3111326659,525.00,Headway Oxford
http://statistics.data.gov.uk/id/local-authority/38,Oxfordshire County Council,Support at Home U65 Physical Support,11/01/2023,5697,,3111328769,525.00,Headway Oxford
http://statistics.data.gov.uk/id/local-authority/38,Oxfordshire County Council,Support at Home 65+ Physical Support,31/01/2023,5699,,3111344273,525.00,Healthcare Evolution Ltd
http://statistics.data.gov.uk/id/local-authority/38,Oxfordshire County Council,Support at Home U65 Learning Disability,09/01/2023,5227,Other Transport Arrangements,3111327571,525.00,Oxford Cab LTD
http://statistics.data.gov.uk/id/local-authority/38,Oxfordshire County Council,Support at Home 65+ Physical Support,03/01/2023,5689,,3111325339,525.29,PLL Care Services
http://statistics.data.gov.uk/id/local-authority/38,Oxfordshire County Council,Support at Home 65+ Physical Support,31/01/2023,5689,,3111343577,525.29,PLL Care Services
http://statistics.data.gov.uk/id/local-authority/38,Oxfordshire County Council,SEN TRANSPORT,12/01/2023,4320,Pupil / Client Travel Reimbursement,3111334776,526.50,Personal Redacted Data
http://statistics.data.gov.uk/id/local-authority/38,Oxfordshire County Council,UASC 16&17,31/01/2023,5415,Residential Activities,9300058783,526.60,OCC SS Oxford City Div 1 Cash
http://statistics.data.gov.uk/id/local-authority/38,Oxfordshire County Council,LEAVING CARE NORTH,19/01/2023,4540,"Educational Supplies, Stationery & Mater",3111338172,526.98,Personal Redacted Data
http://statistics.data.gov.uk/id/local-authority/38,Oxfordshire County Council,Support at Home 65+ Physical Support,31/01/2023,5689,,3111342918,527.36,Oxfordshire Crossroads
http://statistics.data.gov.uk/id/local-authority/38,Oxfordshire County Council,Support at Home U65 Learning Disability,31/01/2023,5689,,3111343321,527.52,Golden Services Care Ltd
http://statistics.data.gov.uk/id/local-authority/38,Oxfordshire County Council,SERVICE DELIVERY,03/01/2023,4685,Clothing and Uniforms,2201064931,527.70,Oxford Safety Supplies
http://statistics.data.gov.uk/id/local-authority/38,Oxfordshire County Council,Support at Home 65+ Physical Support,03/01/2023,5689,,3111325103,527.78,Elite Care Agency
http://statistics.data.gov.uk/id/local-authority/38,Oxfordshire County Council,FOSTERING MAIN,24/01/2023,5227,Other Transport Arrangements,3111339388,527.81,Personal Redacted Data
http://statistics.data.gov.uk/id/local-authority/38,Oxfordshire County Council,Community Support Service Bicester,31/01/2023,5227,Other Transport Arrangements,3111341881,528.00,Bicester Cars UK Ltd
http://statistics.data.gov.uk/id/local-authority/38,Oxfordshire County Council,Support at Home U65 Mental Health,10/01/2023,5899,Social Care - Direct Payments,3111328361,528.00,Personal Redacted Data
http://statistics.data.gov.uk/id/local-authority/38,Oxfordshire County Council,Support at Home U65 Learning Disability,11/01/2023,5690,,3111329815,528.11,ADVANCE HOUSING & SUPPORT LTD
http://statistics.data.gov.uk/id/local-authority/38,Oxfordshire County Council,Support at Home U65 Physical Support,11/01/2023,5690,,3111329853,528.11,ADVANCE HOUSING & SUPPORT LTD
http://statistics.data.gov.uk/id/local-authority/38,Oxfordshire County Council,Support at Home U65 Physical Support,31/01/2023,5689,,3111343487,528.71,My Carer Ltd
http://statistics.data.gov.uk/id/local-authority/38,Oxfordshire County Council,FOSTERING MAIN,03/01/2023,5549,B*Fostering Allowance - Regulation 38,3111324552,529.00,Personal Redacted Data
http://statistics.data.gov.uk/id/local-authority/38,Oxfordshire County Council,FOSTERING MAIN,10/01/2023,5549,B*Fostering Allowance - Regulation 38,3111328130,529.00,Personal Redacted Data
http://statistics.data.gov.uk/id/local-authority/38,Oxfordshire County Council,FOSTERING MAIN,17/01/2023,5549,B*Fostering Allowance - Regulation 38,3111335823,529.00,Personal Redacted Data
http://statistics.data.gov.uk/id/local-authority/38,Oxfordshire County Council,FOSTERING MAIN,24/01/2023,5549,B*Fostering Allowance - Regulation 38,3111339558,529.00,Personal Redacted Data
http://statistics.data.gov.uk/id/local-authority/38,Oxfordshire County Council,FOSTERING MAIN,31/01/2023,5549,B*Fostering Allowance - Regulation 38,3111342264,529.00,Personal Redacted Data
http://statistics.data.gov.uk/id/local-authority/38,Oxfordshire County Council,Support at Home U65 Physical Support,03/01/2023,5693,,3111326337,529.20,A CARING HAND LTD
http://statistics.data.gov.uk/id/local-authority/38,Oxfordshire County Council,Support at Home 65+ Physical Support,03/01/2023,5693,,3111326342,529.20,A CARING HAND LTD
http://statistics.data.gov.uk/id/local-authority/38,Oxfordshire County Council,Support at Home 65+ Physical Support,04/01/2023,5693,,3111326620,529.20,A CARING HAND LTD
http://statistics.data.gov.uk/id/local-authority/38,Oxfordshire County Council,Support at Home 65+ Physical Support,31/01/2023,5699,,3111343295,529.20,Abi-Support Ltd
http://statistics.data.gov.uk/id/local-authority/38,Oxfordshire County Council,Support at Home 65+ Mental Health,03/01/2023,5699,,3111325628,529.20,Adult Transition Services Ltd (ATrS
http://statistics.data.gov.uk/id/local-authority/38,Oxfordshire County Council,Support at Home 65+ Physical Support,03/01/2023,5699,,3111325598,529.20,Agincare UK Ltd
http://statistics.data.gov.uk/id/local-authority/38,Oxfordshire County Council,Support at Home 65+ Physical Support,06/01/2023,5693,,3111327231,529.20,Angel Care Group
http://statistics.data.gov.uk/id/local-authority/38,Oxfordshire County Council,Support at Home 65+ Memory & Cognition,06/01/2023,5693,,3111327250,529.20,Angel Care Group
http://statistics.data.gov.uk/id/local-authority/38,Oxfordshire County Council,Support at Home 65+ Physical Support,25/01/2023,5693,,3111340118,529.20,Angel Care Group
http://statistics.data.gov.uk/id/local-authority/38,Oxfordshire County Council,Support at Home 65+ Memory & Cognition,25/01/2023,5693,,3111340133,529.20,Angel Care Group
http://statistics.data.gov.uk/id/local-authority/38,Oxfordshire County Council,Support at Home 65+ Memory & Cognition,03/01/2023,5693,,3111326370,529.20,BETTER LIFE CARE LTD
http://statistics.data.gov.uk/id/local-authority/38,Oxfordshire County Council,Support at Home 65+ Physical Support,27/01/2023,5693,,3111341122,529.20,Bolff Healthcare Services Ltd
http://statistics.data.gov.uk/id/local-authority/38,Oxfordshire County Council,Support at Home U65 MH OBC Contract,31/01/2023,5899,Social Care - Direct Payments,3111343452,529.20,Bridges Home Care Ltd
http://statistics.data.gov.uk/id/local-authority/38,Oxfordshire County Council,Support at Home 65+ Physical Support,03/01/2023,5699,,3111325775,529.20,Care Hearted Ltd
http://statistics.data.gov.uk/id/local-authority/38,Oxfordshire County Council,Support at Home 65+ Physical Support,03/01/2023,5699,,3111325777,529.20,Care Hearted Ltd
http://statistics.data.gov.uk/id/local-authority/38,Oxfordshire County Council,Support at Home 65+ Physical Support,31/01/2023,5699,,3111343630,529.20,Care Hearted Ltd
http://statistics.data.gov.uk/id/local-authority/38,Oxfordshire County Council,Support at Home 65+ Physical Support,03/01/2023,5699,,3111325805,529.20,Care Outlook Ltd
http://statistics.data.gov.uk/id/local-authority/38,Oxfordshire County Council,Support at Home 65+ Physical Support,03/01/2023,5699,,3111325823,529.20,CaringPlus Healthcare Services Ltd
http://statistics.data.gov.uk/id/local-authority/38,Oxfordshire County Council,Support at Home U65 Physical Support,03/01/2023,5699,,3111325833,529.20,CaringPlus Healthcare Services Ltd
http://statistics.data.gov.uk/id/local-authority/38,Oxfordshire County Council,Support at Home U65 Physical Support,03/01/2023,5699,,3111325834,529.20,CaringPlus Healthcare Services Ltd
http://statistics.data.gov.uk/id/local-authority/38,Oxfordshire County Council,Support at Home 65+ Mental Health,31/01/2023,5699,,3111343734,529.20,CaringPlus Healthcare Services Ltd
http://statistics.data.gov.uk/id/local-authority/38,Oxfordshire County Council,Support at Home 65+ Physical Support,31/01/2023,5699,,3111343880,529.20,CaringPlus Healthcare Services Ltd
http://statistics.data.gov.uk/id/local-authority/38,Oxfordshire County Council,Support at Home 65+ Physical Support,11/01/2023,5693,,3111328720,529.20,Direct Link Care Ltd
http://statistics.data.gov.uk/id/local-authority/38,Oxfordshire County Council,Support at Home 65+ Physical Support,04/01/2023,5693,,3111326645,529.20,FLEXI DIRECT LTD
http://statistics.data.gov.uk/id/local-authority/38,Oxfordshire County Council,Support at Home 65+ Memory & Cognition,20/01/2023,5693,,3111338689,529.20,GET CARE LIMITED
http://statistics.data.gov.uk/id/local-authority/38,Oxfordshire County Council,Support at Home 65+ Physical Support,31/01/2023,5689,,3111343312,529.20,Golden Services Care Ltd
http://statistics.data.gov.uk/id/local-authority/38,Oxfordshire County Council,Support at Home 65+ Physical Support,25/01/2023,5693,,3111340182,529.20,JMC Care Solutions Limited
http://statistics.data.gov.uk/id/local-authority/38,Oxfordshire County Council,Support at Home 65+ Physical Support,04/01/2023,5693,,3111326675,529.20,Kwikfix Recruitment Services Ltd
http://statistics.data.gov.uk/id/local-authority/38,Oxfordshire County Council,Support at Home 65+ Physical Support,11/01/2023,5693,,3111328755,529.20,Oxford Private Care
http://statistics.data.gov.uk/id/local-authority/38,Oxfordshire County Council,Support at Home 65+ Physical Support,27/01/2023,5693,,3111341183,529.20,Oxford Private Care
http://statistics.data.gov.uk/id/local-authority/38,Oxfordshire County Council,Support at Home 65+ Memory & Cognition,03/01/2023,5699,,3111326034,529.20,Pechiv Ltd
http://statistics.data.gov.uk/id/local-authority/38,Oxfordshire County Council,Support at Home 65+ Physical Support,03/01/2023,5699,,3111326136,529.20,PLL Care Services
http://statistics.data.gov.uk/id/local-authority/38,Oxfordshire County Council,Support at Home 65+ Physical Support,31/01/2023,5699,,3111344126,529.20,PLL Care Services
http://statistics.data.gov.uk/id/local-authority/38,Oxfordshire County Council,Support at Home 65+ Memory & Cognition,31/01/2023,5699,,3111344195,529.20,PLL Care Services
http://statistics.data.gov.uk/id/local-authority/38,Oxfordshire County Council,Support at Home U65 Physical Support,11/01/2023,5693,,3111328765,529.20,Procare Healthcare Ltd
http://statistics.data.gov.uk/id/local-authority/38,Oxfordshire County Council,Support at Home 65+ Physical Support,25/01/2023,5693,,3111340233,529.20,Same Ways Care Ltd
http://statistics.data.gov.uk/id/local-authority/38,Oxfordshire County Council,Support at Home 65+ Physical Support,31/01/2023,5699,,3111344260,529.20,SIETE LTD
http://statistics.data.gov.uk/id/local-authority/38,Oxfordshire County Council,Support at Home 65+ Physical Support,31/01/2023,5699,,3111344268,529.20,SIETE LTD
http://statistics.data.gov.uk/id/local-authority/38,Oxfordshire County Council,Support at Home U65 Learning Disability,03/01/2023,5699,,3111326213,529.20,Vine Living
http://statistics.data.gov.uk/id/local-authority/38,Oxfordshire County Council,Support at Home 65+ Physical Support,03/01/2023,5699,,3111326237,529.20,Xperience Recruitment Ltd
http://statistics.data.gov.uk/id/local-authority/38,Oxfordshire County Council,Support at Home 65+ Physical Support,31/01/2023,5699,,3111344314,529.20,Xperience Recruitment Ltd
http://statistics.data.gov.uk/id/local-authority/38,Oxfordshire County Council,Support at Home 65+ Physical Support,03/01/2023,5699,,3111326242,529.20,YOD Ltd
http://statistics.data.gov.uk/id/local-authority/38,Oxfordshire County Council,Support at Home 65+ Physical Support,31/01/2023,5699,,3111344319,529.20,YOD Ltd
http://statistics.data.gov.uk/id/local-authority/38,Oxfordshire County Council,Support at Home 65+ Physical Support,03/01/2023,5689,,3111324953,530.02,Caremark (West Oxfordshire & Cherwe
http://statistics.data.gov.uk/id/local-authority/38,Oxfordshire County Council,Support at Home U65 Learning Disability,11/01/2023,5690,,3111332011,531.43,FIT (Farm Inspiration Trust)
http://statistics.data.gov.uk/id/local-authority/38,Oxfordshire County Council,CHC Fast Track - Sup at Homes - Over 65,25/01/2023,5691,,3111340526,531.50,Bolff Healthcare Services Ltd
http://statistics.data.gov.uk/id/local-authority/38,Oxfordshire County Council,CHC Fast Track - Sup at Home - Under 65,26/01/2023,5691,,3111340892,532.00,Bicester PA and Care LLP
http://statistics.data.gov.uk/id/local-authority/38,Oxfordshire County Council,Delegated Health Tasks  - Over 65,13/01/2023,5691,,3111335321,532.00,Prime Social Care Services Ltd
http://statistics.data.gov.uk/id/local-authority/38,Oxfordshire County Council,Support at Home U65 Physical Support,17/01/2023,5899,Social Care - Direct Payments,3111336904,532.44,Personal Redacted Data
http://statistics.data.gov.uk/id/local-authority/38,Oxfordshire County Council,SM DISABILITIES,26/01/2023,5554,Childrens' Social Care - Direct Payments,3111340796,532.44,Purple Conversation Com In Co (DP)
http://statistics.data.gov.uk/id/local-authority/38,Oxfordshire County Council,LIBRARY COLLECTIONS,16/01/2023,4539,"Books, DVDs and CDs",3111335436,532.71,ASKEWS & HOLTS LIBRARY SERVICES LTD
http://statistics.data.gov.uk/id/local-authority/38,Oxfordshire County Council,Support at Home 65+ Learning Disability,31/01/2023,5689,,3111343401,533.07,Greigcare Home Service
http://statistics.data.gov.uk/id/local-authority/38,Oxfordshire County Council,Support at Home U65 Physical Support,03/01/2023,5689,,3111325225,533.45,My Carer Ltd
http://statistics.data.gov.uk/id/local-authority/38,Oxfordshire County Council,Support at Home 65+ Physical Support,31/01/2023,5696,,3111343260,533.71,All Care GB Ltd
http://statistics.data.gov.uk/id/local-authority/38,Oxfordshire County Council,Property Cleaning,20/01/2023,4060,Cleaning Materials,2201071354,533.95,Seldram Supplies
http://statistics.data.gov.uk/id/local-authority/38,Oxfordshire County Council,Family Solutions Plus Non-staff - Centra,06/01/2023,5394,Other Expenses,3500091849,534.00,Personal Redacted Data
http://statistics.data.gov.uk/id/local-authority/38,Oxfordshire County Council,Support at Home U65 Physical Support,25/01/2023,5693,,3111340164,534.08,Helping Hands
http://statistics.data.gov.uk/id/local-authority/38,Oxfordshire County Council,Support at Home U65 Physical Support,25/01/2023,5693,,3111340165,534.08,Helping Hands
http://statistics.data.gov.uk/id/local-authority/38,Oxfordshire County Council,Support at Home U65 Physical Support,25/01/2023,5693,,3111340167,534.08,Helping Hands
http://statistics.data.gov.uk/id/local-authority/38,Oxfordshire County Council,Support at Home U65 Physical Support,25/01/2023,5693,,3111340168,534.08,Helping Hands
http://statistics.data.gov.uk/id/local-authority/38,Oxfordshire County Council,POST 16 SEN,04/01/2023,4320,Pupil / Client Travel Reimbursement,3111326563,534.18,Personal Redacted Data
http://statistics.data.gov.uk/id/local-authority/38,Oxfordshire County Council,SEN TRANSPORT,04/01/2023,4320,Pupil / Client Travel Reimbursement,3111326767,534.18,Personal Redacted Data
http://statistics.data.gov.uk/id/local-authority/38,Oxfordshire County Council,Support at Home U65 Sensory Support,17/01/2023,5899,Social Care - Direct Payments,3111336666,534.24,Personal Redacted Data
http://statistics.data.gov.uk/id/local-authority/38,Oxfordshire County Council,LEAVING CARE SOUTH,26/01/2023,3942,Hire of Accommodation and Facilities,3111341066,534.50,Personal Redacted Data
http://statistics.data.gov.uk/id/local-authority/38,Oxfordshire County Council,Support at Home U65 Physical Support,17/01/2023,5899,Social Care - Direct Payments,3111337356,534.76,Purple Conversation Com In Co (DP)
http://statistics.data.gov.uk/id/local-authority/38,Oxfordshire County Council,Support at Home U65 Mental Health,31/01/2023,5689,,3111342874,534.78,Response Organisation
http://statistics.data.gov.uk/id/local-authority/38,Oxfordshire County Council,FOSTERING MAIN,03/01/2023,5541,B*Foster Parents,3111324746,535.00,Personal Redacted Data
http://statistics.data.gov.uk/id/local-authority/38,Oxfordshire County Council,FOSTERING MAIN,10/01/2023,5541,B*Foster Parents,3111328322,535.00,Personal Redacted Data
http://statistics.data.gov.uk/id/local-authority/38,Oxfordshire County Council,FOSTERING MAIN,17/01/2023,5541,B*Foster Parents,3111336074,535.00,Personal Redacted Data
http://statistics.data.gov.uk/id/local-authority/38,Oxfordshire County Council,FOSTERING MAIN,24/01/2023,5541,B*Foster Parents,3111339655,535.00,Personal Redacted Data
http://statistics.data.gov.uk/id/local-authority/38,Oxfordshire County Council,FOSTERING MAIN,31/01/2023,5541,B*Foster Parents,3111342457,535.00,Personal Redacted Data
http://statistics.data.gov.uk/id/local-authority/38,Oxfordshire County Council,Support at Home U65 Physical Support,25/01/2023,5693,,3111340162,535.05,Genuine Carers Ltd
http://statistics.data.gov.uk/id/local-authority/38,Oxfordshire County Council,Support at Home 65+ Physical Support,31/01/2023,5689,,3111342904,535.39,Caremark (West Oxfordshire & Cherwe
http://statistics.data.gov.uk/id/local-authority/38,Oxfordshire County Council,Support at Home 65+ Physical Support,03/01/2023,5699,,3111325944,535.50,Greigcare Home Service
http://statistics.data.gov.uk/id/local-authority/38,Oxfordshire County Council,Support at Home U65 Learning Disability,04/01/2023,5682,,3111326575,535.52,The Brandon Trust
http://statistics.data.gov.uk/id/local-authority/38,Oxfordshire County Council,LIBRARY COLLECTIONS,16/01/2023,4539,"Books, DVDs and CDs",3111335435,535.62,ASKEWS & HOLTS LIBRARY SERVICES LTD
http://statistics.data.gov.uk/id/local-authority/38,Oxfordshire County Council,Support at Home U65 Learning Disability,17/01/2023,5899,Social Care - Direct Payments,3111336629,535.68,Personal Redacted Data
http://statistics.data.gov.uk/id/local-authority/38,Oxfordshire County Council,Support at Home U65 Mental Health,17/01/2023,5899,Social Care - Direct Payments,3111337391,535.80,Purple Conversation Com In Co (DP)
http://statistics.data.gov.uk/id/local-authority/38,Oxfordshire County Council,Delegated Health Tasks  - Under 65,25/01/2023,5691,,3111340564,536.00,1 to 1 Care
http://statistics.data.gov.uk/id/local-authority/38,Oxfordshire County Council,Delegated Health Tasks  - Over 65,25/01/2023,5691,,3111340565,536.00,1 to 1 Care
http://statistics.data.gov.uk/id/local-authority/38,Oxfordshire County Council,Delegated Health Tasks  - Over 65,25/01/2023,5691,,3111340566,536.00,1 to 1 Care
http://statistics.data.gov.uk/id/local-authority/38,Oxfordshire County Council,Support at Home U65 Learning Disability,09/01/2023,5227,Other Transport Arrangements,3111327568,536.00,D�Arrive Ltd
http://statistics.data.gov.uk/id/local-authority/38,Oxfordshire County Council,LEGAL SERVICES,30/01/2023,5251,Legal Costs,2201074232,536.30,APW Investigations (Oxford)
http://statistics.data.gov.uk/id/local-authority/38,Oxfordshire County Council,Support at Home 65+ Physical Support,31/01/2023,5689,,3111343507,536.54,My Carer Ltd
http://statistics.data.gov.uk/id/local-authority/38,Oxfordshire County Council,Support at Home 65+ Learning Disability,11/01/2023,5690,,3111332033,537.81,The Ice Centre
http://statistics.data.gov.uk/id/local-authority/38,Oxfordshire County Council,Family Solutions Plus Non-staff - Centra,24/01/2023,5227,Other Transport Arrangements,9300058639,538.05,OCC SS Oxford City Div 1 Cash
http://statistics.data.gov.uk/id/local-authority/38,Oxfordshire County Council,SHORT BREAK ACTIVITIES,30/01/2023,5195,Grant Aid and Donations,2201074036,538.40,KIDS
http://statistics.data.gov.uk/id/local-authority/38,Oxfordshire County Council,Support at Home 65+ Physical Support,03/01/2023,5689,,3111325338,538.63,PLL Care Services
http://statistics.data.gov.uk/id/local-authority/38,Oxfordshire County Council,Support at Home U65 Physical Support,19/01/2023,5696,,3111338299,538.71,Orders of St John Care Trust
http://statistics.data.gov.uk/id/local-authority/38,Oxfordshire County Council,Support at Home U65 MH OBC Contract,17/01/2023,5899,Social Care - Direct Payments,3111336437,538.88,Personal Redacted Data
http://statistics.data.gov.uk/id/local-authority/38,Oxfordshire County Council,FOSTERING MAIN,03/01/2023,5549,B*Fostering Allowance - Regulation 38,3111324732,539.00,Personal Redacted Data
http://statistics.data.gov.uk/id/local-authority/38,Oxfordshire County Council,FOSTERING MAIN,10/01/2023,5549,B*Fostering Allowance - Regulation 38,3111328312,539.00,Personal Redacted Data
http://statistics.data.gov.uk/id/local-authority/38,Oxfordshire County Council,FOSTERING MAIN,17/01/2023,5549,B*Fostering Allowance - Regulation 38,3111336060,539.00,Personal Redacted Data
http://statistics.data.gov.uk/id/local-authority/38,Oxfordshire County Council,FOSTERING MAIN,24/01/2023,5549,B*Fostering Allowance - Regulation 38,3111339650,539.00,Personal Redacted Data
http://statistics.data.gov.uk/id/local-authority/38,Oxfordshire County Council,FOSTERING MAIN,31/01/2023,5549,B*Fostering Allowance - Regulation 38,3111342447,539.00,Personal Redacted Data
http://statistics.data.gov.uk/id/local-authority/38,Oxfordshire County Council,West Berkshire Adoption Support Fund,17/01/2023,4861,Hired and Contracted Services,2201070113,539.00,PACT (PARENTS & CHILDREN TOGETHER)
http://statistics.data.gov.uk/id/local-authority/38,Oxfordshire County Council,Support at Home U65 Learning Disability,17/01/2023,4330,Transport to School Activities,3111335551,540.00,Blackstar Chauffeur Ltd T/A Blackst
http://statistics.data.gov.uk/id/local-authority/38,Oxfordshire County Council,Family Solutions Plus Non-staff - Centra,24/01/2023,4940,Other Services,2201072268,540.00,Completely Care Ltd
http://statistics.data.gov.uk/id/local-authority/38,Oxfordshire County Council,COUNTY PRINT FINSHRS,03/01/2023,4450,Disability Aids and Equipment,2201065094,540.00,CONNEVANS LTD
http://statistics.data.gov.uk/id/local-authority/38,Oxfordshire County Council,MAINSTREAM-PRIMARY,10/01/2023,4330,Transport to School Activities,3111328645,540.00,Go Green Taxis
http://statistics.data.gov.uk/id/local-authority/38,Oxfordshire County Council,OPERATIONS,16/01/2023,4498,Health and Safety Equipment,2201069189,540.00,INTERSPIRO LTD
http://statistics.data.gov.uk/id/local-authority/38,Oxfordshire County Council,COMMUNITY & ROAD SAFETY,17/01/2023,3103,Other Training Courses and Qualification,2201069582,540.00,Outspoken Training LLP
http://statistics.data.gov.uk/id/local-authority/38,Oxfordshire County Council,Planned Maintenance,12/01/2023,4498,Health and Safety Equipment,2201068092,540.00,Oxford Security Services Ltd
http://statistics.data.gov.uk/id/local-authority/38,Oxfordshire County Council,POST 16 SEN,26/01/2023,4330,Transport to School Activities,3111341667,540.00,Oxon Transport Services Ltd
http://statistics.data.gov.uk/id/local-authority/38,Oxfordshire County Council,Support at Home U65 Learning Disability,25/01/2023,5697,,3111340108,540.00,Pennyhooks Farm Trust
http://statistics.data.gov.uk/id/local-authority/38,Oxfordshire County Council,TREE MAINT OPS,09/01/2023,5526,Payments to Private Contractors,2201066682,540.00,South Bucks Tree Surgeons
http://statistics.data.gov.uk/id/local-authority/38,Oxfordshire County Council,Family Solutions Plus Non-staff - Centra,25/01/2023,5227,Other Transport Arrangements,3111339901,540.00,The Oxfordshire Taxi Company Ltd T/
http://statistics.data.gov.uk/id/local-authority/38,Oxfordshire County Council,Support at Home U65 Learning Disability,17/01/2023,5899,Social Care - Direct Payments,3111337261,540.12,Purple Conversation Com In Co (DP)
http://statistics.data.gov.uk/id/local-authority/38,Oxfordshire County Council,UASC 16&17,25/01/2023,5365,Non-Staff Subsistence and Expenses,9300058688,540.15,OCC SS Vale of White Horse Cash
http://statistics.data.gov.uk/id/local-authority/38,Oxfordshire County Council,LIBRARY COLLECTIONS,11/01/2023,4539,"Books, DVDs and CDs",3111333920,540.63,ASKEWS & HOLTS LIBRARY SERVICES LTD
http://statistics.data.gov.uk/id/local-authority/38,Oxfordshire County Council,Support at Home U65 Physical Support,25/01/2023,5693,,3111340169,541.65,Helping Hands
http://statistics.data.gov.uk/id/local-authority/38,Oxfordshire County Council,Support at Home U65 Learning Disability,17/01/2023,5899,Social Care - Direct Payments,3111335932,541.72,Connection Support (Oxford)
http://statistics.data.gov.uk/id/local-authority/38,Oxfordshire County Council,LDD AFTER SCHOOL,27/01/2023,4314,"Other Trans Contract Costs (CRB, Car Sea",3111341372,541.80,Her Ride Limited
http://statistics.data.gov.uk/id/local-authority/38,Oxfordshire County Council,Support at Home 65+ Physical Support,31/01/2023,5689,,3111343459,541.80,Home Helpers Care Ltd
http://statistics.data.gov.uk/id/local-authority/38,Oxfordshire County Council,Support at Home 65+ Physical Support,04/01/2023,5693,,3111326627,541.88,Care with Care Ltd
http://statistics.data.gov.uk/id/local-authority/38,Oxfordshire County Council,FLEET COSTS,10/01/2023,4270,HTM / Other Vehicle - Hire Charges,2201067101,541.88,Go Plant Fleet Services
http://statistics.data.gov.uk/id/local-authority/38,Oxfordshire County Council,FOSTERING MAIN,03/01/2023,5545,B*Fostering Enhancements - Level 2,3111324467,542.00,Personal Redacted Data
http://statistics.data.gov.uk/id/local-authority/38,Oxfordshire County Council,FOSTERING MAIN,10/01/2023,5545,B*Fostering Enhancements - Level 2,3111328061,542.00,Personal Redacted Data
http://statistics.data.gov.uk/id/local-authority/38,Oxfordshire County Council,FOSTERING MAIN,17/01/2023,5545,B*Fostering Enhancements - Level 2,3111335751,542.00,Personal Redacted Data
http://statistics.data.gov.uk/id/local-authority/38,Oxfordshire County Council,FOSTERING MAIN,24/01/2023,5545,B*Fostering Enhancements - Level 2,3111339521,542.00,Personal Redacted Data
http://statistics.data.gov.uk/id/local-authority/38,Oxfordshire County Council,FOSTERING MAIN,31/01/2023,5545,B*Fostering Enhancements - Level 2,3111342196,542.00,Personal Redacted Data
http://statistics.data.gov.uk/id/local-authority/38,Oxfordshire County Council,Support at Home U65 Physical Support,17/01/2023,5899,Social Care - Direct Payments,3111336909,542.00,Personal Redacted Data
http://statistics.data.gov.uk/id/local-authority/38,Oxfordshire County Council,Support at Home 65+ Physical Support,03/01/2023,5689,,3111324854,542.33,Care Outlook Ltd
http://statistics.data.gov.uk/id/local-authority/38,Oxfordshire County Council,Support at Home U65 Learning Disability,17/01/2023,5899,Social Care - Direct Payments,3111336747,542.72,Personal Redacted Data
http://statistics.data.gov.uk/id/local-authority/38,Oxfordshire County Council,Community Support Service Central costs,03/01/2023,4270,HTM / Other Vehicle - Hire Charges,2201065055,543.22,London Hire
http://statistics.data.gov.uk/id/local-authority/38,Oxfordshire County Council,Delegated Health Tasks  - Over 65,25/01/2023,5691,,3111340507,543.75,Bluebird Care
http://statistics.data.gov.uk/id/local-authority/38,Oxfordshire County Council,Support at Home U65 Physical Support,31/01/2023,5696,,3111343237,543.79,Radis Community Care
http://statistics.data.gov.uk/id/local-authority/38,Oxfordshire County Council,STI TESTING+TREATMEN,12/01/2023,4940,Other Services,3111335041,544.00,Cambridge Community Services
http://statistics.data.gov.uk/id/local-authority/38,Oxfordshire County Council,UASC 16&17,27/01/2023,5227,Other Transport Arrangements,3111341218,544.00,Phoenixx Cars Ltd
http://statistics.data.gov.uk/id/local-authority/38,Oxfordshire County Council,Support at Home U65 Autism /Abated,11/01/2023,5690,,3111329899,544.05,Autism at Kingwood Limited
http://statistics.data.gov.uk/id/local-authority/38,Oxfordshire County Council,FAM GRP CONFERENCES,26/01/2023,4940,Other Services,2201072805,544.37,Mrs Laurie Smith
http://statistics.data.gov.uk/id/local-authority/38,Oxfordshire County Council,Early Years SEN Funding,26/01/2023,5537,Payments to Other Establishments,3111340614,544.68,Adderbury Day Nursery
http://statistics.data.gov.uk/id/local-authority/38,Oxfordshire County Council,Early Years SEN Funding,26/01/2023,5537,Payments to Other Establishments,3111340619,544.68,Brightwell Pre-school
http://statistics.data.gov.uk/id/local-authority/38,Oxfordshire County Council,Early Years SEN Funding,26/01/2023,5537,Payments to Other Establishments,3111340620,544.68,BROADHILL PRE-SCHOOL
http://statistics.data.gov.uk/id/local-authority/38,Oxfordshire County Council,Support at Home U65 Learning Disability,11/01/2023,5690,,3111332219,544.71,Turnstyle
http://statistics.data.gov.uk/id/local-authority/38,Oxfordshire County Council,Support at Home 65+ Physical Support,03/01/2023,5689,,3111325237,544.80,My Carer Ltd
http://statistics.data.gov.uk/id/local-authority/38,Oxfordshire County Council,Support at Home U65 MH OBC Contract,17/01/2023,5899,Social Care - Direct Payments,3111337615,544.84,Rosekel Resourcing Ltd
http://statistics.data.gov.uk/id/local-authority/38,Oxfordshire County Council,Care Homes - Over 65 Mental Health,11/01/2023,5686,,3111330272,545.14,Grace Care Service Ltd T/A Burford
http://statistics.data.gov.uk/id/local-authority/38,Oxfordshire County Council,Support at Home U65 Physical Support,03/01/2023,5689,,3111325014,545.16,Oxfordshire Crossroads
http://statistics.data.gov.uk/id/local-authority/38,Oxfordshire County Council,Support at Home 65+ Physical Support,19/01/2023,5696,,3111338357,545.33,Orders of St John Care Trust
http://statistics.data.gov.uk/id/local-authority/38,Oxfordshire County Council,UASC 16&17,20/01/2023,5663,B*Birthday Allowance,9300058621,545.54,OCC SS Oxford City Div 1 Cash
http://statistics.data.gov.uk/id/local-authority/38,Oxfordshire County Council,Support at Home U65 Memory & Cognition,17/01/2023,5899,Social Care - Direct Payments,3111337531,545.56,Purple Conversation Com In Co (DP)
http://statistics.data.gov.uk/id/local-authority/38,Oxfordshire County Council,Reactive Maintenance,25/01/2023,4042,Fixtures and Fittings,2201072586,546.00,BI-FOLD ROLFE LTD
http://statistics.data.gov.uk/id/local-authority/38,Oxfordshire County Council,FOSTERING MAIN,03/01/2023,5541,B*Foster Parents,3111324531,546.00,Personal Redacted Data
http://statistics.data.gov.uk/id/local-authority/38,Oxfordshire County Council,FOSTERING MAIN,10/01/2023,5541,B*Foster Parents,3111328106,546.00,Personal Redacted Data
http://statistics.data.gov.uk/id/local-authority/38,Oxfordshire County Council,FOSTERING MAIN,17/01/2023,5541,B*Foster Parents,3111335803,546.00,Personal Redacted Data
http://statistics.data.gov.uk/id/local-authority/38,Oxfordshire County Council,FOSTERING MAIN,24/01/2023,5541,B*Foster Parents,3111339548,546.00,Personal Redacted Data
http://statistics.data.gov.uk/id/local-authority/38,Oxfordshire County Council,FOSTERING MAIN,31/01/2023,5541,B*Foster Parents,3111342244,546.00,Personal Redacted Data
http://statistics.data.gov.uk/id/local-authority/38,Oxfordshire County Council,FOSTERING MAIN,03/01/2023,5541,B*Foster Parents,3111324541,546.00,Personal Redacted Data
http://statistics.data.gov.uk/id/local-authority/38,Oxfordshire County Council,FOSTERING MAIN,03/01/2023,5541,B*Foster Parents,3111324543,546.00,Personal Redacted Data
http://statistics.data.gov.uk/id/local-authority/38,Oxfordshire County Council,FOSTERING MAIN,10/01/2023,5541,B*Foster Parents,3111328116,546.00,Personal Redacted Data
http://statistics.data.gov.uk/id/local-authority/38,Oxfordshire County Council,FOSTERING MAIN,10/01/2023,5541,B*Foster Parents,3111328118,546.00,Personal Redacted Data
http://statistics.data.gov.uk/id/local-authority/38,Oxfordshire County Council,FOSTERING MAIN,17/01/2023,5541,B*Foster Parents,3111335813,546.00,Personal Redacted Data
http://statistics.data.gov.uk/id/local-authority/38,Oxfordshire County Council,FOSTERING MAIN,17/01/2023,5541,B*Foster Parents,3111335815,546.00,Personal Redacted Data
http://statistics.data.gov.uk/id/local-authority/38,Oxfordshire County Council,FOSTERING MAIN,24/01/2023,5541,B*Foster Parents,3111339553,546.00,Personal Redacted Data
http://statistics.data.gov.uk/id/local-authority/38,Oxfordshire County Council,FOSTERING MAIN,24/01/2023,5541,B*Foster Parents,3111339554,546.00,Personal Redacted Data
http://statistics.data.gov.uk/id/local-authority/38,Oxfordshire County Council,FOSTERING MAIN,31/01/2023,5541,B*Foster Parents,3111342255,546.00,Personal Redacted Data
http://statistics.data.gov.uk/id/local-authority/38,Oxfordshire County Council,FOSTERING MAIN,31/01/2023,5541,B*Foster Parents,3111342257,546.00,Personal Redacted Data
http://statistics.data.gov.uk/id/local-authority/38,Oxfordshire County Council,Support at Home 65+ Physical Support,17/01/2023,5899,Social Care - Direct Payments,3111337299,546.00,Purple Conversation Com In Co (DP)
http://statistics.data.gov.uk/id/local-authority/38,Oxfordshire County Council,Support at Home U65 Sensory Support,17/01/2023,5899,Social Care - Direct Payments,3111336663,546.44,Personal Redacted Data
http://statistics.data.gov.uk/id/local-authority/38,Oxfordshire County Council,SEN TRANSPORT,26/01/2023,4320,Pupil / Client Travel Reimbursement,3111340605,546.56,Personal Redacted Data
http://statistics.data.gov.uk/id/local-authority/38,Oxfordshire County Council,Support at Home 65+ Learning Disability,03/01/2023,5689,,3111325167,547.29,Greigcare Home Service
http://statistics.data.gov.uk/id/local-authority/38,Oxfordshire County Council,Support at Home U65 Physical Support,17/01/2023,5899,Social Care - Direct Payments,3111337236,547.76,Purple Conversation Com In Co (DP)
http://statistics.data.gov.uk/id/local-authority/38,Oxfordshire County Council,Support at Home 65+ Physical Support,17/01/2023,5899,Social Care - Direct Payments,3111336542,547.80,Personal Redacted Data
http://statistics.data.gov.uk/id/local-authority/38,Oxfordshire County Council,Support at Home U65 Physical Support,25/01/2023,5693,,3111340166,547.94,Helping Hands
http://statistics.data.gov.uk/id/local-authority/38,Oxfordshire County Council,Support at Home 65+ Memory & Cognition,03/01/2023,5699,,3111325829,548.10,CaringPlus Healthcare Services Ltd
http://statistics.data.gov.uk/id/local-authority/38,Oxfordshire County Council,Support at Home 65+ Physical Support,03/01/2023,5699,,3111325864,548.10,CaringPlus Healthcare Services Ltd
http://statistics.data.gov.uk/id/local-authority/38,Oxfordshire County Council,Support at Home 65+ Physical Support,27/01/2023,5693,,3111341168,548.10,HEALTHCARE ACCESS LTD
http://statistics.data.gov.uk/id/local-authority/38,Oxfordshire County Council,Support at Home 65+ Physical Support,03/01/2023,5699,,3111325965,548.10,Home Helpers Care Ltd
http://statistics.data.gov.uk/id/local-authority/38,Oxfordshire County Council,Support at Home 65+ Physical Support,31/01/2023,5698,,3111343739,548.73,Oxford Private Care
http://statistics.data.gov.uk/id/local-authority/38,Oxfordshire County Council,LIBRARY COLLECTIONS,12/01/2023,4539,"Books, DVDs and CDs",2201068267,548.92,Books Asia Ltd
http://statistics.data.gov.uk/id/local-authority/38,Oxfordshire County Council,Swindon Adoption Support Fund,13/01/2023,4861,Hired and Contracted Services,2201068509,549.00,PACT (PARENTS & CHILDREN TOGETHER)
http://statistics.data.gov.uk/id/local-authority/38,Oxfordshire County Council,Support at Home U65 Learning Disability,11/01/2023,5690,,3111329824,549.23,ADVANCE HOUSING & SUPPORT LTD
http://statistics.data.gov.uk/id/local-authority/38,Oxfordshire County Council,LEGAL SERVICES,20/01/2023,5251,Legal Costs,2201071103,550.00,Alana Hughes
http://statistics.data.gov.uk/id/local-authority/38,Oxfordshire County Council,LAC PUPIL PREMIUM,16/01/2023,5537,Payments to Other Establishments,3111335512,550.00,Dorchester Middle School
http://statistics.data.gov.uk/id/local-authority/38,Oxfordshire County Council,LEGAL SERVICES,20/01/2023,5251,Legal Costs,2201071079,550.00,Eleanor Howard
http://statistics.data.gov.uk/id/local-authority/38,Oxfordshire County Council,LEGAL SERVICES,30/01/2023,5251,Legal Costs,2201074298,550.00,Eleanor Howard
http://statistics.data.gov.uk/id/local-authority/38,Oxfordshire County Council,LEGAL SERVICES,20/01/2023,5251,Legal Costs,2201071107,550.00,Fazeela Ishmael
http://statistics.data.gov.uk/id/local-authority/38,Oxfordshire County Council,LEGAL SERVICES,20/01/2023,5251,Legal Costs,2201071138,550.00,Fazeela Ishmael
http://statistics.data.gov.uk/id/local-authority/38,Oxfordshire County Council,MAINSTREAM-PRIMARY,10/01/2023,4330,Transport to School Activities,3111328647,550.00,Go Green Taxis
http://statistics.data.gov.uk/id/local-authority/38,Oxfordshire County Council,LEGAL SERVICES,11/01/2023,5251,Legal Costs,2201067791,550.00,Kate Ferguson
http://statistics.data.gov.uk/id/local-authority/38,Oxfordshire County Council,LEGAL SERVICES,13/01/2023,5251,Legal Costs,2201068757,550.00,Miss Justine Ramsden
http://statistics.data.gov.uk/id/local-authority/38,Oxfordshire County Council,LEGAL SERVICES,20/01/2023,5251,Legal Costs,2201071070,550.00,Oliver Powell (Harcourt)
http://statistics.data.gov.uk/id/local-authority/38,Oxfordshire County Council,LEGAL SERVICES,20/01/2023,5251,Legal Costs,2201071086,550.00,Oliver Powell (Harcourt)
http://statistics.data.gov.uk/id/local-authority/38,Oxfordshire County Council,LEGAL SERVICES,30/01/2023,5251,Legal Costs,2201074315,550.00,Oliver Powell (Harcourt)
http://statistics.data.gov.uk/id/local-authority/38,Oxfordshire County Council,LEGAL SERVICES,30/01/2023,5251,Legal Costs,2201074405,550.00,Oliver Powell (Harcourt)
http://statistics.data.gov.uk/id/local-authority/38,Oxfordshire County Council,Support at Home U65 Learning Disability,26/01/2023,5227,Other Transport Arrangements,3111340582,550.00,Oxon Transport Services Ltd
http://statistics.data.gov.uk/id/local-authority/38,Oxfordshire County Council,L&D CORE PROGRAMME,30/01/2023,3103,Other Training Courses and Qualification,2201073946,550.00,Premier Partnership
http://statistics.data.gov.uk/id/local-authority/38,Oxfordshire County Council,RESIDENTIAL STRATEGY,06/01/2023,3100,Educational and Vocational Training,2201066115,550.00,PRICE Training
http://statistics.data.gov.uk/id/local-authority/38,Oxfordshire County Council,Safeguarding commissioning,23/01/2023,4861,Hired and Contracted Services,3111338806,550.00,Red Kite Family Centre
http://statistics.data.gov.uk/id/local-authority/38,Oxfordshire County Council,Support at Home U65 Learning Disability,17/01/2023,5899,Social Care - Direct Payments,3111336205,550.00,Personal Redacted Data
http://statistics.data.gov.uk/id/local-authority/38,Oxfordshire County Council,LEGAL SERVICES,26/01/2023,5251,Legal Costs,2201073164,550.00,Stephen Crispin
http://statistics.data.gov.uk/id/local-authority/38,Oxfordshire County Council,TRANSPORT COSTS,25/01/2023,4330,Transport to School Activities,3111339884,550.00,The Oxfordshire Taxi Company Ltd T/
http://statistics.data.gov.uk/id/local-authority/38,Oxfordshire County Council,TREE MAINT OPS,06/01/2023,5526,Payments to Private Contractors,2201066193,550.00,Treetech Arboricultural Services Lt
http://statistics.data.gov.uk/id/local-authority/38,Oxfordshire County Council,LEGAL SERVICES,26/01/2023,5251,Legal Costs,2201073168,550.00,Victoria Flowers
http://statistics.data.gov.uk/id/local-authority/38,Oxfordshire County Council,Support at Home 65+ Physical Support,03/01/2023,5689,,3111325205,550.20,Home Helpers Care Ltd
http://statistics.data.gov.uk/id/local-authority/38,Oxfordshire County Council,Support at Home U65 Physical Support,17/01/2023,5899,Social Care - Direct Payments,3111337311,551.12,Purple Conversation Com In Co (DP)
http://statistics.data.gov.uk/id/local-authority/38,Oxfordshire County Council,SEN TRANSPORT,17/01/2023,5227,Other Transport Arrangements,3111335556,551.20,Autism Specialist Transport Ltd
http://statistics.data.gov.uk/id/local-authority/38,Oxfordshire County Council,SEN TRANSPORT,04/01/2023,4320,Pupil / Client Travel Reimbursement,3111326775,551.32,Personal Redacted Data
http://statistics.data.gov.uk/id/local-authority/38,Oxfordshire County Council,Support at Home U65 Sensory Support,11/01/2023,5697,,3111328782,552.00,Tommy Bee UK Limited
http://statistics.data.gov.uk/id/local-authority/38,Oxfordshire County Council,SEN TRANSPORT,06/01/2023,4320,Pupil / Client Travel Reimbursement,3111327509,552.60,Personal Redacted Data
http://statistics.data.gov.uk/id/local-authority/38,Oxfordshire County Council,Support at Home U65 Physical Support,17/01/2023,5899,Social Care - Direct Payments,3111337459,552.76,Purple Conversation Com In Co (DP)
http://statistics.data.gov.uk/id/local-authority/38,Oxfordshire County Council,Support at Home U65 Other /Soc Isolation,11/01/2023,5690,,3111329856,553.57,Headway Oxford
http://statistics.data.gov.uk/id/local-authority/38,Oxfordshire County Council,2 YEAR OLD FUNDING,11/01/2023,5537,Payments to Other Establishments,3111328535,553.66,RAFA Kidz Brize Norton
http://statistics.data.gov.uk/id/local-authority/38,Oxfordshire County Council,Support at Home 65+ Physical Support,03/01/2023,5689,,3111325176,553.79,Greigcare Home Service
http://statistics.data.gov.uk/id/local-authority/38,Oxfordshire County Council,FAM GRP CONFERENCES,12/01/2023,4940,Other Services,2201068163,554.00,Emma Wood
http://statistics.data.gov.uk/id/local-authority/38,Oxfordshire County Council,Support at Home U65 Learning Disability,31/01/2023,5698,,3111342653,554.40,Bridges Home Care Ltd
http://statistics.data.gov.uk/id/local-authority/38,Oxfordshire County Council,Support at Home 65+ Memory & Cognition,03/01/2023,5699,,3111325764,554.40,Care Hearted Ltd
http://statistics.data.gov.uk/id/local-authority/38,Oxfordshire County Council,Support at Home 65+ Physical Support,31/01/2023,5699,,3111344004,554.40,Greigcare Home Service
http://statistics.data.gov.uk/id/local-authority/38,Oxfordshire County Council,Support at Home U65 Physical Support,31/01/2023,5699,,3111344039,554.40,Kare Plus Oxford
http://statistics.data.gov.uk/id/local-authority/38,Oxfordshire County Council,Support at Home U65 Physical Support,31/01/2023,5699,,3111344254,554.40,Ringstead Healthcare Limited
http://statistics.data.gov.uk/id/local-authority/38,Oxfordshire County Council,Support at Home 65+ Learning Disability,17/01/2023,5899,Social Care - Direct Payments,3111337157,554.48,Purple Conversation Com In Co (DP)
http://statistics.data.gov.uk/id/local-authority/38,Oxfordshire County Council,COUNTY LIBRARY,12/01/2023,4525,Furniture,2201068256,555.00,Opening the Book
http://statistics.data.gov.uk/id/local-authority/38,Oxfordshire County Council,Support at Home U65 Learning Disability,17/01/2023,5899,Social Care - Direct Payments,3111336636,555.44,Personal Redacted Data
http://statistics.data.gov.uk/id/local-authority/38,Oxfordshire County Council,SPECIAL GUARDIANSHIP,24/01/2023,5661,B*Carriageway pre surf. dressing patchin,3111339361,555.76,Personal Redacted Data
http://statistics.data.gov.uk/id/local-authority/38,Oxfordshire County Council,DISABILITIES TEAM S,09/01/2023,5555,Payments to Carers,3500091882,556.00,Personal Redacted Data
http://statistics.data.gov.uk/id/local-authority/38,Oxfordshire County Council,,31/01/2023,1325,Attachment of Earnings,3111341978,556.19,Kingston upon Thame
http://statistics.data.gov.uk/id/local-authority/38,Oxfordshire County Council,Support at Home 65+ Memory & Cognition,17/01/2023,5899,Social Care - Direct Payments,3111336360,556.52,Personal Redacted Data
http://statistics.data.gov.uk/id/local-authority/38,Oxfordshire County Council,LIBRARY COLLECTIONS,26/01/2023,4539,"Books, DVDs and CDs",2201073192,556.80,W F HOWES LTD
http://statistics.data.gov.uk/id/local-authority/38,Oxfordshire County Council,ECH Central Costs,23/01/2023,5696,,3111338826,557.56,BPHA Limited
http://statistics.data.gov.uk/id/local-authority/38,Oxfordshire County Council,Support at Home U65 Learning Disability,17/01/2023,5899,Social Care - Direct Payments,3111336872,557.56,Personal Redacted Data
http://statistics.data.gov.uk/id/local-authority/38,Oxfordshire County Council,Support at Home U65 Learning Disability,17/01/2023,5899,Social Care - Direct Payments,3111337228,557.84,Purple Conversation Com In Co (DP)
http://statistics.data.gov.uk/id/local-authority/38,Oxfordshire County Council,Family Solutions Plus Non-staff - North,27/01/2023,5394,Other Expenses,9300058732,558.00,OCC SS Witney Area Off Cash
http://statistics.data.gov.uk/id/local-authority/38,Oxfordshire County Council,Support at Home U65 Physical Support,31/01/2023,5689,,3111342667,558.56,Caretree Ltd
http://statistics.data.gov.uk/id/local-authority/38,Oxfordshire County Council,Support at Home U65 Physical Support,31/01/2023,5689,,3111342959,559.02,Oxfordshire Crossroads
http://statistics.data.gov.uk/id/local-authority/38,Oxfordshire County Council,Support at Home U65 MH OBC Contract,17/01/2023,5899,Social Care - Direct Payments,3111336599,559.12,Personal Redacted Data
http://statistics.data.gov.uk/id/local-authority/38,Oxfordshire County Council,Support at Home U65 MH OBC Contract,17/01/2023,5899,Social Care - Direct Payments,3111336042,559.12,Personal Redacted Data
http://statistics.data.gov.uk/id/local-authority/38,Oxfordshire County Council,LIBRARY COLLECTIONS,11/01/2023,4539,"Books, DVDs and CDs",2201067575,559.30,Bolinda UK Ltd
http://statistics.data.gov.uk/id/local-authority/38,Oxfordshire County Council,Support at Home U65 Physical Support,03/01/2023,5698,,3111324721,559.34,Acquire Care Ltd
http://statistics.data.gov.uk/id/local-authority/38,Oxfordshire County Council,Support at Home U65 Physical Support,17/01/2023,5899,Social Care - Direct Payments,3111336483,559.68,Personal Redacted Data
http://statistics.data.gov.uk/id/local-authority/38,Oxfordshire County Council,Support at Home U65 Learning Disability,11/01/2023,5690,,3111329957,559.73,The Camden Society
http://statistics.data.gov.uk/id/local-authority/38,Oxfordshire County Council,SEN TRANSPORT,13/01/2023,4330,Transport to School Activities,3111335405,560.00,Ali's Cabs
http://statistics.data.gov.uk/id/local-authority/38,Oxfordshire County Council,Family Solutions Plus Non-staff - North,13/01/2023,5227,Other Transport Arrangements,3111335163,560.00,Ambassador cars
http://statistics.data.gov.uk/id/local-authority/38,Oxfordshire County Council,Support at Home U65 Learning Disability,24/01/2023,5227,Other Transport Arrangements,3111339830,560.00,Cherwell Cars
http://statistics.data.gov.uk/id/local-authority/38,Oxfordshire County Council,SEN TRANSPORT,20/01/2023,5227,Other Transport Arrangements,3111338762,560.00,Express Travel Oxford
http://statistics.data.gov.uk/id/local-authority/38,Oxfordshire County Council,Support at Home U65 MH OBC Contract,17/01/2023,5899,Social Care - Direct Payments,3111336969,560.00,Personal Redacted Data
http://statistics.data.gov.uk/id/local-authority/38,Oxfordshire County Council,Support at Home U65 Learning Disability,17/01/2023,5899,Social Care - Direct Payments,3111336467,560.00,Personal Redacted Data
http://statistics.data.gov.uk/id/local-authority/38,Oxfordshire County Council,Care Packages & Placements- LD - OCC,04/01/2023,5227,Other Transport Arrangements,3111326488,560.00,Oxford Premier Cars Services Limite
http://statistics.data.gov.uk/id/local-authority/38,Oxfordshire County Council,Support at Home U65 Learning Disability,20/01/2023,5227,Other Transport Arrangements,3111338678,560.00,Oxon Transport Services Ltd
http://statistics.data.gov.uk/id/local-authority/38,Oxfordshire County Council,Bracknell Adoption Support Fund,09/01/2023,4861,Hired and Contracted Services,2201066499,560.00,PACT (PARENTS & CHILDREN TOGETHER)
http://statistics.data.gov.uk/id/local-authority/38,Oxfordshire County Council,RBWM Adoption Support Fund,30/01/2023,4861,Hired and Contracted Services,2201073960,560.00,PACT (PARENTS & CHILDREN TOGETHER)
http://statistics.data.gov.uk/id/local-authority/38,Oxfordshire County Council,Wokingham Adoption Support Fund,17/01/2023,4861,Hired and Contracted Services,2201070091,560.00,The Paperclip Group
http://statistics.data.gov.uk/id/local-authority/38,Oxfordshire County Council,FPT SOUTH/VALE,17/01/2023,4525,Furniture,3111335644,560.09,Personal Redacted Data
http://statistics.data.gov.uk/id/local-authority/38,Oxfordshire County Council,Support at Home 65+ Physical Support,19/01/2023,5696,,3111338386,560.32,Orders of St John Care Trust
http://statistics.data.gov.uk/id/local-authority/38,Oxfordshire County Council,Early Years SEN Funding,26/01/2023,5537,Payments to Other Establishments,3111340647,560.70,Sunningwell Pre-School
http://statistics.data.gov.uk/id/local-authority/38,Oxfordshire County Council,MENTAL CAPACITY,11/01/2023,5668,Technical and Professional Consultant F,2201067632,561.00,AIT Mitra Ltd
http://statistics.data.gov.uk/id/local-authority/38,Oxfordshire County Council,LANDLORD & TENANT,27/01/2023,4001,Uniform Business Rates,3500092428,561.00,West Oxfordshire District Council
http://statistics.data.gov.uk/id/local-authority/38,Oxfordshire County Council,Support at Home U65 Learning Disability,03/01/2023,5689,,3111325319,561.53,Pechiv Ltd
http://statistics.data.gov.uk/id/local-authority/38,Oxfordshire County Council,Support at Home U65 Learning Disability,31/01/2023,5689,,3111343541,561.53,Pechiv Ltd
http://statistics.data.gov.uk/id/local-authority/38,Oxfordshire County Council,Support at Home U65 Learning Disability,25/01/2023,5697,,3111340106,561.60,Pennyhooks Farm Trust
http://statistics.data.gov.uk/id/local-authority/38,Oxfordshire County Council,CONCESSIONARY FARES,25/01/2023,5781,Payments to Transport Operators,2201072578,561.93,Henley Town Council
http://statistics.data.gov.uk/id/local-authority/38,Oxfordshire County Council,Support at Home U65 Physical Support,31/01/2023,5698,,3111343099,562.42,Day & Night Care Assistance
http://statistics.data.gov.uk/id/local-authority/38,Oxfordshire County Council,Support at Home U65 Physical Support,17/01/2023,5899,Social Care - Direct Payments,3111337101,562.96,Purple Conversation Com In Co (DP)
http://statistics.data.gov.uk/id/local-authority/38,Oxfordshire County Council,SEN TRANSPORT,04/01/2023,4314,"Other Trans Contract Costs (CRB, Car Sea",3111326543,563.04,Faringdon Cars
http://statistics.data.gov.uk/id/local-authority/38,Oxfordshire County Council,Support at Home 65+ Physical Support,18/01/2023,5693,,3111337778,563.59,SureCare Oxfordshire
http://statistics.data.gov.uk/id/local-authority/38,Oxfordshire County Council,NURSERY ED FUND,12/01/2023,5537,Payments to Other Establishments,3111334392,563.76,Helen Rains
http://statistics.data.gov.uk/id/local-authority/38,Oxfordshire County Council,NURSERY ED FUND,12/01/2023,5537,Payments to Other Establishments,3111334427,563.76,Rachel Mobbs
http://statistics.data.gov.uk/id/local-authority/38,Oxfordshire County Council,NURSERY ED FUND,12/01/2023,5537,Payments to Other Establishments,3111334350,563.76,Sarah Cooksley
http://statistics.data.gov.uk/id/local-authority/38,Oxfordshire County Council,Support at Home U65 Mental Health,03/01/2023,5696,,3111325467,563.92,All Care GB Ltd
http://statistics.data.gov.uk/id/local-authority/38,Oxfordshire County Council,Support at Home U65 Physical Support,03/01/2023,5696,,3111325481,563.92,All Care GB Ltd
http://statistics.data.gov.uk/id/local-authority/38,Oxfordshire County Council,Support at Home 65+ Memory & Cognition,03/01/2023,5696,,3111325485,563.92,All Care GB Ltd
http://statistics.data.gov.uk/id/local-authority/38,Oxfordshire County Council,Support at Home 65+ Physical Support,03/01/2023,5696,,3111325499,563.92,All Care GB Ltd
http://statistics.data.gov.uk/id/local-authority/38,Oxfordshire County Council,Support at Home 65+ Physical Support,03/01/2023,5696,,3111325509,563.92,All Care GB Ltd
http://statistics.data.gov.uk/id/local-authority/38,Oxfordshire County Council,Support at Home 65+ Physical Support,03/01/2023,5696,,3111325510,563.92,All Care GB Ltd
http://statistics.data.gov.uk/id/local-authority/38,Oxfordshire County Council,Support at Home 65+ Physical Support,03/01/2023,5696,,3111325515,563.92,All Care GB Ltd
http://statistics.data.gov.uk/id/local-authority/38,Oxfordshire County Council,Support at Home 65+ Physical Support,03/01/2023,5696,,3111325516,563.92,All Care GB Ltd
http://statistics.data.gov.uk/id/local-authority/38,Oxfordshire County Council,Support at Home 65+ Physical Support,03/01/2023,5696,,3111325520,563.92,All Care GB Ltd
http://statistics.data.gov.uk/id/local-authority/38,Oxfordshire County Council,Support at Home U65 Mental Health,31/01/2023,5696,,3111342948,563.92,All Care GB Ltd
http://statistics.data.gov.uk/id/local-authority/38,Oxfordshire County Council,Support at Home U65 Physical Support,31/01/2023,5696,,3111342996,563.92,All Care GB Ltd
http://statistics.data.gov.uk/id/local-authority/38,Oxfordshire County Council,Support at Home 65+ Memory & Cognition,31/01/2023,5696,,3111343009,563.92,All Care GB Ltd
http://statistics.data.gov.uk/id/local-authority/38,Oxfordshire County Council,Support at Home 65+ Physical Support,31/01/2023,5696,,3111343058,563.92,All Care GB Ltd
http://statistics.data.gov.uk/id/local-authority/38,Oxfordshire County Council,Support at Home 65+ Physical Support,31/01/2023,5696,,3111343262,563.92,All Care GB Ltd
http://statistics.data.gov.uk/id/local-authority/38,Oxfordshire County Council,Support at Home 65+ Physical Support,31/01/2023,5696,,3111343278,563.92,All Care GB Ltd
http://statistics.data.gov.uk/id/local-authority/38,Oxfordshire County Council,Support at Home 65+ Physical Support,31/01/2023,5696,,3111343281,563.92,All Care GB Ltd
http://statistics.data.gov.uk/id/local-authority/38,Oxfordshire County Council,Support at Home 65+ Physical Support,31/01/2023,5696,,3111343293,563.92,All Care GB Ltd
http://statistics.data.gov.uk/id/local-authority/38,Oxfordshire County Council,Support at Home 65+ Physical Support,31/01/2023,5696,,3111343088,563.92,Radis Community Care
http://statistics.data.gov.uk/id/local-authority/38,Oxfordshire County Council,Support at Home U65 MH OBC Contract,31/01/2023,5696,,3111343131,563.92,Radis Community Care
http://statistics.data.gov.uk/id/local-authority/38,Oxfordshire County Council,Support at Home 65+ Memory & Cognition,31/01/2023,5696,,3111343174,563.92,Radis Community Care
http://statistics.data.gov.uk/id/local-authority/38,Oxfordshire County Council,Support at Home 65+ Physical Support,31/01/2023,5696,,3111343187,563.92,Radis Community Care
http://statistics.data.gov.uk/id/local-authority/38,Oxfordshire County Council,Support at Home U65 Physical Support,31/01/2023,5696,,3111343231,563.92,Radis Community Care
http://statistics.data.gov.uk/id/local-authority/38,Oxfordshire County Council,FAM GRP CONFERENCES,17/01/2023,4940,Other Services,2201069640,564.00,Emma Wood
http://statistics.data.gov.uk/id/local-authority/38,Oxfordshire County Council,SHORT BREAK ACTIVITIES,06/01/2023,5227,Other Transport Arrangements,3111327486,564.00,Her Ride Limited
http://statistics.data.gov.uk/id/local-authority/38,Oxfordshire County Council,LDD AFTER SCHOOL,10/01/2023,4330,Transport to School Activities,3111328623,564.00,LINK SHIRES LTD
http://statistics.data.gov.uk/id/local-authority/38,Oxfordshire County Council,Support at Home 65+ Physical Support,31/01/2023,5689,,3111343513,564.06,My Carer Ltd
http://statistics.data.gov.uk/id/local-authority/38,Oxfordshire County Council,SEN Early Intervention Team,12/01/2023,5380,"Author, Speaker and Lecturer Fees",3111334790,564.06,OCC One Time Vendor
http://statistics.data.gov.uk/id/local-authority/38,Oxfordshire County Council,VOIDS/VACANCY COSTS,11/01/2023,3945,Rent,3111330208,564.73,Cherwell District Council
http://statistics.data.gov.uk/id/local-authority/38,Oxfordshire County Council,VOIDS/VACANCY COSTS,11/01/2023,3945,Rent,3111330211,564.73,Cherwell District Council
http://statistics.data.gov.uk/id/local-authority/38,Oxfordshire County Council,FOSTERING MAIN,17/01/2023,5549,B*Fostering Allowance - Regulation 38,3111335768,565.90,Personal Redacted Data
http://statistics.data.gov.uk/id/local-authority/38,Oxfordshire County Council,Support at Home 65+ Physical Support,03/01/2023,5689,,3111325218,565.90,Kare Plus Oxford
http://statistics.data.gov.uk/id/local-authority/38,Oxfordshire County Council,Support at Home 65+ Physical Support,31/01/2023,5689,,3111343695,565.90,Kare Plus Oxford
http://statistics.data.gov.uk/id/local-authority/38,Oxfordshire County Council,FOSTERING MAIN,17/01/2023,5549,B*Fostering Allowance - Regulation 38,3111335866,565.90,Personal Redacted Data
http://statistics.data.gov.uk/id/local-authority/38,Oxfordshire County Council,UASC 16&17,17/01/2023,5663,B*Birthday Allowance,9300058564,566.30,OCC SS Oxford City Div 1 Cash
http://statistics.data.gov.uk/id/local-authority/38,Oxfordshire County Council,Support at Home U65 Learning Disability,17/01/2023,5899,Social Care - Direct Payments,3111337060,566.96,Purple Conversation Com In Co (DP)
http://statistics.data.gov.uk/id/local-authority/38,Oxfordshire County Council,Support at Home 65+ Physical Support,11/01/2023,5698,,3111328960,567.00,Bridges Home Care Ltd
http://statistics.data.gov.uk/id/local-authority/38,Oxfordshire County Council,Support at Home 65+ Physical Support,31/01/2023,5699,,3111343446,567.00,Bridges Home Care Ltd
http://statistics.data.gov.uk/id/local-authority/38,Oxfordshire County Council,LEGAL BUDGET,31/01/2023,5251,Legal Costs,2201074585,567.00,Dr Sumi Ratnam
http://statistics.data.gov.uk/id/local-authority/38,Oxfordshire County Council,Support at Home 65+ Physical Support,31/01/2023,5699,,3111344371,567.00,YOD Ltd
http://statistics.data.gov.uk/id/local-authority/38,Oxfordshire County Council,Support at Home 65+ Memory & Cognition,11/01/2023,5686,,3111333362,567.14,Orders of St John
http://statistics.data.gov.uk/id/local-authority/38,Oxfordshire County Council,Support at Home U65 Learning Disability,31/01/2023,5698,,3111343789,567.39,Oxford Private Care
http://statistics.data.gov.uk/id/local-authority/38,Oxfordshire County Council,LIBRARY COLLECTIONS,13/01/2023,4539,"Books, DVDs and CDs",3111335196,567.85,ASKEWS & HOLTS LIBRARY SERVICES LTD
http://statistics.data.gov.uk/id/local-authority/38,Oxfordshire County Council,Support at Home U65 Learning Disability,18/01/2023,5227,Other Transport Arrangements,3111338076,568.00,My Cabbie LTD t/a J and A Transport
http://statistics.data.gov.uk/id/local-authority/38,Oxfordshire County Council,Support at Home U65 Physical Support,17/01/2023,5899,Social Care - Direct Payments,3111336673,568.16,Personal Redacted Data
http://statistics.data.gov.uk/id/local-authority/38,Oxfordshire County Council,Support at Home U65 Learning Disability,17/01/2023,5899,Social Care - Direct Payments,3111336725,568.16,Personal Redacted Data
http://statistics.data.gov.uk/id/local-authority/38,Oxfordshire County Council,POST 16 SEN,04/01/2023,4320,Pupil / Client Travel Reimbursement,3111326562,568.26,Personal Redacted Data
http://statistics.data.gov.uk/id/local-authority/38,Oxfordshire County Council,FOSTERING MAIN,31/01/2023,5549,B*Fostering Allowance - Regulation 38,3111342095,568.28,Personal Redacted Data
http://statistics.data.gov.uk/id/local-authority/38,Oxfordshire County Council,Support at Home 65+ Physical Support,31/01/2023,5689,,3111343376,568.41,Greigcare Home Service
http://statistics.data.gov.uk/id/local-authority/38,Oxfordshire County Council,Reactive Maintenance,23/01/2023,4407,Equipment,2201071454,568.68,PTSG
http://statistics.data.gov.uk/id/local-authority/38,Oxfordshire County Council,L&D CORE PROGRAMME,30/01/2023,3100,Educational and Vocational Training,2201073950,569.00,Premier Partnership
http://statistics.data.gov.uk/id/local-authority/38,Oxfordshire County Council,Delegated Health Tasks  - Under 65,26/01/2023,5691,,3111340870,569.12,FiNN Homecare Ltd
http://statistics.data.gov.uk/id/local-authority/38,Oxfordshire County Council,Support at Home 65+ Physical Support,03/01/2023,5698,,3111325267,569.21,Oxford Private Care
http://statistics.data.gov.uk/id/local-authority/38,Oxfordshire County Council,Delegated Health Tasks  - Over 65,06/01/2023,5691,,3111327429,569.40,George Springall Homecare
http://statistics.data.gov.uk/id/local-authority/38,Oxfordshire County Council,FOSTERING MAIN,10/01/2023,5227,Other Transport Arrangements,3111328352,569.53,Personal Redacted Data
http://statistics.data.gov.uk/id/local-authority/38,Oxfordshire County Council,Support at Home U65 Other /Soc Isolation,17/01/2023,5899,Social Care - Direct Payments,3111336306,569.60,Personal Redacted Data
http://statistics.data.gov.uk/id/local-authority/38,Oxfordshire County Council,Family Solutions Plus Non-staff - North,27/01/2023,5227,Other Transport Arrangements,3111341225,570.00,001 Alpha Cars Ltd
http://statistics.data.gov.uk/id/local-authority/38,Oxfordshire County Council,Swindon Adoption Support Fund,26/01/2023,4861,Hired and Contracted Services,2201072829,570.00,2PIP Theraputic Services
http://statistics.data.gov.uk/id/local-authority/38,Oxfordshire County Council,Independent Foster,18/01/2023,5559,,3111337929,570.00,Compass Fostering West Limited
http://statistics.data.gov.uk/id/local-authority/38,Oxfordshire County Council,LAC PUPIL PREMIUM,16/01/2023,5537,Payments to Other Establishments,3111335514,570.00,Ercall Wood Academy
http://statistics.data.gov.uk/id/local-authority/38,Oxfordshire County Council,Support at Home 65+ Physical Support,03/01/2023,5693,,3111326401,570.24,CARE & CARERS LTD
http://statistics.data.gov.uk/id/local-authority/38,Oxfordshire County Council,FOSTERING MAIN,10/01/2023,5227,Other Transport Arrangements,3111328350,570.40,Personal Redacted Data
http://statistics.data.gov.uk/id/local-authority/38,Oxfordshire County Council,LD Continuing Care - Sup at Home - U65,11/01/2023,5691,,3111328790,570.83,KIT Mobility Taxis Oxford Ltd
http://statistics.data.gov.uk/id/local-authority/38,Oxfordshire County Council,Reactive Maintenance,24/01/2023,3787,Premises Repairs,2201071823,571.21,Sureheat Spares Ltd
http://statistics.data.gov.uk/id/local-authority/38,Oxfordshire County Council,Care Homes - Over 65 Physical Sypport,11/01/2023,5687,,3111331198,571.43,Fewcott Healthcare Ltd
http://statistics.data.gov.uk/id/local-authority/38,Oxfordshire County Council,TRANSLATION,03/01/2023,5668,Technical and Professional Consultant F,2201065032,571.58,K International PLC
http://statistics.data.gov.uk/id/local-authority/38,Oxfordshire County Council,FOSTERING MAIN,10/01/2023,5227,Other Transport Arrangements,3111327981,571.79,Personal Redacted Data
http://statistics.data.gov.uk/id/local-authority/38,Oxfordshire County Council,Support at Home U65 Learning Disability,11/01/2023,5688,,3111329987,572.08,ADVANCE HOUSING & SUPPORT LTD
http://statistics.data.gov.uk/id/local-authority/38,Oxfordshire County Council,Support at Home U65 Learning Disability,11/01/2023,5688,,3111329990,572.08,ADVANCE HOUSING & SUPPORT LTD
http://statistics.data.gov.uk/id/local-authority/38,Oxfordshire County Council,Support at Home U65 Learning Disability,11/01/2023,5688,,3111329993,572.08,ADVANCE HOUSING & SUPPORT LTD
http://statistics.data.gov.uk/id/local-authority/38,Oxfordshire County Council,Support at Home U65 Learning Disability,11/01/2023,5688,,3111329996,572.08,ADVANCE HOUSING & SUPPORT LTD
http://statistics.data.gov.uk/id/local-authority/38,Oxfordshire County Council,SPECIAL GUARDIANSHIP,10/01/2023,5661,B*Carriageway pre surf. dressing patchin,3111328159,572.41,Personal Redacted Data
http://statistics.data.gov.uk/id/local-authority/38,Oxfordshire County Council,Support at Home U65 HFA,11/01/2023,5688,,3111329555,572.84,The Laurels (Witney)
http://statistics.data.gov.uk/id/local-authority/38,Oxfordshire County Council,Support at Home 65+ Physical Support,03/01/2023,5689,,3111325131,573.30,Golden Services Care Ltd
http://statistics.data.gov.uk/id/local-authority/38,Oxfordshire County Council,Support at Home 65+ Physical Support,18/01/2023,5693,,3111337765,573.30,SureCare Oxfordshire
http://statistics.data.gov.uk/id/local-authority/38,Oxfordshire County Council,Support at Home 65+ Physical Support,31/01/2023,5696,,3111343245,573.99,Radis Community Care
http://statistics.data.gov.uk/id/local-authority/38,Oxfordshire County Council,HN IN SEC SCHOOLS,24/01/2023,5537,Payments to Other Establishments,3111338899,574.00,FUTURES INSTITUTE BANBURY
http://statistics.data.gov.uk/id/local-authority/38,Oxfordshire County Council,Support at Home U65 Learning Disability,25/01/2023,5227,Other Transport Arrangements,3111339865,574.60,The Oxfordshire Taxi Company Ltd T/
http://statistics.data.gov.uk/id/local-authority/38,Oxfordshire County Council,Support at Home 65+ Physical Support,31/01/2023,5689,,3111342831,574.91,Care Outlook Ltd
http://statistics.data.gov.uk/id/local-authority/38,Oxfordshire County Council,Reactive Maintenance,12/01/2023,3740,General Maintenance,2201068106,575.00,R J Lift Services Ltd
http://statistics.data.gov.uk/id/local-authority/38,Oxfordshire County Council,MUSIC UNALLOCABLE,06/01/2023,5380,"Author, Speaker and Lecturer Fees",2201066051,575.00,SAMUEL J FOSTER
http://statistics.data.gov.uk/id/local-authority/38,Oxfordshire County Council,VACANT PROPERTY,01/01/2023,4000,Council Tax,3500091607,575.00,West Oxfordshire District Council
http://statistics.data.gov.uk/id/local-authority/38,Oxfordshire County Council,FOSTERING MAIN,24/01/2023,5394,Other Expenses,3111339733,575.35,Personal Redacted Data
http://statistics.data.gov.uk/id/local-authority/38,Oxfordshire County Council,Family Solutions Plus Non-staff - Centra,30/01/2023,4940,Other Services,2201074343,575.50,Tetum Solution
http://statistics.data.gov.uk/id/local-authority/38,Oxfordshire County Council,Support at Home U65 Learning Disability,17/01/2023,5899,Social Care - Direct Payments,3111337053,575.68,Purple Conversation Com In Co (DP)
http://statistics.data.gov.uk/id/local-authority/38,Oxfordshire County Council,Support at Home U65 Learning Disability,17/01/2023,5899,Social Care - Direct Payments,3111337558,575.68,Purple Conversation Com In Co (DP)
http://statistics.data.gov.uk/id/local-authority/38,Oxfordshire County Council,Support at Home 65+ Memory & Cognition,17/01/2023,5899,Social Care - Direct Payments,3111336644,576.00,Personal Redacted Data
http://statistics.data.gov.uk/id/local-authority/38,Oxfordshire County Council,Support at Home U65 Physical Support,03/01/2023,5689,,3111325452,576.12,Response Organisation
http://statistics.data.gov.uk/id/local-authority/38,Oxfordshire County Council,Support at Home 65+ Physical Support,31/01/2023,5689,,3111342793,576.31,Care Outlook Ltd
http://statistics.data.gov.uk/id/local-authority/38,Oxfordshire County Council,Community Support Service - Witney,26/01/2023,2040,Agency Staff,2201073117,576.45,Completely Care Ltd
http://statistics.data.gov.uk/id/local-authority/38,Oxfordshire County Council,FLEET MAINTENANCE,26/01/2023,4220,Vehicle Workshop Spares and Consumables,3111340837,577.25,OCC One Time Vendor
http://statistics.data.gov.uk/id/local-authority/38,Oxfordshire County Council,AIDS & ADPT TEAM,10/01/2023,4450,Disability Aids and Equipment,2201067252,577.50,Oxford University Hospitals NHS Tru
http://statistics.data.gov.uk/id/local-authority/38,Oxfordshire County Council,AIDS & ADPT TEAM,20/01/2023,4450,Disability Aids and Equipment,2201071382,577.50,Oxford University Hospitals NHS Tru
http://statistics.data.gov.uk/id/local-authority/38,Oxfordshire County Council,AIDS & ADPT TEAM,25/01/2023,4450,Disability Aids and Equipment,2201072396,577.50,Oxford University Hospitals NHS Tru
http://statistics.data.gov.uk/id/local-authority/38,Oxfordshire County Council,Support at Home U65 Learning Disability,04/01/2023,5682,,3111326573,578.09,The Brandon Trust
http://statistics.data.gov.uk/id/local-authority/38,Oxfordshire County Council,Delegated Health Tasks  - Over 65,11/01/2023,5691,,3111328882,578.24,Caretree Ltd
http://statistics.data.gov.uk/id/local-authority/38,Oxfordshire County Council,Support at Home 65+ Physical Support,31/01/2023,5689,,3111343419,578.57,Greigcare Home Service
http://statistics.data.gov.uk/id/local-authority/38,Oxfordshire County Council,Support at Home U65 Learning Disability,06/01/2023,5227,Other Transport Arrangements,3111327390,578.75,TOOTS TAXIS LTD
http://statistics.data.gov.uk/id/local-authority/38,Oxfordshire County Council,Reactive Maintenance,25/01/2023,4042,Fixtures and Fittings,2201072695,578.86,Windrush Door & Window Services Ltd
http://statistics.data.gov.uk/id/local-authority/38,Oxfordshire County Council,Early Years SEN Funding,06/01/2023,5537,Payments to Other Establishments,3111327214,578.98,Little Oak Pre-School
http://statistics.data.gov.uk/id/local-authority/38,Oxfordshire County Council,FLEET MAINTENANCE,10/01/2023,4407,Equipment,2201066836,579.20,First Products (Sussex) Ltd
http://statistics.data.gov.uk/id/local-authority/38,Oxfordshire County Council,Older Adults MH Team,13/01/2023,5689,,3111335134,579.32,OCC One Time Vendor
http://statistics.data.gov.uk/id/local-authority/38,Oxfordshire County Council,MAINSTREAM-SECONDARY,31/01/2023,4314,"Other Trans Contract Costs (CRB, Car Sea",3111343826,579.60,24/7 LTD
http://statistics.data.gov.uk/id/local-authority/38,Oxfordshire County Council,Support at Home 65+ Physical Support,03/01/2023,5699,,3111325774,579.60,Care Hearted Ltd
http://statistics.data.gov.uk/id/local-authority/38,Oxfordshire County Council,Support at Home 65+ Physical Support,03/01/2023,5699,,3111325976,579.60,Home Helpers Care Ltd
http://statistics.data.gov.uk/id/local-authority/38,Oxfordshire County Council,Support at Home 65+ Memory & Cognition,03/01/2023,5693,,3111326456,579.60,We-Care-Recruitment Ltd
http://statistics.data.gov.uk/id/local-authority/38,Oxfordshire County Council,Support at Home 65+ Physical Support,03/01/2023,5699,,3111326245,579.60,YOD Ltd
http://statistics.data.gov.uk/id/local-authority/38,Oxfordshire County Council,Support at Home 65+ Physical Support,31/01/2023,5699,,3111344322,579.60,YOD Ltd
http://statistics.data.gov.uk/id/local-authority/38,Oxfordshire County Council,L&D CORE PROGRAMME,05/01/2023,4615,Drugs and Medical Supplies,2201065529,580.00,ST JOHN AMBULANCE
http://statistics.data.gov.uk/id/local-authority/38,Oxfordshire County Council,L&D CORE PROGRAMME,09/01/2023,4615,Drugs and Medical Supplies,2201066611,580.00,ST JOHN AMBULANCE
http://statistics.data.gov.uk/id/local-authority/38,Oxfordshire County Council,Support at Home 65+ Physical Support,31/01/2023,5698,,3111343164,580.86,Day & Night Care Assistance
http://statistics.data.gov.uk/id/local-authority/38,Oxfordshire County Council,SEN TRANSPORT,04/01/2023,4320,Pupil / Client Travel Reimbursement,3111326738,581.20,Personal Redacted Data
http://statistics.data.gov.uk/id/local-authority/38,Oxfordshire County Council,SHARED LIVES,11/01/2023,5555,Payments to Carers,3111329051,581.25,Personal Redacted Data
http://statistics.data.gov.uk/id/local-authority/38,Oxfordshire County Council,Support at Home U65 Mental Health,17/01/2023,5899,Social Care - Direct Payments,3111336111,582.40,Personal Redacted Data
http://statistics.data.gov.uk/id/local-authority/38,Oxfordshire County Council,SERVICE DELIVERY,03/01/2023,4685,Clothing and Uniforms,2201064933,582.70,Oxford Safety Supplies
http://statistics.data.gov.uk/id/local-authority/38,Oxfordshire County Council,FOSTERING MAIN,03/01/2023,5545,B*Fostering Enhancements - Level 2,3111324217,583.00,Personal Redacted Data
http://statistics.data.gov.uk/id/local-authority/38,Oxfordshire County Council,FOSTERING MAIN,10/01/2023,5545,B*Fostering Enhancements - Level 2,3111327832,583.00,Personal Redacted Data
http://statistics.data.gov.uk/id/local-authority/38,Oxfordshire County Council,Support at Home U65 Learning Disability,17/01/2023,5899,Social Care - Direct Payments,3111337528,583.48,Purple Conversation Com In Co (DP)
http://statistics.data.gov.uk/id/local-authority/38,Oxfordshire County Council,UASC 16&17,06/01/2023,5365,Non-Staff Subsistence and Expenses,9300058469,583.67,OCC SS Oxford City Div 1 Cash
http://statistics.data.gov.uk/id/local-authority/38,Oxfordshire County Council,FOSTERING MAIN,24/01/2023,5573,,3111339552,583.71,Personal Redacted Data
http://statistics.data.gov.uk/id/local-authority/38,Oxfordshire County Council,Support at Home U65 Learning Disability,03/01/2023,5682,,3111324428,583.92,The Brandon Trust
http://statistics.data.gov.uk/id/local-authority/38,Oxfordshire County Council,LIBRARY COLLECTIONS,16/01/2023,4539,"Books, DVDs and CDs",3111335456,583.99,ASKEWS & HOLTS LIBRARY SERVICES LTD
http://statistics.data.gov.uk/id/local-authority/38,Oxfordshire County Council,Support at Home 65+ Mental Health,17/01/2023,5899,Social Care - Direct Payments,3111337164,584.16,Purple Conversation Com In Co (DP)
http://statistics.data.gov.uk/id/local-authority/38,Oxfordshire County Council,FOSTERING MAIN,17/01/2023,5227,Other Transport Arrangements,3111335646,584.19,Personal Redacted Data
http://statistics.data.gov.uk/id/local-authority/38,Oxfordshire County Council,Support at Home U65 Learning Disability,03/01/2023,5682,,3111324438,584.57,The Brandon Trust
http://statistics.data.gov.uk/id/local-authority/38,Oxfordshire County Council,Support at Home 65+ Physical Support,31/01/2023,5689,,3111343671,584.69,Kare Plus Oxford
http://statistics.data.gov.uk/id/local-authority/38,Oxfordshire County Council,LEGAL BUDGET,31/01/2023,5251,Legal Costs,2201074794,585.00,Forensis Ltd
http://statistics.data.gov.uk/id/local-authority/38,Oxfordshire County Council,LEGAL SERVICES,24/01/2023,5251,Legal Costs,2201072264,585.00,Liam Gribbin
http://statistics.data.gov.uk/id/local-authority/38,Oxfordshire County Council,COMMUNITY & ROAD SAFETY,23/01/2023,3103,Other Training Courses and Qualification,2201071535,585.00,The Bike Academy (South) Ltd
http://statistics.data.gov.uk/id/local-authority/38,Oxfordshire County Council,Oxfordshire Adoption Support Fund,17/01/2023,4861,Hired and Contracted Services,2201069626,585.00,The Playworks.org
http://statistics.data.gov.uk/id/local-authority/38,Oxfordshire County Council,Homes for Ukraine - Education,25/01/2023,5537,Payments to Other Establishments,3111340303,585.06,OCC One Time Vendor
http://statistics.data.gov.uk/id/local-authority/38,Oxfordshire County Council,ADOPTION ALLOWANCES,03/01/2023,5664,B*Holiday Allowance,3111324672,585.30,Personal Redacted Data
http://statistics.data.gov.uk/id/local-authority/38,Oxfordshire County Council,ADOPTION ALLOWANCES,10/01/2023,5664,B*Holiday Allowance,3111328216,585.30,Personal Redacted Data
http://statistics.data.gov.uk/id/local-authority/38,Oxfordshire County Council,ADOPTION ALLOWANCES,17/01/2023,5664,B*Holiday Allowance,3111336456,585.30,Personal Redacted Data
http://statistics.data.gov.uk/id/local-authority/38,Oxfordshire County Council,ADOPTION ALLOWANCES,24/01/2023,5664,B*Holiday Allowance,3111339413,585.30,Personal Redacted Data
http://statistics.data.gov.uk/id/local-authority/38,Oxfordshire County Council,ADOPTION ALLOWANCES,31/01/2023,5664,B*Holiday Allowance,3111342995,585.30,Personal Redacted Data
http://statistics.data.gov.uk/id/local-authority/38,Oxfordshire County Council,Support at Home 65+ Physical Support,03/01/2023,5698,,3111325303,585.83,Oxfordshire Crossroads
http://statistics.data.gov.uk/id/local-authority/38,Oxfordshire County Council,Support at Home 65+ Physical Support,03/01/2023,5699,,3111325934,585.90,Greigcare Home Service
http://statistics.data.gov.uk/id/local-authority/38,Oxfordshire County Council,LIBRARY COLLECTIONS,26/01/2023,4539,"Books, DVDs and CDs",3111340949,586.20,ASKEWS & HOLTS LIBRARY SERVICES LTD
http://statistics.data.gov.uk/id/local-authority/38,Oxfordshire County Council,FOSTERING MAIN,17/01/2023,5549,B*Fostering Allowance - Regulation 38,3111335668,587.14,Personal Redacted Data
http://statistics.data.gov.uk/id/local-authority/38,Oxfordshire County Council,Support at Home U65 MH OBC Contract,03/01/2023,5689,,3111325427,587.49,Response Organisation
http://statistics.data.gov.uk/id/local-authority/38,Oxfordshire County Council,Support at Home 65+ Physical Support,03/01/2023,5698,,3111325089,587.78,Day & Night Care Assistance
http://statistics.data.gov.uk/id/local-authority/38,Oxfordshire County Council,SEN TRANSPORT,25/01/2023,4330,Transport to School Activities,3111341543,588.00,A2B Castle Cars Ltd
http://statistics.data.gov.uk/id/local-authority/38,Oxfordshire County Council,AGENCY RESID - DISAB,03/01/2023,5549,B*Fostering Allowance - Regulation 38,3111324966,588.00,Personal Redacted Data
http://statistics.data.gov.uk/id/local-authority/38,Oxfordshire County Council,AGENCY RESID - DISAB,10/01/2023,5549,B*Fostering Allowance - Regulation 38,3111328425,588.00,Personal Redacted Data
http://statistics.data.gov.uk/id/local-authority/38,Oxfordshire County Council,AGENCY RESID - DISAB,17/01/2023,5549,B*Fostering Allowance - Regulation 38,3111336317,588.00,Personal Redacted Data
http://statistics.data.gov.uk/id/local-authority/38,Oxfordshire County Council,AGENCY RESID - DISAB,24/01/2023,5549,B*Fostering Allowance - Regulation 38,3111339736,588.00,Personal Redacted Data
http://statistics.data.gov.uk/id/local-authority/38,Oxfordshire County Council,AGENCY RESID - DISAB,10/01/2023,5549,B*Fostering Allowance - Regulation 38,3111328229,588.00,Personal Redacted Data
http://statistics.data.gov.uk/id/local-authority/38,Oxfordshire County Council,AGENCY RESID - DISAB,17/01/2023,5549,B*Fostering Allowance - Regulation 38,3111335930,588.00,Personal Redacted Data
http://statistics.data.gov.uk/id/local-authority/38,Oxfordshire County Council,AGENCY RESID - DISAB,24/01/2023,5549,B*Fostering Allowance - Regulation 38,3111339609,588.00,Personal Redacted Data
http://statistics.data.gov.uk/id/local-authority/38,Oxfordshire County Council,AGENCY RESID - DISAB,31/01/2023,5549,B*Fostering Allowance - Regulation 38,3111342352,588.00,Personal Redacted Data
http://statistics.data.gov.uk/id/local-authority/38,Oxfordshire County Council,FOSTERING MAIN,17/01/2023,5541,B*Foster Parents,3111335851,588.00,Personal Redacted Data
http://statistics.data.gov.uk/id/local-authority/38,Oxfordshire County Council,FOSTERING MAIN,31/01/2023,5541,B*Foster Parents,3111342285,588.00,Personal Redacted Data
http://statistics.data.gov.uk/id/local-authority/38,Oxfordshire County Council,POST 16 SEN,05/01/2023,4320,Pupil / Client Travel Reimbursement,3111326872,589.44,Personal Redacted Data
http://statistics.data.gov.uk/id/local-authority/38,Oxfordshire County Council,Support at Home 65+ Physical Support,03/01/2023,5699,,3111325657,589.68,Bridges Home Care Ltd
http://statistics.data.gov.uk/id/local-authority/38,Oxfordshire County Council,Family Solutions Plus Non-staff - Centra,16/01/2023,5227,Other Transport Arrangements,9300058556,589.70,OCC SS Oxford City Div 1 Cash
http://statistics.data.gov.uk/id/local-authority/38,Oxfordshire County Council,Support at Home 65+ Physical Support,13/01/2023,5693,,3111335090,589.76,CARE COMPASSION AND CONVERSATIONS
http://statistics.data.gov.uk/id/local-authority/38,Oxfordshire County Council,Support at Home 65+ Learning Disability,27/01/2023,5693,,3111341194,590.37,Pioneering Care Bicester Limited
http://statistics.data.gov.uk/id/local-authority/38,Oxfordshire County Council,Support at Home U65 Learning Disability,11/01/2023,5690,,3111332019,590.86,Guideposts Trust
http://statistics.data.gov.uk/id/local-authority/38,Oxfordshire County Council,Support at Home 65+ Physical Support,13/01/2023,5693,,3111335089,591.36,CARE & CARERS LTD
http://statistics.data.gov.uk/id/local-authority/38,Oxfordshire County Council,Support at Home 65+ Physical Support,25/01/2023,5693,,3111340145,591.36,CARE & CARERS LTD
http://statistics.data.gov.uk/id/local-authority/38,Oxfordshire County Council,Support at Home U65 Learning Disability,11/01/2023,5690,,3111330003,591.48,The Camden Society
http://statistics.data.gov.uk/id/local-authority/38,Oxfordshire County Council,Support at Home 65+ Physical Support,17/01/2023,5899,Social Care - Direct Payments,3111336465,592.00,Personal Redacted Data
http://statistics.data.gov.uk/id/local-authority/38,Oxfordshire County Council,SEN TRANSPORT,04/01/2023,4320,Pupil / Client Travel Reimbursement,3111326804,592.01,Personal Redacted Data
http://statistics.data.gov.uk/id/local-authority/38,Oxfordshire County Council,Support at Home U65 Physical Support,31/01/2023,5689,,3111343433,592.20,Home Helpers Care Ltd
http://statistics.data.gov.uk/id/local-authority/38,Oxfordshire County Council,Support at Home U65 Memory & Cognition,31/01/2023,5699,,3111344051,592.20,KCARE NURSING AGENCY
http://statistics.data.gov.uk/id/local-authority/38,Oxfordshire County Council,SHORT BREAK ACTIVITIES,11/01/2023,5161,Adoption Expenses - Fees and Expenses,2201067436,592.50,Parasol Projects
http://statistics.data.gov.uk/id/local-authority/38,Oxfordshire County Council,Support at Home U65 Mental Health,17/01/2023,5899,Social Care - Direct Payments,3111337013,592.64,Purple Conversation Com In Co (DP)
http://statistics.data.gov.uk/id/local-authority/38,Oxfordshire County Council,Early Years SEN Funding,26/01/2023,5537,Payments to Other Establishments,3111340617,592.74,Blewbury Preschool
http://statistics.data.gov.uk/id/local-authority/38,Oxfordshire County Council,Support at Home 65+ Physical Support,03/01/2023,5689,,3111326731,592.89,Oasis Private Care Ltd
http://statistics.data.gov.uk/id/local-authority/38,Oxfordshire County Council,SEN TRANSPORT,06/01/2023,4320,Pupil / Client Travel Reimbursement,3111327384,593.28,Personal Redacted Data
http://statistics.data.gov.uk/id/local-authority/38,Oxfordshire County Council,Support at Home 65+ Physical Support,17/01/2023,5899,Social Care - Direct Payments,3111336358,593.60,Personal Redacted Data
http://statistics.data.gov.uk/id/local-authority/38,Oxfordshire County Council,Support at Home U65 Physical Support,06/01/2023,5696,,3111327302,593.68,Housing&care21
http://statistics.data.gov.uk/id/local-authority/38,Oxfordshire County Council,Support at Home 65+ Memory & Cognition,11/01/2023,5693,,3111328750,594.50,Oxford Private Care
http://statistics.data.gov.uk/id/local-authority/38,Oxfordshire County Council,FOSTERING MAIN,24/01/2023,5227,Other Transport Arrangements,3111339535,594.57,Personal Redacted Data
http://statistics.data.gov.uk/id/local-authority/38,Oxfordshire County Council,POST 16 SEN,16/01/2023,4330,Transport to School Activities,3111335526,595.00,Ali's Cabs
http://statistics.data.gov.uk/id/local-authority/38,Oxfordshire County Council,"Marketing, Communications & Engagement",27/01/2023,4790,"Publicity, Promotions and Advertisement",2201073252,595.00,Bread and Butter Creative Limited
http://statistics.data.gov.uk/id/local-authority/38,Oxfordshire County Council,SEN TRANSPORT,10/01/2023,4322,"Season Tickets - Bus, Rail & Ferry",2201066994,595.00,Windsor Forest Colleges Group
http://statistics.data.gov.uk/id/local-authority/38,Oxfordshire County Council,NURSERY ED FUND,12/01/2023,5537,Payments to Other Establishments,3111334566,595.08,Lisa Davies
http://statistics.data.gov.uk/id/local-authority/38,Oxfordshire County Council,SEN TRANSPORT,30/01/2023,4330,Transport to School Activities,3111341942,595.20,Excelsior Taxis Ltd
http://statistics.data.gov.uk/id/local-authority/38,Oxfordshire County Council,Support at Home U65 Physical Support,03/01/2023,5689,,3111325396,595.97,T.HOW HOMELY LTD
http://statistics.data.gov.uk/id/local-authority/38,Oxfordshire County Council,Support at Home U65 Physical Support,17/01/2023,5899,Social Care - Direct Payments,3111337071,596.00,Purple Conversation Com In Co (DP)
http://statistics.data.gov.uk/id/local-authority/38,Oxfordshire County Council,Support at Home U65 Physical Support,03/01/2023,5689,,3111324831,596.29,Care Outlook Ltd
http://statistics.data.gov.uk/id/local-authority/38,Oxfordshire County Council,Continuing Care - Support at Home - U65,27/01/2023,5691,,3111341312,597.04,Paterson Recruitment
http://statistics.data.gov.uk/id/local-authority/38,Oxfordshire County Council,Support at Home U65 Learning Disability,19/01/2023,5696,,3111338304,597.14,Orders of St John Care Trust
http://statistics.data.gov.uk/id/local-authority/38,Oxfordshire County Council,Support at Home 65+ Mental Health,19/01/2023,5696,,3111338327,597.14,Orders of St John Care Trust
http://statistics.data.gov.uk/id/local-authority/38,Oxfordshire County Council,Support at Home U65 Learning Disability,17/01/2023,5899,Social Care - Direct Payments,3111337306,597.56,Purple Conversation Com In Co (DP)
http://statistics.data.gov.uk/id/local-authority/38,Oxfordshire County Council,Community Support Service - Abingdon,05/01/2023,2040,Agency Staff,2201065687,597.80,Completely Care Ltd
http://statistics.data.gov.uk/id/local-authority/38,Oxfordshire County Council,Community Support Service - Witney,16/01/2023,2040,Agency Staff,2201069032,597.80,Completely Care Ltd
http://statistics.data.gov.uk/id/local-authority/38,Oxfordshire County Council,FOSTERING MAIN,24/01/2023,5227,Other Transport Arrangements,3111339571,598.49,Personal Redacted Data
http://statistics.data.gov.uk/id/local-authority/38,Oxfordshire County Council,Delegated Health Tasks  - Over 65,11/01/2023,5691,,3111328906,598.50,Enable Health Ltd
http://statistics.data.gov.uk/id/local-authority/38,Oxfordshire County Council,Support at Home 65+ Memory & Cognition,31/01/2023,5699,,3111344014,598.50,Home Helpers Care Ltd
http://statistics.data.gov.uk/id/local-authority/38,Oxfordshire County Council,LEGAL BUDGET,04/01/2023,5251,Legal Costs,2201065435,599.00,Abbott Toxicology Limited
http://statistics.data.gov.uk/id/local-authority/38,Oxfordshire County Council,Support at Home 65+ Physical Support,31/01/2023,5696,,3111343043,599.17,All Care GB Ltd
http://statistics.data.gov.uk/id/local-authority/38,Oxfordshire County Council,Support at Home U65 Learning Disability,19/01/2023,5696,,3111338380,599.28,Orders of St John Care Trust
http://statistics.data.gov.uk/id/local-authority/38,Oxfordshire County Council,Support at Home 65+ Physical Support,31/01/2023,5689,,3111343395,599.70,Greigcare Home Service
http://statistics.data.gov.uk/id/local-authority/38,Oxfordshire County Council,Support at Home U65 Learning Disability,17/01/2023,5899,Social Care - Direct Payments,3111336998,599.84,Personal Redacted Data
http://statistics.data.gov.uk/id/local-authority/38,Oxfordshire County Council,Support at Home 65+ Physical Support,17/01/2023,5899,Social Care - Direct Payments,3111336133,599.92,Personal Redacted Data
http://statistics.data.gov.uk/id/local-authority/38,Oxfordshire County Council,SEN TRANSPORT,20/01/2023,5227,Other Transport Arrangements,3111338504,600.00,ACE CARS BANBURY LTD
http://statistics.data.gov.uk/id/local-authority/38,Oxfordshire County Council,Support at Home U65 Learning Disability,31/01/2023,5227,Other Transport Arrangements,3111341893,600.00,Banbury Taxis
http://statistics.data.gov.uk/id/local-authority/38,Oxfordshire County Council,SHORT BREAK ACTIVITIES,23/01/2023,4330,Transport to School Activities,3111338791,600.00,Blackstar Chauffeur Ltd T/A Blackst
http://statistics.data.gov.uk/id/local-authority/38,Oxfordshire County Council,GOVERNANCE,27/01/2023,5380,"Author, Speaker and Lecturer Fees",2201073322,600.00,C E Christie Education LTD
http://statistics.data.gov.uk/id/local-authority/38,Oxfordshire County Council,SEN TRANSPORT,27/01/2023,4330,Transport to School Activities,3111341911,600.00,Cherwell Cars
http://statistics.data.gov.uk/id/local-authority/38,Oxfordshire County Council,SHARED LIVES,11/01/2023,5555,Payments to Carers,3111329142,600.00,Personal Redacted Data
http://statistics.data.gov.uk/id/local-authority/38,Oxfordshire County Council,Family Solutions Plus Non-staff - Centra,04/01/2023,4940,Other Services,2201065122,600.00,Darryl DBT SERVICES LTD
http://statistics.data.gov.uk/id/local-authority/38,Oxfordshire County Council,Councillors Priorities Fund,31/01/2023,4940,Other Services,3111342007,600.00,Deddington Parish Council
http://statistics.data.gov.uk/id/local-authority/38,Oxfordshire County Council,CORONER,23/01/2023,5202,Use of Mortuary Services,2201071622,600.00,Dr Atharina Julai
http://statistics.data.gov.uk/id/local-authority/38,Oxfordshire County Council,SEN TRANSPORT,20/01/2023,5227,Other Transport Arrangements,3111338774,600.00,Express Travel Oxford
http://statistics.data.gov.uk/id/local-authority/38,Oxfordshire County Council,Corporate Grounds Maintenance,25/01/2023,3821,Grounds Maintenance Contracts,2201072776,600.00,Gould Landscapes
http://statistics.data.gov.uk/id/local-authority/38,Oxfordshire County Council,Afghanistan settler holding hotel fund,05/01/2023,4315,Payments for Conveying Children,2201065816,600.00,Heyfordian Travel Ltd
http://statistics.data.gov.uk/id/local-authority/38,Oxfordshire County Council,CHC Fast Track - Sup at Homes - Over 65,11/01/2023,5691,,3111328922,600.00,Home Helpers Care Ltd
http://statistics.data.gov.uk/id/local-authority/38,Oxfordshire County Council,,19/01/2023,1531,Cash Allocation Control Account,3111338445,600.00,Lee Hecht Harrison Penna Limited
http://statistics.data.gov.uk/id/local-authority/38,Oxfordshire County Council,SHARED LIVES,11/01/2023,5555,Payments to Carers,3111329020,600.00,Personal Redacted Data
http://statistics.data.gov.uk/id/local-authority/38,Oxfordshire County Council,LAC PUPIL PREMIUM,16/01/2023,5537,Payments to Other Establishments,3111335527,600.00,Maylandsea Primary School
http://statistics.data.gov.uk/id/local-authority/38,Oxfordshire County Council,LEGAL SERVICES,09/01/2023,5251,Legal Costs,2201066758,600.00,Nicola Kohn
http://statistics.data.gov.uk/id/local-authority/38,Oxfordshire County Council,COMM DRAWDOWN FUNDNG,11/01/2023,8511,Legal Fees & expenses,3111328484,600.00,OCC One Time Vendor
http://statistics.data.gov.uk/id/local-authority/38,Oxfordshire County Council,SEN TRANSPORT,18/01/2023,5227,Other Transport Arrangements,3111338055,600.00,Oxford Airport Transfers Ltd
http://statistics.data.gov.uk/id/local-authority/38,Oxfordshire County Council,Support at Home U65 Learning Disability,10/01/2023,5227,Other Transport Arrangements,3111328517,600.00,Oxfordlinks
http://statistics.data.gov.uk/id/local-authority/38,Oxfordshire County Council,Support at Home 65+ Physical Support,11/01/2023,5227,Other Transport Arrangements,3111329334,600.00,Oxfordshire Travel Ltd
http://statistics.data.gov.uk/id/local-authority/38,Oxfordshire County Council,Support at Home U65 Learning Disability,18/01/2023,5227,Other Transport Arrangements,3111337644,600.00,OXO Hire Ltd
http://statistics.data.gov.uk/id/local-authority/38,Oxfordshire County Council,Care Packages & Placements- LD - OCC,20/01/2023,5227,Other Transport Arrangements,3111338646,600.00,Oxon Transport Services Ltd
http://statistics.data.gov.uk/id/local-authority/38,Oxfordshire County Council,SEN TRANSPORT,26/01/2023,4330,Transport to School Activities,3111341642,600.00,Oxon Transport Services Ltd
http://statistics.data.gov.uk/id/local-authority/38,Oxfordshire County Council,LEGAL SERVICES,20/01/2023,5251,Legal Costs,2201071144,600.00,Paige Campbell
http://statistics.data.gov.uk/id/local-authority/38,Oxfordshire County Council,L&D CORE PROGRAMME,23/01/2023,3103,Other Training Courses and Qualification,2201071441,600.00,Premier Partnership
http://statistics.data.gov.uk/id/local-authority/38,Oxfordshire County Council,L&D CORE PROGRAMME,30/01/2023,3100,Educational and Vocational Training,2201073994,600.00,Premier Partnership
http://statistics.data.gov.uk/id/local-authority/38,Oxfordshire County Council,SHARED LIVES,11/01/2023,5555,Payments to Carers,3111328993,600.00,Personal Redacted Data
http://statistics.data.gov.uk/id/local-authority/38,Oxfordshire County Council,SHARED LIVES,11/01/2023,5555,Payments to Carers,3111329003,600.00,Personal Redacted Data
http://statistics.data.gov.uk/id/local-authority/38,Oxfordshire County Council,SHARED LIVES,11/01/2023,5555,Payments to Carers,3111329039,600.00,Personal Redacted Data
http://statistics.data.gov.uk/id/local-authority/38,Oxfordshire County Council,SHARED LIVES,11/01/2023,5555,Payments to Carers,3111329183,600.00,Personal Redacted Data
http://statistics.data.gov.uk/id/local-authority/38,Oxfordshire County Council,BSOG,10/01/2023,5781,Payments to Transport Operators,3500091916,600.00,Stagecoach Services Ltd
http://statistics.data.gov.uk/id/local-authority/38,Oxfordshire County Council,Transition Team,11/01/2023,5227,Other Transport Arrangements,3111329313,600.00,The Oxfordshire Taxi Company Ltd T/
http://statistics.data.gov.uk/id/local-authority/38,Oxfordshire County Council,MOTOR FLEET,03/01/2023,3053,,3111326502,600.00,Weightmans LLP
http://statistics.data.gov.uk/id/local-authority/38,Oxfordshire County Council,LAC PUPIL PREMIUM,16/01/2023,5537,Payments to Other Establishments,3111335513,600.00,Westfield Academy
http://statistics.data.gov.uk/id/local-authority/38,Oxfordshire County Council,DIRECT ACCESS COMMUNITY SUPPORT,11/01/2023,4940,Other Services,2201067677,601.00,My Life My Choice
http://statistics.data.gov.uk/id/local-authority/38,Oxfordshire County Council,LAC PUPIL PREMIUM,16/01/2023,5537,Payments to Other Establishments,3111335496,601.00,St Frideswide Church of England Pri
http://statistics.data.gov.uk/id/local-authority/38,Oxfordshire County Council,Support at Home 65+ Memory & Cognition,17/01/2023,5899,Social Care - Direct Payments,3111336981,601.76,Personal Redacted Data
http://statistics.data.gov.uk/id/local-authority/38,Oxfordshire County Council,LEGAL BUDGET,05/01/2023,5251,Legal Costs,3111326998,601.88,OCC One Time Vendor
http://statistics.data.gov.uk/id/local-authority/38,Oxfordshire County Council,Support at Home U65 Physical Support,31/01/2023,5698,,3111342724,602.01,Acquire Care Ltd
http://statistics.data.gov.uk/id/local-authority/38,Oxfordshire County Council,Support at Home U65 Learning Disability,11/01/2023,5690,,3111332066,603.30,MacIntyre Care (Womaston)
http://statistics.data.gov.uk/id/local-authority/38,Oxfordshire County Council,Support at Home U65 Learning Disability,11/01/2023,5690,,3111332082,603.30,MacIntyre Care (Womaston)
http://statistics.data.gov.uk/id/local-authority/38,Oxfordshire County Council,Support at Home 65+ Learning Disability,11/01/2023,5690,,3111332092,603.30,MacIntyre Care (Womaston)
http://statistics.data.gov.uk/id/local-authority/38,Oxfordshire County Council,Support at Home U65 Learning Disability,11/01/2023,5690,,3111332096,603.30,MacIntyre Care (Womaston)
http://statistics.data.gov.uk/id/local-authority/38,Oxfordshire County Council,Support at Home U65 Learning Disability,11/01/2023,5690,,3111329876,603.57,Autism at Kingwood Limited
http://statistics.data.gov.uk/id/local-authority/38,Oxfordshire County Council,Support at Home U65 Learning Disability,11/01/2023,5690,,3111329887,603.57,Autism at Kingwood Limited
http://statistics.data.gov.uk/id/local-authority/38,Oxfordshire County Council,Support at Home U65 Memory & Cognition,11/01/2023,5690,,3111329889,603.57,Autism at Kingwood Limited
http://statistics.data.gov.uk/id/local-authority/38,Oxfordshire County Council,FOSTERING MAIN,31/01/2023,5549,B*Fostering Allowance - Regulation 38,3111342626,604.12,Personal Redacted Data
http://statistics.data.gov.uk/id/local-authority/38,Oxfordshire County Council,Support at Home 65+ Mental Health,31/01/2023,5696,,3111343091,604.20,Radis Community Care
http://statistics.data.gov.uk/id/local-authority/38,Oxfordshire County Council,Support at Home 65+ Physical Support,31/01/2023,5696,,3111343235,604.20,Radis Community Care
http://statistics.data.gov.uk/id/local-authority/38,Oxfordshire County Council,SEN TRANSPORT,31/01/2023,4314,"Other Trans Contract Costs (CRB, Car Sea",3111343857,604.33,24/7 LTD
http://statistics.data.gov.uk/id/local-authority/38,Oxfordshire County Council,Support at Home 65+ Physical Support,03/01/2023,5699,,3111325637,604.38,Agincare UK Ltd
http://statistics.data.gov.uk/id/local-authority/38,Oxfordshire County Council,Support at Home U65 Physical Support,03/01/2023,5689,,3111325121,604.57,Genuine Carers Ltd
http://statistics.data.gov.uk/id/local-authority/38,Oxfordshire County Council,Mockingbird,10/01/2023,5394,Other Expenses,3111328073,604.73,Personal Redacted Data
http://statistics.data.gov.uk/id/local-authority/38,Oxfordshire County Council,Support at Home U65 Learning Disability,03/01/2023,5693,,3111326340,604.80,A CARING HAND LTD
http://statistics.data.gov.uk/id/local-authority/38,Oxfordshire County Council,Support at Home 65+ Physical Support,03/01/2023,5693,,3111326366,604.80,Angel Care Group
http://statistics.data.gov.uk/id/local-authority/38,Oxfordshire County Council,Support at Home 65+ Physical Support,25/01/2023,5693,,3111340138,604.80,Bicester PA and Care LLP
http://statistics.data.gov.uk/id/local-authority/38,Oxfordshire County Council,Support at Home U65 Learning Disability,11/01/2023,5698,,3111328968,604.80,Bridges Home Care Ltd
http://statistics.data.gov.uk/id/local-authority/38,Oxfordshire County Council,Support at Home 65+ Physical Support,31/01/2023,5699,,3111343424,604.80,Bridges Home Care Ltd
http://statistics.data.gov.uk/id/local-authority/38,Oxfordshire County Council,Support at Home U65 MH OBC Contract,03/01/2023,5699,,3111325726,604.80,Calvary Care Ltd
http://statistics.data.gov.uk/id/local-authority/38,Oxfordshire County Council,Support at Home U65 Physical Support,03/01/2023,5699,,3111325738,604.80,Care Hearted Ltd
http://statistics.data.gov.uk/id/local-authority/38,Oxfordshire County Council,Support at Home U65 Mental Health,31/01/2023,5699,,3111343582,604.80,Care Hearted Ltd
http://statistics.data.gov.uk/id/local-authority/38,Oxfordshire County Council,Support at Home 65+ Physical Support,03/01/2023,5699,,3111325838,604.80,CaringPlus Healthcare Services Ltd
http://statistics.data.gov.uk/id/local-authority/38,Oxfordshire County Council,SI EQUIPMENT,17/01/2023,4450,Disability Aids and Equipment,2201069578,604.80,CONNEVANS LTD
http://statistics.data.gov.uk/id/local-authority/38,Oxfordshire County Council,Support at Home 65+ Mental Health,31/01/2023,5689,,3111343309,604.80,Golden Services Care Ltd
http://statistics.data.gov.uk/id/local-authority/38,Oxfordshire County Council,Support at Home 65+ Physical Support,03/01/2023,5699,,3111325942,604.80,Greigcare Home Service
http://statistics.data.gov.uk/id/local-authority/38,Oxfordshire County Council,Support at Home U65 Physical Support,03/01/2023,5689,,3111325183,604.80,Home Helpers Care Ltd
http://statistics.data.gov.uk/id/local-authority/38,Oxfordshire County Council,Support at Home 65+ Physical Support,03/01/2023,5699,,3111326267,604.80,YOD Ltd
http://statistics.data.gov.uk/id/local-authority/38,Oxfordshire County Council,CHC Fast Track - Sup at Home - Under 65,27/01/2023,5691,,3111341310,605.12,Paterson Recruitment
http://statistics.data.gov.uk/id/local-authority/38,Oxfordshire County Council,Care Homes - Over 65 Memory & Cognition,11/01/2023,5687,,3111333883,605.33,Orders of St John
http://statistics.data.gov.uk/id/local-authority/38,Oxfordshire County Council,Support at Home U65 Physical Support,17/01/2023,5899,Social Care - Direct Payments,3111337530,605.36,Purple Conversation Com In Co (DP)
http://statistics.data.gov.uk/id/local-authority/38,Oxfordshire County Council,LD Continuing Care - Sup at Home - U65,27/01/2023,5691,,3111341357,605.36,Style Acre
http://statistics.data.gov.uk/id/local-authority/38,Oxfordshire County Council,Support at Home U65 Learning Disability,17/01/2023,5899,Social Care - Direct Payments,3111337610,605.84,Rosekel Resourcing Ltd
http://statistics.data.gov.uk/id/local-authority/38,Oxfordshire County Council,FLEET COSTS,10/01/2023,4270,HTM / Other Vehicle - Hire Charges,2201067103,606.05,Go Plant Fleet Services
http://statistics.data.gov.uk/id/local-authority/38,Oxfordshire County Council,Support at Home 65+ Memory & Cognition,27/01/2023,5693,,3111341178,606.39,Oxford Private Care
http://statistics.data.gov.uk/id/local-authority/38,Oxfordshire County Council,UASC 16&17,10/01/2023,5549,B*Fostering Allowance - Regulation 38,3111327816,608.98,Personal Redacted Data
http://statistics.data.gov.uk/id/local-authority/38,Oxfordshire County Council,SEN TRANSPORT,17/01/2023,4314,"Other Trans Contract Costs (CRB, Car Sea",3111335547,609.18,Crown Cabs Travel Ltd
http://statistics.data.gov.uk/id/local-authority/38,Oxfordshire County Council,Support at Home U65 Learning Disability,03/01/2023,5698,,3111325292,609.25,Oxford Private Care
http://statistics.data.gov.uk/id/local-authority/38,Oxfordshire County Council,Family Solutions Plus Non-staff - South,11/01/2023,5227,Other Transport Arrangements,3111329343,610.00,D�Arrive Ltd
http://statistics.data.gov.uk/id/local-authority/38,Oxfordshire County Council,Support at Home 65+ Memory & Cognition,18/01/2023,5697,,3111337808,610.00,EMC Medical Services Limited
http://statistics.data.gov.uk/id/local-authority/38,Oxfordshire County Council,SEN Alternative Provision,18/01/2023,4878,Hired and Contracted Services (Curricul,3111338532,610.00,FLEET TUTORS
http://statistics.data.gov.uk/id/local-authority/38,Oxfordshire County Council,Support at Home U65 Learning Disability,11/01/2023,5690,,3111329975,610.61,The Camden Society
http://statistics.data.gov.uk/id/local-authority/38,Oxfordshire County Council,Support at Home U65 Learning Disability,11/01/2023,5690,,3111329982,610.61,The Camden Society
http://statistics.data.gov.uk/id/local-authority/38,Oxfordshire County Council,Support at Home U65 Learning Disability,11/01/2023,5690,,3111330006,610.61,The Camden Society
http://statistics.data.gov.uk/id/local-authority/38,Oxfordshire County Council,Support at Home U65 Learning Disability,11/01/2023,5690,,3111330009,610.61,The Camden Society
http://statistics.data.gov.uk/id/local-authority/38,Oxfordshire County Council,Support at Home U65 Learning Disability,31/01/2023,5689,,3111343276,610.67,Genuine Carers Ltd
http://statistics.data.gov.uk/id/local-authority/38,Oxfordshire County Council,Support at Home U65 Learning Disability,17/01/2023,5899,Social Care - Direct Payments,3111337065,610.96,Purple Conversation Com In Co (DP)
http://statistics.data.gov.uk/id/local-authority/38,Oxfordshire County Council,Support at Home 65+ Physical Support,03/01/2023,5699,,3111325873,611.10,CaringPlus Healthcare Services Ltd
http://statistics.data.gov.uk/id/local-authority/38,Oxfordshire County Council,Support at Home U65 MH OBC Contract,31/01/2023,5689,,3111342838,611.26,Response Organisation
http://statistics.data.gov.uk/id/local-authority/38,Oxfordshire County Council,FOSTERING MAIN,31/01/2023,5227,Other Transport Arrangements,3111342155,611.55,Personal Redacted Data
http://statistics.data.gov.uk/id/local-authority/38,Oxfordshire County Council,Care Homes - Over 65 Physical Sypport,11/01/2023,5687,,3111331266,611.62,Freeland House
http://statistics.data.gov.uk/id/local-authority/38,Oxfordshire County Council,Support at Home U65 Physical Support,03/01/2023,5682,,3111324425,611.76,The Brandon Trust
http://statistics.data.gov.uk/id/local-authority/38,Oxfordshire County Council,Support at Home U65 Learning Disability,03/01/2023,5682,,3111324508,611.76,The Brandon Trust
http://statistics.data.gov.uk/id/local-authority/38,Oxfordshire County Council,Support at Home U65 Physical Support,04/01/2023,5682,,3111326583,611.76,The Brandon Trust
http://statistics.data.gov.uk/id/local-authority/38,Oxfordshire County Council,Support at Home 65+ Physical Support,17/01/2023,5899,Social Care - Direct Payments,3111337126,611.88,Purple Conversation Com In Co (DP)
http://statistics.data.gov.uk/id/local-authority/38,Oxfordshire County Council,Support at Home U65 HFA,17/01/2023,5899,Social Care - Direct Payments,3111337103,612.24,Purple Conversation Com In Co (DP)
http://statistics.data.gov.uk/id/local-authority/38,Oxfordshire County Council,Support at Home U65 MH OBC Contract,06/01/2023,5693,,3111327296,612.33,Care at Home
http://statistics.data.gov.uk/id/local-authority/38,Oxfordshire County Council,Oxfordshire Adoption Support Fund,10/01/2023,4861,Hired and Contracted Services,2201066886,612.33,Julia Woods
http://statistics.data.gov.uk/id/local-authority/38,Oxfordshire County Council,Support at Home U65 Physical Support,31/01/2023,5689,,3111342756,612.42,Care Outlook Ltd
http://statistics.data.gov.uk/id/local-authority/38,Oxfordshire County Council,TRANSLATION,17/01/2023,5668,Technical and Professional Consultant F,2201069729,612.59,K International PLC
http://statistics.data.gov.uk/id/local-authority/38,Oxfordshire County Council,LD Continuing Care - Sup at Home - U65,11/01/2023,5691,,3111328792,613.05,THORNBURY NURSING SERVICES
http://statistics.data.gov.uk/id/local-authority/38,Oxfordshire County Council,LD Continuing Care - Sup at Home - U65,13/01/2023,5691,,3111335302,613.05,THORNBURY NURSING SERVICES
http://statistics.data.gov.uk/id/local-authority/38,Oxfordshire County Council,LD Continuing Care - Sup at Home - U65,27/01/2023,5691,,3111341366,613.05,THORNBURY NURSING SERVICES
http://statistics.data.gov.uk/id/local-authority/38,Oxfordshire County Council,CAP CHRGES-PRIM SCHS,24/01/2023,8102,Payments to main contractor,2201071822,614.00,tmd Building Consultancy Ltd
http://statistics.data.gov.uk/id/local-authority/38,Oxfordshire County Council,SEN TRANSPORT,30/01/2023,4314,"Other Trans Contract Costs (CRB, Car Sea",3111341835,615.00,Abingdon Taxis FKN Autotaxis
http://statistics.data.gov.uk/id/local-authority/38,Oxfordshire County Council,Oxfordshire Adoption Support Fund,05/01/2023,4861,Hired and Contracted Services,2201065953,615.00,Julia Woods
http://statistics.data.gov.uk/id/local-authority/38,Oxfordshire County Council,Planned Maintenance,13/01/2023,3787,Premises Repairs,2201068823,615.00,SI Pumps Ltd
http://statistics.data.gov.uk/id/local-authority/38,Oxfordshire County Council,Support at Home U65 Physical Support,31/01/2023,5698,,3111342697,615.54,KCARE NURSING AGENCY
http://statistics.data.gov.uk/id/local-authority/38,Oxfordshire County Council,Support at Home U65 Learning Disability,11/01/2023,5690,,3111329931,615.66,Real Life Options
http://statistics.data.gov.uk/id/local-authority/38,Oxfordshire County Council,Support at Home 65+ Learning Disability,11/01/2023,5688,,3111331024,615.66,The Brandon Trust
http://statistics.data.gov.uk/id/local-authority/38,Oxfordshire County Council,FAM GRP CONFERENCES,18/01/2023,4940,Other Services,2201070390,615.70,Jessica Howards
http://statistics.data.gov.uk/id/local-authority/38,Oxfordshire County Council,Support at Home 65+ Physical Support,06/01/2023,5693,,3111327297,616.04,Home Helpers Care Ltd
http://statistics.data.gov.uk/id/local-authority/38,Oxfordshire County Council,Care Homes - Over 65 Physical Sypport,11/01/2023,5686,,3111333354,616.29,Orders of St John
http://statistics.data.gov.uk/id/local-authority/38,Oxfordshire County Council,Support at Home 65+ Physical Support,03/01/2023,5689,,3111324862,616.56,Care Outlook Ltd
http://statistics.data.gov.uk/id/local-authority/38,Oxfordshire County Council,COMM DRAWDOWN FUNDNG,17/01/2023,8004,Design Consultant,2201070033,616.89,Milestone Infrastructure Limited
http://statistics.data.gov.uk/id/local-authority/38,Oxfordshire County Council,Support at Home 65+ Physical Support,03/01/2023,5699,,3111325641,617.40,All Care GB Ltd
http://statistics.data.gov.uk/id/local-authority/38,Oxfordshire County Council,Support at Home 65+ Physical Support,03/01/2023,5699,,3111325750,617.40,Care Hearted Ltd
http://statistics.data.gov.uk/id/local-authority/38,Oxfordshire County Council,Support at Home 65+ Physical Support,03/01/2023,5699,,3111325886,617.40,CaringPlus Healthcare Services Ltd
http://statistics.data.gov.uk/id/local-authority/38,Oxfordshire County Council,Support at Home 65+ Physical Support,31/01/2023,5699,,3111344228,617.40,PLL Care Services
http://statistics.data.gov.uk/id/local-authority/38,Oxfordshire County Council,Support at Home 65+ Physical Support,31/01/2023,5689,,3111343545,617.58,PLL Care Services
http://statistics.data.gov.uk/id/local-authority/38,Oxfordshire County Council,Family Solutions Plus Non-staff - Centra,09/01/2023,4940,Other Services,2201066554,617.70,Multilingual Translation & Interpre
http://statistics.data.gov.uk/id/local-authority/38,Oxfordshire County Council,FOSTERING MAIN,31/01/2023,5549,B*Fostering Allowance - Regulation 38,3111342133,618.28,Personal Redacted Data
http://statistics.data.gov.uk/id/local-authority/38,Oxfordshire County Council,Support at Home 65+ Physical Support,03/01/2023,5689,,3111325164,618.39,Greigcare Home Service
http://statistics.data.gov.uk/id/local-authority/38,Oxfordshire County Council,Support at Home 65+ Physical Support,03/01/2023,5689,,3111325321,618.39,PLL Care Services
http://statistics.data.gov.uk/id/local-authority/38,Oxfordshire County Council,Support at Home U65 MH OBC Contract,17/01/2023,5899,Social Care - Direct Payments,3111337627,618.48,Personal Redacted Data
http://statistics.data.gov.uk/id/local-authority/38,Oxfordshire County Council,Support at Home 65+ Physical Support,17/01/2023,5899,Social Care - Direct Payments,3111337192,619.08,Purple Conversation Com In Co (DP)
http://statistics.data.gov.uk/id/local-authority/38,Oxfordshire County Council,Early Years SEN Funding,26/01/2023,5537,Payments to Other Establishments,3111340630,619.58,Filkins Nursery School
http://statistics.data.gov.uk/id/local-authority/38,Oxfordshire County Council,Reactive Maintenance,05/01/2023,3860,Alterations To Buildings,2201065731,620.00,Metro Rod Ltd (Oxon & West Bucks)
http://statistics.data.gov.uk/id/local-authority/38,Oxfordshire County Council,Support at Home 65+ Physical Support,31/01/2023,5698,,3111343811,620.02,Oxfordshire Crossroads
http://statistics.data.gov.uk/id/local-authority/38,Oxfordshire County Council,ON ST PARK OXFD P&D,20/01/2023,4861,Hired and Contracted Services,2201071109,621.00,Flowbird Smart City
http://statistics.data.gov.uk/id/local-authority/38,Oxfordshire County Council,Support at Home 65+ Physical Support,31/01/2023,5698,,3111342714,621.64,KCARE NURSING AGENCY
http://statistics.data.gov.uk/id/local-authority/38,Oxfordshire County Council,Support at Home U65 Learning Disability,17/01/2023,5899,Social Care - Direct Payments,3111336760,621.76,Personal Redacted Data
http://statistics.data.gov.uk/id/local-authority/38,Oxfordshire County Council,ContrO ASC Payments Control Account,26/01/2023,5554,Childrens' Social Care - Direct Payments,3111340812,622.76,The Disability Resource Centre
http://statistics.data.gov.uk/id/local-authority/38,Oxfordshire County Council,Support at Home U65 Learning Disability,17/01/2023,5899,Social Care - Direct Payments,3111337267,623.52,Purple Conversation Com In Co (DP)
http://statistics.data.gov.uk/id/local-authority/38,Oxfordshire County Council,Support at Home 65+ Physical Support,31/01/2023,5699,,3111344149,623.70,PLL Care Services
http://statistics.data.gov.uk/id/local-authority/38,Oxfordshire County Council,Care Homes - Over 65 Physical Sypport,11/01/2023,5687,,3111332294,623.73,Oxford Beaumont
http://statistics.data.gov.uk/id/local-authority/38,Oxfordshire County Council,Support at Home U65 Physical Support,25/01/2023,5693,,3111340114,624.00,ADVANCE HOUSING & SUPPORT LTD
http://statistics.data.gov.uk/id/local-authority/38,Oxfordshire County Council,Family Solutions Plus Non-staff - South,27/01/2023,5227,Other Transport Arrangements,3111341398,624.00,Her Ride Limited
http://statistics.data.gov.uk/id/local-authority/38,Oxfordshire County Council,Continuing Care - Support at Home - U65,27/01/2023,5691,,3111341273,624.00,JMC Care Solutions Limited
http://statistics.data.gov.uk/id/local-authority/38,Oxfordshire County Council,LANDLORD & TENANT,27/01/2023,4001,Uniform Business Rates,3500092429,624.00,West Oxfordshire District Council
http://statistics.data.gov.uk/id/local-authority/38,Oxfordshire County Council,Continuing Care - Support at Home - U65,11/01/2023,5691,,3111328866,624.00,XPERIENCE RECRUITMENT LIMITED
http://statistics.data.gov.uk/id/local-authority/38,Oxfordshire County Council,Support at Home 65+ Physical Support,03/01/2023,5699,,3111326197,624.12,SIETE LTD
http://statistics.data.gov.uk/id/local-authority/38,Oxfordshire County Council,Support at Home U65 Physical Support,03/01/2023,5696,,3111325479,624.34,All Care GB Ltd
http://statistics.data.gov.uk/id/local-authority/38,Oxfordshire County Council,Support at Home U65 Physical Support,31/01/2023,5696,,3111342990,624.34,All Care GB Ltd
http://statistics.data.gov.uk/id/local-authority/38,Oxfordshire County Council,Support at Home 65+ Physical Support,31/01/2023,5696,,3111343109,624.35,Radis Community Care
http://statistics.data.gov.uk/id/local-authority/38,Oxfordshire County Council,LEGAL SERVICES,26/01/2023,5251,Legal Costs,2201073181,625.00,David Marusza
http://statistics.data.gov.uk/id/local-authority/38,Oxfordshire County Council,Wokingham Adoption Support Fund,03/01/2023,4861,Hired and Contracted Services,2201065052,625.00,Graham Kennedy
http://statistics.data.gov.uk/id/local-authority/38,Oxfordshire County Council,BLOXHAM CE PRIMARY,04/01/2023,3357,,3111326698,625.00,McLarens
http://statistics.data.gov.uk/id/local-authority/38,Oxfordshire County Council,Reactive Maintenance,20/01/2023,4042,Fixtures and Fittings,2201071315,625.00,Windrush Door & Window Services Ltd
http://statistics.data.gov.uk/id/local-authority/38,Oxfordshire County Council,MAINSTREAM-SECONDARY,25/01/2023,4330,Transport to School Activities,3111341455,625.40,Grayline Coaches
http://statistics.data.gov.uk/id/local-authority/38,Oxfordshire County Council,MAINSTREAM-SECONDARY,25/01/2023,4330,Transport to School Activities,3111341456,625.40,Grayline Coaches
http://statistics.data.gov.uk/id/local-authority/38,Oxfordshire County Council,Support at Home U65 Physical Support,03/01/2023,5689,,3111324790,625.65,Allied Health-Services Limited
http://statistics.data.gov.uk/id/local-authority/38,Oxfordshire County Council,Support at Home U65 Learning Disability,17/01/2023,5899,Social Care - Direct Payments,3111336940,625.88,Personal Redacted Data
http://statistics.data.gov.uk/id/local-authority/38,Oxfordshire County Council,SEN TRANSPORT,12/01/2023,4320,Pupil / Client Travel Reimbursement,3111334773,626.28,Personal Redacted Data
http://statistics.data.gov.uk/id/local-authority/38,Oxfordshire County Council,NURSERY ED FUND,12/01/2023,5537,Payments to Other Establishments,3111334116,626.40,Amanda Sinclair
http://statistics.data.gov.uk/id/local-authority/38,Oxfordshire County Council,NURSERY ED FUND,12/01/2023,5537,Payments to Other Establishments,3111334498,626.40,Donna Slack
http://statistics.data.gov.uk/id/local-authority/38,Oxfordshire County Council,NURSERY ED FUND,12/01/2023,5537,Payments to Other Establishments,3111334398,626.40,Stephanie Allen
http://statistics.data.gov.uk/id/local-authority/38,Oxfordshire County Council,SM DISABILITIES,26/01/2023,5554,Childrens' Social Care - Direct Payments,3111340814,627.64,The Disability Resource Centre
http://statistics.data.gov.uk/id/local-authority/38,Oxfordshire County Council,LIBRARY COLLECTIONS,04/01/2023,4539,"Books, DVDs and CDs",3111326705,628.06,ASKEWS & HOLTS LIBRARY SERVICES LTD
http://statistics.data.gov.uk/id/local-authority/38,Oxfordshire County Council,PLACEMENTS- RELEVANT,12/01/2023,5558,,3111333949,628.57,NASHE-UK LTD
http://statistics.data.gov.uk/id/local-authority/38,Oxfordshire County Council,PLACEMENTS- RELEVANT,12/01/2023,5558,,3111333950,628.57,NASHE-UK LTD
http://statistics.data.gov.uk/id/local-authority/38,Oxfordshire County Council,LIBRARY COLLECTIONS,06/01/2023,4539,"Books, DVDs and CDs",2201066090,628.72,ULVERSCROFT LARGE PRINT BOOKS LTD
http://statistics.data.gov.uk/id/local-authority/38,Oxfordshire County Council,LIBRARY COLLECTIONS,06/01/2023,4539,"Books, DVDs and CDs",2201066094,628.72,ULVERSCROFT LARGE PRINT BOOKS LTD
http://statistics.data.gov.uk/id/local-authority/38,Oxfordshire County Council,LIBRARY COLLECTIONS,19/01/2023,4539,"Books, DVDs and CDs",2201070983,628.72,ULVERSCROFT LARGE PRINT BOOKS LTD
http://statistics.data.gov.uk/id/local-authority/38,Oxfordshire County Council,LIBRARY COLLECTIONS,19/01/2023,4539,"Books, DVDs and CDs",2201070984,628.72,ULVERSCROFT LARGE PRINT BOOKS LTD
http://statistics.data.gov.uk/id/local-authority/38,Oxfordshire County Council,FAM GRP CONFERENCES,31/01/2023,4940,Other Services,2201074673,629.12,Jessica Howards
http://statistics.data.gov.uk/id/local-authority/38,Oxfordshire County Council,Family Solutions Plus Non-staff - Centra,17/01/2023,5365,Non-Staff Subsistence and Expenses,9300058567,629.20,OCC SS Vale of White Horse Cash
http://statistics.data.gov.uk/id/local-authority/38,Oxfordshire County Council,Support at Home U65 Physical Support,31/01/2023,5698,,3111342736,629.38,Acquire Care Ltd
http://statistics.data.gov.uk/id/local-authority/38,Oxfordshire County Council,BROADBAND PROJECT,03/01/2023,5668,Technical and Professional Consultant F,2201065102,630.00,Agile Collective Ltd
http://statistics.data.gov.uk/id/local-authority/38,Oxfordshire County Council,Support at Home 65+ Physical Support,13/01/2023,5693,,3111335088,630.00,Angel Care Group
http://statistics.data.gov.uk/id/local-authority/38,Oxfordshire County Council,Planned Maintenance,25/01/2023,4861,Hired and Contracted Services,2201072667,630.00,Barker & Evans Ltd
http://statistics.data.gov.uk/id/local-authority/38,Oxfordshire County Council,Support at Home 65+ Physical Support,31/01/2023,5699,,3111343848,630.00,CaringPlus Healthcare Services Ltd
http://statistics.data.gov.uk/id/local-authority/38,Oxfordshire County Council,Support at Home 65+ Physical Support,11/01/2023,5693,,3111328741,630.00,Enable Health Ltd
http://statistics.data.gov.uk/id/local-authority/38,Oxfordshire County Council,Support at Home U65 Physical Support,25/01/2023,5697,,3111340232,630.00,Guideposts Trust
http://statistics.data.gov.uk/id/local-authority/38,Oxfordshire County Council,Community Support Service - Abingdon,20/01/2023,5227,Other Transport Arrangements,3111338645,630.00,Oxon Transport Services Ltd
http://statistics.data.gov.uk/id/local-authority/38,Oxfordshire County Council,TRANSPORT COSTS,11/01/2023,5227,Other Transport Arrangements,3111329063,630.00,The Oxfordshire Taxi Company Ltd T/
http://statistics.data.gov.uk/id/local-authority/38,Oxfordshire County Council,Support at Home U65 Learning Disability,11/01/2023,5227,Other Transport Arrangements,3111329312,630.00,The Oxfordshire Taxi Company Ltd T/
http://statistics.data.gov.uk/id/local-authority/38,Oxfordshire County Council,Support at Home 65+ Physical Support,03/01/2023,5699,,3111326249,630.00,YOD Ltd
http://statistics.data.gov.uk/id/local-authority/38,Oxfordshire County Council,Support at Home 65+ Physical Support,31/01/2023,5699,,3111344326,630.00,YOD Ltd
http://statistics.data.gov.uk/id/local-authority/38,Oxfordshire County Council,Support at Home U65 Learning Disability,17/01/2023,5899,Social Care - Direct Payments,3111337084,630.28,Purple Conversation Com In Co (DP)
http://statistics.data.gov.uk/id/local-authority/38,Oxfordshire County Council,LIBRARY COLLECTIONS,05/01/2023,4539,"Books, DVDs and CDs",2201065887,630.40,W F HOWES LTD
http://statistics.data.gov.uk/id/local-authority/38,Oxfordshire County Council,Support at Home 65+ Physical Support,31/01/2023,5698,,3111343745,630.88,Oxford Private Care
http://statistics.data.gov.uk/id/local-authority/38,Oxfordshire County Council,Support at Home 65+ Physical Support,04/01/2023,5693,,3111326623,631.13,Care with Care Ltd
http://statistics.data.gov.uk/id/local-authority/38,Oxfordshire County Council,Support at Home U65 Physical Support,17/01/2023,5899,Social Care - Direct Payments,3111336837,631.76,Personal Redacted Data
http://statistics.data.gov.uk/id/local-authority/38,Oxfordshire County Council,Oxfordshire Adoption Support Fund,30/01/2023,4861,Hired and Contracted Services,2201073997,632.00,Topaz Therapeutic Life Story
http://statistics.data.gov.uk/id/local-authority/38,Oxfordshire County Council,TRANSLATION,17/01/2023,5668,Technical and Professional Consultant F,2201069727,632.64,K International PLC
http://statistics.data.gov.uk/id/local-authority/38,Oxfordshire County Council,FOSTERING MAIN,03/01/2023,5227,Other Transport Arrangements,3111324327,633.13,Personal Redacted Data
http://statistics.data.gov.uk/id/local-authority/38,Oxfordshire County Council,Support at Home 65+ Physical Support,17/01/2023,5899,Social Care - Direct Payments,3111337393,633.24,Purple Conversation Com In Co (DP)
http://statistics.data.gov.uk/id/local-authority/38,Oxfordshire County Council,Support at Home U65 Other /Soc Isolation,11/01/2023,5690,,3111329820,633.73,ADVANCE HOUSING & SUPPORT LTD
http://statistics.data.gov.uk/id/local-authority/38,Oxfordshire County Council,FOSTERING MAIN,10/01/2023,5227,Other Transport Arrangements,3111328160,633.92,Personal Redacted Data
http://statistics.data.gov.uk/id/local-authority/38,Oxfordshire County Council,CORONER,06/01/2023,5202,Use of Mortuary Services,2201065985,634.17,University Hospital Southampton NHS
http://statistics.data.gov.uk/id/local-authority/38,Oxfordshire County Council,Support at Home 65+ Memory & Cognition,03/01/2023,5696,,3111325526,634.41,All Care GB Ltd
http://statistics.data.gov.uk/id/local-authority/38,Oxfordshire County Council,Support at Home U65 Learning Disability,03/01/2023,5682,,3111324407,634.43,The Brandon Trust
http://statistics.data.gov.uk/id/local-authority/38,Oxfordshire County Council,Support at Home U65 Physical Support,06/01/2023,5693,,3111327267,635.28,CaringPlus Healthcare Services Ltd
http://statistics.data.gov.uk/id/local-authority/38,Oxfordshire County Council,Care Homes - Over 65 Memory & Cognition,11/01/2023,5687,,3111331928,635.85,Meadow View Nursing Home
http://statistics.data.gov.uk/id/local-authority/38,Oxfordshire County Council,2 YEAR OLD FUNDING,12/01/2023,5537,Payments to Other Establishments,3111334435,636.12,Amanda's Childcare
http://statistics.data.gov.uk/id/local-authority/38,Oxfordshire County Council,2 YEAR OLD FUNDING,12/01/2023,5537,Payments to Other Establishments,3111334327,636.12,Deborah Barlow
http://statistics.data.gov.uk/id/local-authority/38,Oxfordshire County Council,2 YEAR OLD FUNDING,12/01/2023,5537,Payments to Other Establishments,3111334408,636.12,Donna Price
http://statistics.data.gov.uk/id/local-authority/38,Oxfordshire County Council,2 YEAR OLD FUNDING,12/01/2023,5537,Payments to Other Establishments,3111334397,636.12,Louise Duncan
http://statistics.data.gov.uk/id/local-authority/38,Oxfordshire County Council,2 YEAR OLD FUNDING,12/01/2023,5537,Payments to Other Establishments,3111334421,636.12,Louise Moralee
http://statistics.data.gov.uk/id/local-authority/38,Oxfordshire County Council,2 YEAR OLD FUNDING,12/01/2023,5537,Payments to Other Establishments,3111334433,636.12,Michelle Williams
http://statistics.data.gov.uk/id/local-authority/38,Oxfordshire County Council,2 YEAR OLD FUNDING,12/01/2023,5537,Payments to Other Establishments,3111334454,636.12,Nichola Bolt
http://statistics.data.gov.uk/id/local-authority/38,Oxfordshire County Council,2 YEAR OLD FUNDING,12/01/2023,5537,Payments to Other Establishments,3111334478,636.12,Sarah Rigby
http://statistics.data.gov.uk/id/local-authority/38,Oxfordshire County Council,2 YEAR OLD FUNDING,12/01/2023,5537,Payments to Other Establishments,3111334574,636.12,Sophie Cushing
http://statistics.data.gov.uk/id/local-authority/38,Oxfordshire County Council,Support at Home 65+ Physical Support,31/01/2023,5699,,3111343616,636.30,Care Hearted Ltd
http://statistics.data.gov.uk/id/local-authority/38,Oxfordshire County Council,FOSTERING MAIN,10/01/2023,5549,B*Fostering Allowance - Regulation 38,3111327998,636.90,Personal Redacted Data
http://statistics.data.gov.uk/id/local-authority/38,Oxfordshire County Council,FOSTERING MAIN,10/01/2023,5549,B*Fostering Allowance - Regulation 38,3111328000,636.90,Personal Redacted Data
http://statistics.data.gov.uk/id/local-authority/38,Oxfordshire County Council,FLEET OPERATIONS,13/01/2023,4210,Vehicles and Plant - Repairs and Main,2201068477,636.99,Cherwell District Council
http://statistics.data.gov.uk/id/local-authority/38,Oxfordshire County Council,Support at Home U65 Physical Support,11/01/2023,5690,,3111332325,637.01,Style Acre
http://statistics.data.gov.uk/id/local-authority/38,Oxfordshire County Council,Support at Home U65 Learning Disability,11/01/2023,5690,,3111332351,637.01,Style Acre
http://statistics.data.gov.uk/id/local-authority/38,Oxfordshire County Council,Support at Home U65 Learning Disability,11/01/2023,5690,,3111332385,637.01,Style Acre
http://statistics.data.gov.uk/id/local-authority/38,Oxfordshire County Council,Support at Home U65 Learning Disability,11/01/2023,5690,,3111332178,637.01,Turnstyle
http://statistics.data.gov.uk/id/local-authority/38,Oxfordshire County Council,Support at Home 65+ Learning Disability,11/01/2023,5690,,3111332247,637.01,Turnstyle
http://statistics.data.gov.uk/id/local-authority/38,Oxfordshire County Council,40 THE MOORS,03/01/2023,4270,HTM / Other Vehicle - Hire Charges,2201065104,638.20,The Oxfordshire Taxi Co Ltd T/A
http://statistics.data.gov.uk/id/local-authority/38,Oxfordshire County Council,Support at Home 65+ Physical Support,19/01/2023,5696,,3111338387,638.23,Orders of St John Care Trust
http://statistics.data.gov.uk/id/local-authority/38,Oxfordshire County Council,Support at Home 65+ Learning Disability,19/01/2023,5696,,3111338397,638.23,Orders of St John Care Trust
http://statistics.data.gov.uk/id/local-authority/38,Oxfordshire County Council,Early Years SEN Funding,26/01/2023,5537,Payments to Other Establishments,3111340632,638.66,Highmoor Nursery School Ltd
http://statistics.data.gov.uk/id/local-authority/38,Oxfordshire County Council,Support at Home 65+ Physical Support,19/01/2023,5696,,3111338359,639.07,Orders of St John Care Trust
http://statistics.data.gov.uk/id/local-authority/38,Oxfordshire County Council,Support at Home 65+ Physical Support,19/01/2023,5696,,3111338284,639.18,Orders of St John Care Trust
http://statistics.data.gov.uk/id/local-authority/38,Oxfordshire County Council,Support at Home U65 Physical Support,11/01/2023,5690,,3111329863,639.20,Headway Oxford
http://statistics.data.gov.uk/id/local-authority/38,Oxfordshire County Council,Support at Home 65+ Physical Support,31/01/2023,5689,,3111342807,639.92,Care Outlook Ltd
